Ref No,Fund Type,Dept,Cost Centre Description    ,Description    ,Creditor Name    ,GL Code Net Amount,Payment date        ,
,Revenue,CCHD,Under 65s PWLD - KH,Residential Homes,.,4907.6, 19-Apr-2011,
,Revenue,CCHD,Supporting People Programme,Grants to Voluntary Bodies,1625 Independent People,3658.32, 27-Apr-2011,
,Revenue,CCHD,Supporting People Programme,Grants to Voluntary Bodies,1625 Independent People,3658.32, 27-Apr-2011,
,Revenue,CCHD,Supporting People Programme,Grants to Voluntary Bodies,1625 Independent People,14490.12, 27-Apr-2011,
,Revenue,CCHD,Supporting People Programme,Grants to Voluntary Bodies,1625 Independent People,14490.12, 27-Apr-2011,
,Revenue,CCHD,Supporting People Programme,Grants to Voluntary Bodies,1625 Independent People,3135.7, 27-Apr-2011,
,Revenue,CCHD,Supporting People Programme,Grants to Voluntary Bodies,1625 Independent People,12420.1, 27-Apr-2011,
,Revenue,CCHD,Purchase of Non-Res Care - KD,Private & Voluntary Day Care,3 Trees Community Support Ltd,861.96, 08-Apr-2011,
,Revenue,CCHD,Supported Living (S28a),Private & Voluntary Home Care,3 Trees Community Support Ltd,6085.56, 20-Apr-2011,
,Revenue,CCHD,Supported Living - KH,Private & Voluntary Home Care,3 Trees Community Support Ltd,1672.21, 14-Apr-2011,
,Revenue,CCHD,Supported Living - KD,Private & Voluntary Home Care,3 Trees Community Support Ltd,2245.24, 13-Apr-2011,
,Revenue,CCHD,Supported Living - KD,Private & Voluntary Home Care,3 Trees Community Support Ltd,540.05, 13-Apr-2011,
,Revenue,CCHD,Purchase of Non-Res Care - KD,Private & Voluntary Day Care,3 Trees Community Support Ltd,828.56, 27-Apr-2011,
,Revenue,CCHD,Home Care Purch North,Other Small Contracts,3 Trees Community Support Ltd,500.64, 27-Apr-2011,
,Revenue,CCHD,Purchase of Non-Res Care - KD,Private & Voluntary Day Care,3 Trees Community Support Ltd,1673.12, 13-Apr-2011,
,Revenue,CCHD,Purchase of Non-Res Care - KD,Private & Voluntary Day Care,3 Trees Community Support Ltd,1369.39, 27-Apr-2011,
,Revenue,CCHD,Purchase of Non-Res Care - KH,Private & Voluntary Day Care,3 Trees Community Support Ltd,3082.96, 27-Apr-2011,
,Revenue,CCHD,Supported Living - KH,Private & Voluntary Home Care,3 Trees Community Support Ltd,7716.33, 27-Apr-2011,
,Revenue,CCHD,Purchase of Non-Res Care - KD,Private & Voluntary Day Care,3 Trees Community Support Ltd,4942.64, 27-Apr-2011,
,Revenue,CCHD,Purchase of Non-Res Care - KD,Private & Voluntary Day Care,3 Trees Community Support Ltd,1673.12, 11-Apr-2011,
,Revenue,CCHD,Purchase of Non-Res Care - KH,Private & Voluntary Day Care,3 Trees Community Support Ltd,3082.96, 06-Apr-2011,
,Revenue,CCHD,Supported Living - KH,Private & Voluntary Home Care,3 Trees Community Support Ltd,1662.02, 04-Apr-2011,
,Revenue,CCHD,Supported Living - KH,Private & Voluntary Home Care,3 Trees Community Support Ltd,7638.08, 04-Apr-2011,
,Revenue,CCHD,Elderly Purchasing - South,Nursing Homes,Aabletone Nursing Home,1211.48, 19-Apr-2011,
,Revenue,CCHD,Under 65s PWLD - KD,Residential Homes,Abbeymead Lodge,6773.32, 19-Apr-2011,
,Revenue,CCHD,Elderly Purchasing - South,Residential Homes,Ablecare Homes,935, 19-Apr-2011,
,Revenue,CCHD,Southmead Hospital Purchasing,Residential Homes,Ablecare Homes,1063.56, 19-Apr-2011,
,Revenue,CCHD,Elderly Mental Health,Residential Homes,Ablecare Homes,1406.8, 19-Apr-2011,
,Revenue,CCHD,Elderly Purchasing - North,Residential Homes,Ablecare Homes,653.28, 19-Apr-2011,
,Revenue,CCHD,Frenchay Hospital Purchasing,Residential Homes,Ablecare Homes,962.73, 19-Apr-2011,
,Revenue,CCHD,Elderly Purchasing - North,Residential Homes,Ablecare Homes,926.55, 19-Apr-2011,
,Revenue,CCHD,Elderly Purchasing - North,Residential Homes,Ablecare Homes,1246.84, 19-Apr-2011,
,Revenue,CCHD,Elderly Purchasing - South,Residential Homes,Ablecare Homes,1216.2, 19-Apr-2011,
,Revenue,CCHD,Frenchay Hospital Purchasing,Residential Homes,Ablecare Homes,924.12, 19-Apr-2011,
,Revenue,CCHD,Elderly Mental Health,Residential Homes,Ablecare Homes,950.49, 19-Apr-2011,
,Revenue,CCHD,Elderly Mental Health,Residential Homes,Ablecare Homes,1202.51, 19-Apr-2011,
,Revenue,CCHD,Elderly Purchasing - South,Residential Homes,Ablecare Homes,947.7, 19-Apr-2011,
,Revenue,CCHD,P&SI - Commissioned Services,Grants to Voluntary Bodies,Action for Blind People,18750, 05-Apr-2011,
,Revenue,CCHD,Day Care - South,Private & Voluntary Day Care,Action for Blind People,3542.75, 18-Apr-2011,
,Revenue,CCHD,Day Care - North,Private & Voluntary Day Care,Action for Blind People,3849.15, 27-Apr-2011,
,Revenue,CCHD,Home Care Purch North,Other Small Contracts,Agincare UK Limited,1549.94, 11-Apr-2011,
,Revenue,CCHD,Home Care Purch North,Other Small Contracts,Agincare UK Limited,800.03, 11-Apr-2011,
,Revenue,CCHD,Home Care Purch North,Other Small Contracts,Agincare UK Limited,800.03, 11-Apr-2011,
,Revenue,CCHD,Home Care Purch North,Other Small Contracts,Agincare UK Limited,800.03, 11-Apr-2011,
,Revenue,CCHD,Home Care Purch North,Other Small Contracts,Agincare UK Limited,1549.94, 27-Apr-2011,
,Revenue,CCHD,Contracts & Commissioning Team,Other Small Contracts,Agincare UK Limited,3500, 01-Apr-2011,
,Revenue,CCHD,Contracts & Commissioning Team,Other Small Contracts,Agincare UK Limited,3500, 08-Apr-2011,
,Revenue,CCHD,Contracts & Commissioning Team,Other Small Contracts,Agincare UK Limited,3500, 15-Apr-2011,
,Revenue,CCHD,Contracts & Commissioning Team,Other Small Contracts,Agincare UK Limited,3500, 20-Apr-2011,
,Revenue,CCHD,Contracts & Commissioning Team,Other Small Contracts,Agincare UK Limited,3500, 28-Apr-2011,
,Revenue,CCHD,Eclipse Park Office,Service Contracts,AK LLP Client No 1 Account,520, 07-Apr-2011,
,Revenue,CCHD,Eclipse Park Office,Service Contracts,AK LLP Client No 1 Account,520, 11-Apr-2011,
,Revenue,CCHD,Eclipse Park Office,Service Contracts,AK LLP Client No 1 Account,520, 11-Apr-2011,
,Revenue,CCHD,S117 Placements PCT,Residential Homes,Alexandra House,6697.76, 19-Apr-2011,
,Revenue,CCHD,Under 65s PWLD - KD,Residential Homes,Alexandra House,6334.84, 19-Apr-2011,
,Revenue,CCHD,Southmead Hospital Team,Agency Staff (Operational)/PCT Pay,Allied Health Professionals Ltd,1008, 28-Apr-2011,
,Revenue,CCHD,Southmead Hospital Team,Agency Staff (Operational)/PCT Pay,Allied Health Professionals Ltd,1200, 28-Apr-2011,
,Revenue,CCHD,Southmead Hospital Team,Agency Staff (Operational)/PCT Pay,Allied Health Professionals Ltd,1008, 28-Apr-2011,
,Revenue,CCHD,Elderly MH non-res purchasing,Private & Voluntary Day Care,Alzheimers Society Bristol Branch,520.32, 04-Apr-2011,
,Revenue,CCHD,Elderly MH non-res purchasing,Private & Voluntary Day Care,Alzheimers Society Bristol Branch,780.48, 04-Apr-2011,
,Revenue,CCHD,Elderly MH non-res purchasing,Private & Voluntary Day Care,Alzheimers Society Bristol Branch,780.48, 04-Apr-2011,
,Revenue,CCHD,Elderly MH non-res purchasing,Private & Voluntary Day Care,Alzheimers Society Bristol Branch,780.48, 04-Apr-2011,
,Revenue,CCHD,Elderly MH non-res purchasing,Private & Voluntary Day Care,Alzheimers Society Bristol Branch,520.32, 04-Apr-2011,
,Revenue,CCHD,Section 117 Placements,Private & Voluntary Day Care,Alzheimers Society Bristol Branch,520.32, 04-Apr-2011,
,Revenue,CCHD,Frenchay Hospital Purchasing,Residential Homes,Anbridge Care Home,779.88, 19-Apr-2011,
,Revenue,CCHD,Under 65s PWLD - KD,Residential Homes,Ark Care Homes Ltd,10353.32, 19-Apr-2011,
,Revenue,CCHD,Bed and Breakfast,Bed & Breakfast,Ashley Guest House Ltd,1368, 27-Apr-2011,
,Revenue,CCHD,Bed and Breakfast,Bed & Breakfast,Ashley Guest House Ltd,960, 01-Apr-2011,
,Revenue,CCHD,Bed and Breakfast,Bed & Breakfast,Ashley Guest House Ltd,912, 08-Apr-2011,
,Revenue,CCHD,S28A - Over 65,Residential Homes,Aspects &  Milestones Trust,4029.56, 19-Apr-2011,
,Revenue,CCHD,Elderly Purchasing - South,Residential Homes,Aspects &  Milestones Trust,1397.24, 19-Apr-2011,
,Revenue,CCHD,Elderly Mental Health,Residential Homes,Aspects &  Milestones Trust,1246.8, 19-Apr-2011,
,Revenue,CCHD,Section 117 Placements,Residential Homes,Aspects &  Milestones Trust,1304, 19-Apr-2011,
,Revenue,CCHD,Elderly Mental Health,Nursing Homes,Aspects &  Milestones Trust,597.81, 19-Apr-2011,
,Revenue,CCHD,Section 117 Placements,Nursing Homes,Aspects &  Milestones Trust,1911.96, 19-Apr-2011,
,Revenue,CCHD,Under 65s PWLD - PS,Residential Homes,Aspects &  Milestones Trust,5611.48, 19-Apr-2011,
,Revenue,CCHD,Under 65s PWLD - KD,Nursing Homes,Aspects &  Milestones Trust,2027.58, 19-Apr-2011,
,Revenue,CCHD,Under 65s PWLD - KD,Nursing Homes,Aspects &  Milestones Trust,681.27, 19-Apr-2011,
,Revenue,CCHD,Under 65s PWLD - KD,Nursing Homes,Aspects &  Milestones Trust,23723.28, 19-Apr-2011,
,Revenue,CCHD,Section 117 Placements,Nursing Homes,Aspects &  Milestones Trust,1912, 19-Apr-2011,
,Revenue,CCHD,Elderly Mental Health,Nursing Homes,Aspects &  Milestones Trust,1469.84, 19-Apr-2011,
,Revenue,CCHD,Elderly PWLD - PS,Residential Homes,Aspects &  Milestones Trust,3322.72, 19-Apr-2011,
,Revenue,CCHD,Elderly PWLD - PS,Residential Homes,Aspects &  Milestones Trust,3209.91, 19-Apr-2011,
,Revenue,CCHD,Elderly PWLD - PS,Residential Homes,Aspects &  Milestones Trust,1074.42, 19-Apr-2011,
,Revenue,CCHD,Elderly PWLD - PS,Residential Homes,Aspects &  Milestones Trust,60420.72, 19-Apr-2011,
,Revenue,CCHD,S28A - Under 65,Nursing Homes,Aspects &  Milestones Trust,4284.24, 19-Apr-2011,
,Revenue,CCHD,S28A - Under 65,Nursing Homes,Aspects &  Milestones Trust,1422.43, 19-Apr-2011,
,Revenue,CCHD,S28A - Under 65,Residential Homes,Aspects &  Milestones Trust,5551.68, 19-Apr-2011,
,Revenue,CCHD,Under 65s PWLD - KH,Residential Homes,Aspects &  Milestones Trust,3650.92, 19-Apr-2011,
,Revenue,CCHD,S28A - Under 65,Residential Homes,Aspects &  Milestones Trust,5243.24, 19-Apr-2011,
,Revenue,CCHD,Under 65s PWLD - KD,Residential Homes,Aspects &  Milestones Trust,4443.51, 19-Apr-2011,
,Revenue,CCHD,Under 65s PWLD - KD,Residential Homes,Aspects &  Milestones Trust,1483.77, 19-Apr-2011,
,Revenue,CCHD,Under 65s PWLD - KH,Residential Homes,Aspects &  Milestones Trust,3782.04, 19-Apr-2011,
,Revenue,CCHD,S28A - Under 65,Nursing Homes,Aspects &  Milestones Trust,8022.76, 19-Apr-2011,
,Revenue,CCHD,MH Purchasing - Younger,Residential Homes,Aspects &  Milestones Trust,1019.4, 19-Apr-2011,
,Revenue,CCHD,Elderly PWLD - PS,Residential Homes,Aspects &  Milestones Trust,4475.14, 19-Apr-2011,
,Revenue,CCHD,Elderly PWLD - PS,Residential Homes,Aspects &  Milestones Trust,814.54, 19-Apr-2011,
,Revenue,CCHD,Elderly PWLD - PS,Residential Homes,Aspects &  Milestones Trust,3835.08, 19-Apr-2011,
,Revenue,CCHD,Elderly PWLD - KH,Residential Homes,Aspects &  Milestones Trust,4909.68, 19-Apr-2011,
,Revenue,CCHD,Elderly PWLD - KH,Residential Homes,Aspects &  Milestones Trust,36118.44, 19-Apr-2011,
,Revenue,CCHD,S28A - Under 65,Nursing Homes,Aspects &  Milestones Trust,5485.96, 19-Apr-2011,
,Revenue,CCHD,S28A - Under 65,Residential Homes,Aspects &  Milestones Trust,5489.91, 19-Apr-2011,
,Revenue,CCHD,S28A - Under 65,Residential Homes,Aspects &  Milestones Trust,1832.57, 19-Apr-2011,
,Revenue,CCHD,S28A - Over 65,Residential Homes,Aspects &  Milestones Trust,3543.56, 19-Apr-2011,
,Revenue,CCHD,S28A - Under 65,Nursing Homes,Aspects &  Milestones Trust,4591.86, 19-Apr-2011,
,Revenue,CCHD,S28A - Under 65,Nursing Homes,Aspects &  Milestones Trust,1533.22, 19-Apr-2011,
,Revenue,CCHD,Section 117 Placements MH Younger,Residential Homes,Aspects &  Milestones Trust,1304, 19-Apr-2011,
,Revenue,CCHD,Under 65s PWLD - PS,Residential Homes,Aspects &  Milestones Trust,3635.05, 19-Apr-2011,
,Revenue,CCHD,S28A - Under 65,Residential Homes,Aspects &  Milestones Trust,7330.28, 19-Apr-2011,
,Revenue,CCHD,S28A - Under 65,Residential Homes,Aspects &  Milestones Trust,3773.61, 19-Apr-2011,
,Revenue,CCHD,S28A - Under 65,Residential Homes,Aspects &  Milestones Trust,1260.47, 19-Apr-2011,
,Revenue,CCHD,S28A - Over 65,Residential Homes,Aspects &  Milestones Trust,3669.12, 19-Apr-2011,
,Revenue,CCHD,S28A - Over 65,Residential Homes,Aspects &  Milestones Trust,1227.49, 19-Apr-2011,
,Revenue,CCHD,S28A - Over 65,Residential Homes,Aspects &  Milestones Trust,68227.29, 19-Apr-2011,
,Revenue,CCHD,S28A - Over 65,Residential Homes,Aspects &  Milestones Trust,4167.44, 19-Apr-2011,
,Revenue,CCHD,S28A - Under 65,Residential Homes,Aspects &  Milestones Trust,7330.28, 19-Apr-2011,
,Revenue,CCHD,S28A - Over 65,Residential Homes,Aspects &  Milestones Trust,4400.96, 19-Apr-2011,
,Revenue,CCHD,S28A - Under 65,Residential Homes,Aspects &  Milestones Trust,7330.28, 19-Apr-2011,
,Revenue,CCHD,S28A - Over 65,Residential Homes,Aspects &  Milestones Trust,3695.56, 19-Apr-2011,
,Revenue,CCHD,S28A - Over 65,Residential Homes,Aspects &  Milestones Trust,54528.69, 19-Apr-2011,
,Revenue,CCHD,S28A - Under 65,Residential Homes,Aspects &  Milestones Trust,4487.43, 19-Apr-2011,
,Revenue,CCHD,S28A - Under 65,Residential Homes,Aspects &  Milestones Trust,1498.41, 19-Apr-2011,
,Revenue,CCHD,S28A - Under 65,Residential Homes,Aspects &  Milestones Trust,6526.08, 19-Apr-2011,
,Revenue,CCHD,S28A - Under 65,Residential Homes,Aspects &  Milestones Trust,2986.32, 19-Apr-2011,
,Revenue,CCHD,S28A - Under 65,Residential Homes,Aspects &  Milestones Trust,998.04, 19-Apr-2011,
,Revenue,CCHD,S28A - Over 65,Residential Homes,Aspects &  Milestones Trust,5894.72, 19-Apr-2011,
,Revenue,CCHD,S28A - Over 65,Residential Homes,Aspects &  Milestones Trust,3355.16, 19-Apr-2011,
,Revenue,CCHD,S28A - Over 65,Residential Homes,Aspects &  Milestones Trust,5001.08, 19-Apr-2011,
,Revenue,CCHD,S28A - Over 65,Residential Homes,Aspects &  Milestones Trust,3852.12, 19-Apr-2011,
,Revenue,CCHD,S28A - Over 65,Residential Homes,Aspects &  Milestones Trust,1288.49, 19-Apr-2011,
,Revenue,CCHD,S28A - Over 65,Residential Homes,Aspects &  Milestones Trust,71338.29, 19-Apr-2011,
,Revenue,CCHD,S28A - Over 65,Residential Homes,Aspects &  Milestones Trust,3585.09, 19-Apr-2011,
,Revenue,CCHD,S28A - Over 65,Residential Homes,Aspects &  Milestones Trust,1199.48, 19-Apr-2011,
,Revenue,CCHD,S28A - Over 65,Residential Homes,Aspects &  Milestones Trust,2425.17, 19-Apr-2011,
,Revenue,CCHD,S28A - Over 65,Residential Homes,Aspects &  Milestones Trust,812.84, 19-Apr-2011,
,Revenue,CCHD,S28A - Under 65,Nursing Homes,Aspects &  Milestones Trust,5068, 19-Apr-2011,
,Revenue,CCHD,S28A - Over 65,Residential Homes,Aspects &  Milestones Trust,4330.64, 19-Apr-2011,
,Revenue,CCHD,S28A - Over 65,Residential Homes,Aspects &  Milestones Trust,60840.96, 19-Apr-2011,
,Revenue,CCHD,S28A - Over 65,Residential Homes,Aspects &  Milestones Trust,3603.28, 19-Apr-2011,
,Revenue,CCHD,S28A - Under 65,Residential Homes,Aspects &  Milestones Trust,5489.91, 19-Apr-2011,
,Revenue,CCHD,S28A - Under 65,Residential Homes,Aspects &  Milestones Trust,1832.57, 19-Apr-2011,
,Revenue,CCHD,Under 65s PWLD - PS,Residential Homes,Aspects &  Milestones Trust,4322.72, 19-Apr-2011,
,Revenue,CCHD,S28A - Under 65,Nursing Homes,Aspects &  Milestones Trust,4652.76, 19-Apr-2011,
,Revenue,CCHD,S28A - Under 65,Nursing Homes,Aspects &  Milestones Trust,1553.52, 19-Apr-2011,
,Revenue,CCHD,S28A - Over 65,Residential Homes,Aspects &  Milestones Trust,3615.01, 19-Apr-2011,
,Revenue,CCHD,S28A - Over 65,Residential Homes,Aspects &  Milestones Trust,2393.88, 19-Apr-2011,
,Revenue,CCHD,S28A - Over 65,Residential Homes,Aspects &  Milestones Trust,802.41, 19-Apr-2011,
,Revenue,CCHD,S28A - Over 65,Residential Homes,Aspects &  Milestones Trust,46548.21, 19-Apr-2011,
,Revenue,CCHD,S28A - Over 65,Residential Homes,Aspects &  Milestones Trust,3422.41, 19-Apr-2011,
,Revenue,CCHD,S28A - Over 65,Residential Homes,Aspects &  Milestones Trust,3661.02, 19-Apr-2011,
,Revenue,CCHD,S28A - Over 65,Residential Homes,Aspects &  Milestones Trust,1224.79, 19-Apr-2011,
,Revenue,CCHD,S28A - Over 65,Residential Homes,Aspects &  Milestones Trust,3251.32, 19-Apr-2011,
,Revenue,CCHD,Elderly Mental Health,Residential Homes,Aspects &  Milestones Trust,863.16, 19-Apr-2011,
,Revenue,CCHD,S28A - Under 65,Residential Homes,Aspects &  Milestones Trust,4971.64, 19-Apr-2011,
,Revenue,CCHD,Elderly PWLD - KD,Residential Homes,Aspects &  Milestones Trust,2875.8, 19-Apr-2011,
,Revenue,CCHD,Elderly PWLD - KH,Residential Homes,Aspects &  Milestones Trust,4207.35, 19-Apr-2011,
,Revenue,CCHD,Elderly PWLD - KH,Residential Homes,Aspects &  Milestones Trust,1406.9, 19-Apr-2011,
,Revenue,CCHD,Elderly PWLD - KH,Residential Homes,Aspects &  Milestones Trust,77377.2, 19-Apr-2011,
,Revenue,CCHD,Elderly PWLD - KD,Residential Homes,Aspects &  Milestones Trust,5705.36, 19-Apr-2011,
,Revenue,CCHD,Elderly PWLD - KD,Residential Homes,Aspects &  Milestones Trust,4599.28, 19-Apr-2011,
,Revenue,CCHD,Elderly PWLD - KD,Residential Homes,Aspects &  Milestones Trust,16381.56, 19-Apr-2011,
,Revenue,CCHD,Under 65s PWLD - PS,Residential Homes,Aspects &  Milestones Trust,3998.8, 19-Apr-2011,
,Revenue,CCHD,S28A - Under 65,Residential Homes,Aspects &  Milestones Trust,4482.33, 19-Apr-2011,
,Revenue,CCHD,S28A - Under 65,Residential Homes,Aspects &  Milestones Trust,1496.71, 19-Apr-2011,
,Revenue,CCHD,S28A - Over 65,Residential Homes,Aspects &  Milestones Trust,3298.69, 19-Apr-2011,
,Revenue,CCHD,Section 117 Placements MH Younger,Residential Homes,Aspects &  Milestones Trust,1688, 19-Apr-2011,
,Revenue,CCHD,MH Purchasing - Younger,Residential Homes,Aspects &  Milestones Trust,1011.6, 19-Apr-2011,
,Revenue,CCHD,S28A - Over 65,Residential Homes,Aspects &  Milestones Trust,3550.8, 19-Apr-2011,
,Revenue,CCHD,S28A - Under 65,Residential Homes,Aspects &  Milestones Trust,3701.88, 19-Apr-2011,
,Revenue,CCHD,S28A - Under 65,Residential Homes,Aspects &  Milestones Trust,5244.04, 19-Apr-2011,
,Revenue,CCHD,S28A - Under 65,Residential Homes,Aspects &  Milestones Trust,5936.36, 19-Apr-2011,
,Revenue,CCHD,S28A - Over 65,Residential Homes,Aspects &  Milestones Trust,5810.64, 19-Apr-2011,
,Revenue,CCHD,S28A - Over 65,Residential Homes,Aspects &  Milestones Trust,1026.52, 19-Apr-2011,
,Revenue,CCHD,S28A - Over 65,Residential Homes,Aspects &  Milestones Trust,3661.02, 19-Apr-2011,
,Revenue,CCHD,S28A - Over 65,Residential Homes,Aspects &  Milestones Trust,1224.79, 19-Apr-2011,
,Revenue,CCHD,S28A - Over 65,Residential Homes,Aspects &  Milestones Trust,3692.34, 19-Apr-2011,
,Revenue,CCHD,S28A - Over 65,Residential Homes,Aspects &  Milestones Trust,1235.23, 19-Apr-2011,
,Revenue,CCHD,S28A - Over 65,Residential Homes,Aspects &  Milestones Trust,68622.03, 19-Apr-2011,
,Revenue,CCHD,S28A - Over 65,Residential Homes,Aspects &  Milestones Trust,4349.85, 19-Apr-2011,
,Revenue,CCHD,S28A - Over 65,Residential Homes,Aspects &  Milestones Trust,1454.4, 19-Apr-2011,
,Revenue,CCHD,S28A - Over 65,Residential Homes,Aspects &  Milestones Trust,79799.7, 19-Apr-2011,
,Revenue,CCHD,S28A - Under 65,Residential Homes,Aspects &  Milestones Trust,6009.27, 19-Apr-2011,
,Revenue,CCHD,S28A - Under 65,Residential Homes,Aspects &  Milestones Trust,2005.69, 19-Apr-2011,
,Revenue,CCHD,S28A - Over 65,Residential Homes,Aspects &  Milestones Trust,5087.44, 19-Apr-2011,
,Revenue,CCHD,S28A - Over 65,Residential Homes,Aspects &  Milestones Trust,70490.16, 19-Apr-2011,
,Revenue,CCHD,S28A - Under 65,Residential Homes,Aspects &  Milestones Trust,4921.56, 19-Apr-2011,
,Revenue,CCHD,S28A - Over 65,Nursing Homes,Aspects &  Milestones Trust,4921.56, 19-Apr-2011,
,Revenue,CCHD,S28A - Over 65,Nursing Homes,Aspects &  Milestones Trust,21451.04, 19-Apr-2011,
,Revenue,CCHD,S28A - Over 65,Residential Homes,Aspects &  Milestones Trust,4032.96, 19-Apr-2011,
,Revenue,CCHD,S28A - Over 65,Residential Homes,Aspects &  Milestones Trust,1348.77, 19-Apr-2011,
,Revenue,CCHD,S28A - Over 65,Residential Homes,Aspects &  Milestones Trust,74412.57, 19-Apr-2011,
,Revenue,CCHD,S28A - Over 65,Residential Homes,Aspects &  Milestones Trust,4032.96, 19-Apr-2011,
,Revenue,CCHD,S28A - Over 65,Residential Homes,Aspects &  Milestones Trust,1348.77, 19-Apr-2011,
,Revenue,CCHD,S28A - Over 65,Residential Homes,Aspects &  Milestones Trust,74412.57, 19-Apr-2011,
,Revenue,CCHD,S28A - Under 65,Residential Homes,Aspects &  Milestones Trust,3432.18, 19-Apr-2011,
,Revenue,CCHD,S28A - Under 65,Residential Homes,Aspects &  Milestones Trust,1146.66, 19-Apr-2011,
,Revenue,CCHD,S28A - Over 65,Residential Homes,Aspects &  Milestones Trust,5395.08, 19-Apr-2011,
,Revenue,CCHD,S28A - Over 65,Residential Homes,Aspects &  Milestones Trust,74412.57, 19-Apr-2011,
,Revenue,CCHD,S28A - Over 65,Residential Homes,Aspects &  Milestones Trust,5830.24, 19-Apr-2011,
,Revenue,CCHD,S28A - Over 65,Residential Homes,Aspects &  Milestones Trust,79960.86, 19-Apr-2011,
,Revenue,CCHD,S28A - Over 65,Residential Homes,Aspects &  Milestones Trust,3852.15, 19-Apr-2011,
,Revenue,CCHD,S28A - Over 65,Residential Homes,Aspects &  Milestones Trust,1288.5, 19-Apr-2011,
,Revenue,CCHD,S28A - Under 65,Residential Homes,Aspects &  Milestones Trust,3677.01, 19-Apr-2011,
,Revenue,CCHD,S28A - Under 65,Residential Homes,Aspects &  Milestones Trust,1228.27, 19-Apr-2011,
,Revenue,CCHD,S28A - Under 65,Residential Homes,Aspects &  Milestones Trust,38240.07, 19-Apr-2011,
,Revenue,CCHD,S28A - Under 65,Residential Homes,Aspects &  Milestones Trust,5695.2, 19-Apr-2011,
,Revenue,CCHD,S28A - Under 65,Residential Homes,Aspects &  Milestones Trust,1901, 19-Apr-2011,
,Revenue,CCHD,S28A - Over 65,Residential Homes,Aspects &  Milestones Trust,4359.33, 19-Apr-2011,
,Revenue,CCHD,S28A - Over 65,Residential Homes,Aspects &  Milestones Trust,1457.56, 19-Apr-2011,
,Revenue,CCHD,S28A - Over 65,Residential Homes,Aspects &  Milestones Trust,79960.86, 19-Apr-2011,
,Revenue,CCHD,S28A - Under 65,Residential Homes,Aspects &  Milestones Trust,3355.72, 19-Apr-2011,
,Revenue,CCHD,S28A - Over 65,Residential Homes,Aspects &  Milestones Trust,3404.64, 19-Apr-2011,
,Revenue,CCHD,S28A - Over 65,Residential Homes,Aspects &  Milestones Trust,5516.72, 19-Apr-2011,
,Revenue,CCHD,S28A - Over 65,Residential Homes,Aspects &  Milestones Trust,3329.48, 19-Apr-2011,
,Revenue,CCHD,Under 65s PWLD - KH,Residential Homes,Aspects &  Milestones Trust,5670.9, 19-Apr-2011,
,Revenue,CCHD,Under 65s PWLD - KH,Residential Homes,Aspects &  Milestones Trust,1892.45, 19-Apr-2011,
,Revenue,CCHD,Section 117 Placements,Residential Homes,Aspects &  Milestones Trust,1913.04, 19-Apr-2011,
,Revenue,CCHD,Elderly Mental Health,Nursing Homes,Aspects &  Milestones Trust,1344.96, 19-Apr-2011,
,Revenue,CCHD,Under 65s PWLD - KD,Residential Homes,Aspects &  Milestones Trust,7196.32, 19-Apr-2011,
,Revenue,CCHD,MH Purchasing - Younger,Nursing Homes,Aspects &  Milestones Trust,927.6, 19-Apr-2011,
,Revenue,CCHD,MH Purchasing - Younger,Nursing Homes,Aspects &  Milestones Trust,1107.4, 19-Apr-2011,
,Revenue,CCHD,MH Purchasing - Younger,Residential Homes,Aspects &  Milestones Trust,1019.4, 19-Apr-2011,
,Revenue,CCHD,Elderly PWLD - PS,Residential Homes,Aspects &  Milestones Trust,3533.64, 19-Apr-2011,
,Revenue,CCHD,Elderly PWLD - PS,Residential Homes,Aspects &  Milestones Trust,50679.21, 19-Apr-2011,
,Revenue,CCHD,S28A - Under 65,Residential Homes,Aspects &  Milestones Trust,3751.53, 19-Apr-2011,
,Revenue,CCHD,S28A - Under 65,Residential Homes,Aspects &  Milestones Trust,1253.11, 19-Apr-2011,
,Revenue,CCHD,S28A - Under 65,Residential Homes,Aspects &  Milestones Trust,5283.24, 19-Apr-2011,
,Revenue,CCHD,S28A - Over 65,Residential Homes,Aspects &  Milestones Trust,2997.66, 19-Apr-2011,
,Revenue,CCHD,S28A - Over 65,Residential Homes,Aspects &  Milestones Trust,1003.67, 19-Apr-2011,
,Revenue,CCHD,S28A - Over 65,Residential Homes,Aspects &  Milestones Trust,4804.2, 19-Apr-2011,
,Revenue,CCHD,Under 65s PWLD - KH,Residential Homes,Aspects &  Milestones Trust,3078.75, 19-Apr-2011,
,Revenue,CCHD,Under 65s PWLD - KH,Residential Homes,Aspects &  Milestones Trust,1028.85, 19-Apr-2011,
,Revenue,CCHD,S28A - Over 65,Residential Homes,Aspects &  Milestones Trust,3175.98, 19-Apr-2011,
,Revenue,CCHD,S28A - Over 65,Residential Homes,Aspects &  Milestones Trust,1063.11, 19-Apr-2011,
,Revenue,CCHD,S28A - Over 65,Residential Homes,Aspects &  Milestones Trust,3933.45, 19-Apr-2011,
,Revenue,CCHD,S28A - Over 65,Residential Homes,Aspects &  Milestones Trust,39600, 19-Apr-2011,
,Revenue,CCHD,S28A - Over 65,Residential Homes,Aspects &  Milestones Trust,5810.64, 19-Apr-2011,
,Revenue,CCHD,S28A - Over 65,Residential Homes,Aspects &  Milestones Trust,4641.36, 19-Apr-2011,
,Revenue,CCHD,S28A - Over 65,Residential Homes,Aspects &  Milestones Trust,3079.29, 19-Apr-2011,
,Revenue,CCHD,S28A - Over 65,Residential Homes,Aspects &  Milestones Trust,1030.88, 19-Apr-2011,
,Revenue,CCHD,S28A - Over 65,Residential Homes,Aspects &  Milestones Trust,4345.84, 19-Apr-2011,
,Revenue,CCHD,S28A - Over 65,Residential Homes,Aspects &  Milestones Trust,3999.12, 19-Apr-2011,
,Revenue,CCHD,S28A - Over 65,Residential Homes,Aspects &  Milestones Trust,1337.49, 19-Apr-2011,
,Revenue,CCHD,S28A - Over 65,Residential Homes,Aspects &  Milestones Trust,73837.29, 19-Apr-2011,
,Revenue,CCHD,S28A - Over 65,Residential Homes,Aspects &  Milestones Trust,4946.48, 19-Apr-2011,
,Revenue,CCHD,S28A - Under 65,Residential Homes,Aspects &  Milestones Trust,14849.63, 19-Apr-2011,
,Revenue,CCHD,Elderly Mental Health,Residential Homes,Aspects &  Milestones Trust,1185.68, 19-Apr-2011,
,Revenue,CCHD,S28A - Over 65,Residential Homes,Aspects &  Milestones Trust,3692.22, 19-Apr-2011,
,Revenue,CCHD,S28A - Over 65,Residential Homes,Aspects &  Milestones Trust,1235.19, 19-Apr-2011,
,Revenue,CCHD,S28A - Under 65,Residential Homes,Aspects &  Milestones Trust,5617.04, 19-Apr-2011,
,Revenue,CCHD,Section 117 Placements,Nursing Homes,Aspects &  Milestones Trust,1912, 19-Apr-2011,
,Revenue,CCHD,Elderly Mental Health,Nursing Homes,Aspects &  Milestones Trust,1068.75, 19-Apr-2011,
,Revenue,CCHD,Section 117 Placements,Nursing Homes,Aspects &  Milestones Trust,1912, 19-Apr-2011,
,Revenue,CCHD,Section 117 Placements,Residential Homes,Aspects &  Milestones Trust,1304, 19-Apr-2011,
,Revenue,CCHD,Under 65s PWLD - KD,Residential Homes,Aspects & Milestones Trust,8720.64, 19-Apr-2011,
,Revenue,CCHD,Under 65s PWLD - KD,Residential Homes,Aspects & Milestones Trust,10801.39, 19-Apr-2011,
,Revenue,CCHD,Supporting People Programme,Grants to Voluntary Bodies,Aspects and Milestones Trust,553.24, 20-Apr-2011,
,Revenue,CCHD,Supporting People Programme,Grants to Voluntary Bodies,Aspects and Milestones Trust,570.92, 20-Apr-2011,
,Revenue,CCHD,Purchase of Non-Res Care - KH,Private & Voluntary Day Care,Aspects and Milestones Trust,1211.25, 11-Apr-2011,
,Revenue,CCHD,Supported Living (S28a),Private & Voluntary Home Care,Aspects and Milestones Trust,3923.91, 08-Apr-2011,
,Revenue,CCHD,Elderly MH non-res purchasing,Private & Voluntary Day Care,Aspects and Milestones Trust,503.76, 04-Apr-2011,
,Revenue,CCHD,Elderly MH non-res purchasing,Private & Voluntary Day Care,Aspects and Milestones Trust,629.84, 04-Apr-2011,
,Revenue,CCHD,Section 117 Placements,Private & Voluntary Day Care,Aspects and Milestones Trust,635.74, 04-Apr-2011,
,Revenue,CCHD,Elderly MH non-res purchasing,Private & Voluntary Day Care,Aspects and Milestones Trust,712.46, 04-Apr-2011,
,Revenue,CCHD,Section 117 Placements,Private & Voluntary Day Care,Aspects and Milestones Trust,773.89, 04-Apr-2011,
,Revenue,CCHD,Elderly MH non-res purchasing,Private & Voluntary Day Care,Aspects and Milestones Trust,642.6, 04-Apr-2011,
,Revenue,CCHD,Younger MH non-res purchasing,Private & Voluntary Day Care,Aspects and Milestones Trust,620.81, 01-Apr-2011,
,Revenue,CCHD,Supported Living (S28a),Private & Voluntary Home Care,Aspects and Milestones Trust,4209.24, 08-Apr-2011,
,Revenue,CCHD,Supported Living (S28a),Private & Voluntary Home Care,Aspects and Milestones Trust,6288.76, 08-Apr-2011,
,Revenue,CCHD,Supported Living (S28a),Private & Voluntary Home Care,Aspects and Milestones Trust,5242.3, 08-Apr-2011,
,Revenue,CCHD,Supported Living - PS,Private & Voluntary Home Care,Aspects and Milestones Trust,870.32, 15-Apr-2011,
,Revenue,CCHD,Supported Living - PS,Private & Voluntary Home Care,Aspects and Milestones Trust,549.88, 15-Apr-2011,
,Revenue,CCHD,Supported Living - PS,Private & Voluntary Home Care,Aspects and Milestones Trust,1587.78, 15-Apr-2011,
,Revenue,CCHD,Supported Living - PS,Private & Voluntary Home Care,Aspects and Milestones Trust,802.24, 15-Apr-2011,
,Revenue,CCHD,Supported Living (S28a),Private & Voluntary Home Care,Aspects and Milestones Trust,573.3, 15-Apr-2011,
,Revenue,CCHD,Elderly MH non-res purchasing,Private & Voluntary Day Care,Aspects and Milestones Trust,580.07, 18-Apr-2011,
,Revenue,CCHD,Younger MH non-res purchasing,Private & Voluntary Day Care,Aspects and Milestones Trust,717.16, 18-Apr-2011,
,Revenue,CCHD,Elderly MH non-res purchasing,Private & Voluntary Day Care,Aspects and Milestones Trust,627.52, 18-Apr-2011,
,Revenue,CCHD,Section 117 Placements,Private & Voluntary Day Care,Aspects and Milestones Trust,665.73, 18-Apr-2011,
,Revenue,CCHD,Supported Living - PS,Private & Voluntary Home Care,Aspects and Milestones Trust,1038.65, 18-Apr-2011,
,Revenue,CCHD,S28a Day Care,Private & Voluntary Day Care,Aspects and Milestones Trust,749.25, 18-Apr-2011,
,Revenue,CCHD,Supported Living (S28a),Private & Voluntary Home Care,Aspects and Milestones Trust,840.4, 18-Apr-2011,
,Revenue,CCHD,Supported Living - PS,Private & Voluntary Home Care,Aspects and Milestones Trust,741.73, 18-Apr-2011,
,Revenue,CCHD,Supported Living (S28a),Private & Voluntary Home Care,Aspects and Milestones Trust,968.34, 18-Apr-2011,
,Revenue,CCHD,Supported Living - PS,Private & Voluntary Home Care,Aspects and Milestones Trust,799.2, 18-Apr-2011,
,Revenue,CCHD,Supported Living (S28a),Private & Voluntary Home Care,Aspects and Milestones Trust,1452.53, 18-Apr-2011,
,Revenue,CCHD,Supported Living - KH,Private & Voluntary Home Care,Aspects and Milestones Trust,835.68, 18-Apr-2011,
,Revenue,CCHD,Supported Living (S28a),Private & Voluntary Home Care,Aspects and Milestones Trust,3262.16, 18-Apr-2011,
,Revenue,CCHD,Supported Living (S28a),Private & Voluntary Home Care,Aspects and Milestones Trust,8751.49, 18-Apr-2011,
,Revenue,CCHD,Supported Living (S28a),Private & Voluntary Home Care,Aspects and Milestones Trust,9320.04, 18-Apr-2011,
,Revenue,CCHD,Supported Living (S28a),Private & Voluntary Home Care,Aspects and Milestones Trust,3728.92, 18-Apr-2011,
,Revenue,CCHD,Supported Living (S28a),Private & Voluntary Home Care,Aspects and Milestones Trust,3662.32, 18-Apr-2011,
,Revenue,CCHD,Supported Living (S28a),Private & Voluntary Home Care,Aspects and Milestones Trust,2610.88, 18-Apr-2011,
,Revenue,CCHD,Supported Living (S28a),Private & Voluntary Home Care,Aspects and Milestones Trust,3662.32, 18-Apr-2011,
,Revenue,CCHD,Supported Living (S28a),Private & Voluntary Home Care,Aspects and Milestones Trust,3662.32, 18-Apr-2011,
,Revenue,CCHD,Supported Living (S28a),Private & Voluntary Home Care,Aspects and Milestones Trust,4441.4, 18-Apr-2011,
,Revenue,CCHD,Supported Living (S28a),Private & Voluntary Home Care,Aspects and Milestones Trust,4143.36, 18-Apr-2011,
,Revenue,CCHD,Supported Living (S28a),Private & Voluntary Home Care,Aspects and Milestones Trust,4143.36, 18-Apr-2011,
,Revenue,CCHD,Purchase of Non-Res Care - PS,Private & Voluntary Day Care,Aspects and Milestones Trust,799.68, 20-Apr-2011,
,Revenue,CCHD,Purchase of Non-Res Care - PS,Private & Voluntary Day Care,Aspects and Milestones Trust,1213.87, 20-Apr-2011,
,Revenue,CCHD,Purchase of Non-Res Care - KH,Private & Voluntary Day Care,Aspects and Milestones Trust,918.39, 20-Apr-2011,
,Revenue,CCHD,Purchase of Non-Res Care - PS,Private & Voluntary Day Care,Aspects and Milestones Trust,1384.72, 20-Apr-2011,
,Revenue,CCHD,Purchase of Non-Res Care - PS,Private & Voluntary Day Care,Aspects and Milestones Trust,973.78, 20-Apr-2011,
,Revenue,CCHD,Purchase of Non-Res Care - PS,Private & Voluntary Day Care,Aspects and Milestones Trust,596.42, 20-Apr-2011,
,Revenue,CCHD,Purchase of Non-Res Care - PS,Private & Voluntary Day Care,Aspects and Milestones Trust,1122.05, 20-Apr-2011,
,Revenue,CCHD,Purchase of Non-Res Care - PS,Private & Voluntary Day Care,Aspects and Milestones Trust,1320.22, 20-Apr-2011,
,Revenue,CCHD,Purchase of Non-Res Care - KH,Private & Voluntary Day Care,Aspects and Milestones Trust,651.41, 20-Apr-2011,
,Revenue,CCHD,Purchase of Non-Res Care - KH,Private & Voluntary Day Care,Aspects and Milestones Trust,868.37, 20-Apr-2011,
,Revenue,CCHD,Purchase of Non-Res Care - KH,Private & Voluntary Day Care,Aspects and Milestones Trust,978.56, 20-Apr-2011,
,Revenue,CCHD,Supported Living (S28a),Private & Voluntary Home Care,Aspects and Milestones Trust,571.83, 20-Apr-2011,
,Revenue,CCHD,Purchase of Non-Res Care - PS,Private & Voluntary Day Care,Aspects and Milestones Trust,1319.01, 20-Apr-2011,
,Revenue,CCHD,Purchase of Non-Res Care - KH,Private & Voluntary Day Care,Aspects and Milestones Trust,1416.71, 20-Apr-2011,
,Revenue,CCHD,Purchase of Non-Res Care - KH,Private & Voluntary Day Care,Aspects and Milestones Trust,1092.54, 20-Apr-2011,
,Revenue,CCHD,S28a Day Care,Private & Voluntary Day Care,Aspects and Milestones Trust,829.17, 20-Apr-2011,
,Revenue,CCHD,Purchase of Non-Res Care - KD,Private & Voluntary Day Care,Aspects and Milestones Trust,1557.16, 20-Apr-2011,
,Revenue,CCHD,Supported Living (S28a),Private & Voluntary Home Care,Aspects and Milestones Trust,14704.5, 20-Apr-2011,
,Revenue,CCHD,Elderly MH non-res purchasing,Private & Voluntary Day Care,Aspects and Milestones Trust,544.03, 20-Apr-2011,
,Revenue,CCHD,Elderly MH non-res purchasing,Private & Voluntary Day Care,Aspects and Milestones Trust,837.8, 20-Apr-2011,
,Revenue,CCHD,Younger MH non-res purchasing,Private & Voluntary Day Care,Aspects and Milestones Trust,622.38, 20-Apr-2011,
,Revenue,CCHD,Section 117 Placements,Private & Voluntary Day Care,Aspects and Milestones Trust,1988.79, 20-Apr-2011,
,Revenue,CCHD,Section 117 Placements,Private & Voluntary Day Care,Aspects and Milestones Trust,588.1, 20-Apr-2011,
,Revenue,CCHD,Younger MH non-res purchasing,Private & Voluntary Day Care,Aspects and Milestones Trust,763.61, 20-Apr-2011,
,Revenue,CCHD,Supported Living (S28a),Private & Voluntary Home Care,Aspects and Milestones Trust,4864.9, 20-Apr-2011,
,Revenue,CCHD,Supported Living (S28a),Private & Voluntary Home Care,Aspects and Milestones Trust,2892, 20-Apr-2011,
,Revenue,CCHD,Supported Living (S28a),Private & Voluntary Home Care,Aspects and Milestones Trust,2992, 20-Apr-2011,
,Revenue,CCHD,Supported Living (S28a),Private & Voluntary Home Care,Aspects and Milestones Trust,2904, 20-Apr-2011,
,Revenue,CCHD,Supported Living - PS,Private & Voluntary Home Care,Aspects and Milestones Trust,16893.2, 20-Apr-2011,
,Revenue,CCHD,Supported Living - PS,Private & Voluntary Home Care,Aspects and Milestones Trust,21116.5, 20-Apr-2011,
,Revenue,CCHD,Supported Living - PS,Private & Voluntary Home Care,Aspects and Milestones Trust,16893.2, 20-Apr-2011,
,Revenue,CCHD,Supported Living - KH,Private & Voluntary Home Care,Aspects and Milestones Trust,1413.14, 20-Apr-2011,
,Revenue,CCHD,Supported Living - KH,Private & Voluntary Home Care,Aspects and Milestones Trust,2718.56, 20-Apr-2011,
,Revenue,CCHD,Supported Living - KH,Private & Voluntary Home Care,Aspects and Milestones Trust,3433, 20-Apr-2011,
,Revenue,CCHD,Supported Living - KH,Private & Voluntary Home Care,Aspects and Milestones Trust,2888, 20-Apr-2011,
,Revenue,CCHD,Under 65s PWLD - KH,Residential Homes,Autism Specialised Care Homes,5427.11, 19-Apr-2011,
,Revenue,CCHD,Training - Adult Services,Training Expenses,Avenues Cafe,1062, 04-Apr-2011,
,Revenue,CCHD,Younger Adult Mental Health,Management Contract - Unisys,Avon & Wiltshire Mental Health,20000, 12-Apr-2011,
,Revenue,CCHD,Woodleaze,Prop.Serv. General Repairs,Avon Armour Ltd,1695, 27-Apr-2011,
,Revenue,CCHD,Purchase of RAC places,Bus Revenue Support,Bath & North East Somerset Dist Council,9114.7, 18-Apr-2011,
,Revenue,CCHD,Purchase of RAC places,Other L.A.'s - General,Bath & North East Somerset Dist Council,1467.56, 18-Apr-2011,
,Revenue,CCHD,HRD Grant - Main,Training Expenses,Bawa Healthcare & Leisure,828.33, 14-Apr-2011,
,Revenue,CCHD,Elderly Mental Health,Residential Homes,Beaufort House,1391.04, 19-Apr-2011,
,Revenue,CCHD,Frenchay Hospital Purchasing,Residential Homes,Beaufort House,502.74, 19-Apr-2011,
,Revenue,CCHD,Elderly Mental Health,Residential Homes,Beaufort House,1060.95, 19-Apr-2011,
,Revenue,CCHD,Frenchay Hospital Purchasing,Residential Homes,Beaufort House,944.07, 19-Apr-2011,
,Revenue,CCHD,Elderly Mental Health,Residential Homes,Beaufort House,1316.2, 19-Apr-2011,
,Revenue,CCHD,Frenchay Hospital Purchasing,Residential Homes,Beaufort House,947.85, 19-Apr-2011,
,Revenue,CCHD,Elderly Mental Health,Residential Homes,Beaufort House,1309.32, 19-Apr-2011,
,Revenue,CCHD,Elderly Mental Health,Residential Homes,Beaufort House,1328.76, 19-Apr-2011,
,Revenue,CCHD,Elderly Mental Health,Residential Homes,Beaufort House,988.32, 19-Apr-2011,
,Revenue,CCHD,Elderly Purchasing - North,Residential Homes,Beaufort House,1690.44, 19-Apr-2011,
,Revenue,CCHD,Elderly Mental Health,Residential Homes,Beaufort House,753.64, 19-Apr-2011,
,Revenue,CCHD,Elderly Mental Health,Residential Homes,Beaufort House,1368.8, 19-Apr-2011,
,Revenue,CCHD,Southmead Hospital Purchasing,Residential Homes,Beaufort House,1758.8, 19-Apr-2011,
,Revenue,CCHD,Elderly Mental Health,Residential Homes,Beaufort House,774.12, 19-Apr-2011,
,Revenue,CCHD,Elderly Mental Health,Residential Homes,Beaufort House,1241.19, 19-Apr-2011,
,Revenue,CCHD,Elderly PWLD - KH,Residential Homes,Bedrock Lodge,2839.08, 19-Apr-2011,
,Revenue,CCHD,Elderly PWLD - KH,Residential Homes,Bedrock Lodge,41823.57, 19-Apr-2011,
,Revenue,CCHD,Section 117 Placements MH Younger,Residential Homes,Bedrock Lodge,1790.12, 19-Apr-2011,
,Revenue,CCHD,Frenchay Hospital Purchasing,Nursing Homes,Beech House,1132.8, 19-Apr-2011,
,Revenue,CCHD,Elderly Purchasing - North,Nursing Homes,Beech House,782.82, 19-Apr-2011,
,Revenue,CCHD,Frenchay Hospital Purchasing,Nursing Homes,Beech House,1173.81, 19-Apr-2011,
,Revenue,CCHD,Southmead Hospital Purchasing,Nursing Homes,Beech House,7716.03, 19-Apr-2011,
,Revenue,CCHD,Southmead Hospital Purchasing,Nursing Homes,Beech House,1074.27, 19-Apr-2011,
,Revenue,CCHD,Elderly Purchasing - North,Nursing Homes,Beech House,1117.38, 19-Apr-2011,
,Revenue,CCHD,Elderly Purchasing - North,Nursing Homes,Beech House,1915.84, 19-Apr-2011,
,Revenue,CCHD,Elderly Purchasing - North,Nursing Homes,Beech House,810.99, 19-Apr-2011,
,Revenue,CCHD,South Glos Users in South Glos Homes,Nursing Homes,Beech House,869.6, 19-Apr-2011,
,Revenue,CCHD,Elderly Purchasing - North,Nursing Homes,Beech House,1403.2, 19-Apr-2011,
,Revenue,CCHD,Southmead Hospital Purchasing,Nursing Homes,Beech House,1593.2, 19-Apr-2011,
,Revenue,CCHD,Elderly Purchasing - North,Nursing Homes,Beech House,1220, 19-Apr-2011,
,Revenue,CCHD,Section 117 Placements MH Younger,Nursing Homes,Bloomfield Care Centre,791.3, 19-Apr-2011,
,Revenue,CCHD,Home Care Purch South,Other Small Contracts,Bradley House Home Care Services,90.51, 11-Apr-2011,
,Revenue,CCHD,Home Care Purch North,Other Small Contracts,Bradley House Home Care Services,2538.59, 11-Apr-2011,
,Revenue,CCHD,Day Care - South,Private & Voluntary Day Care,Bradley House Home Care Services,47.41, 11-Apr-2011,
,Revenue,CCHD,Day Care - North,Private & Voluntary Day Care,Bradley House Home Care Services,237.05, 11-Apr-2011,
,Revenue,CCHD,Home Care Purch South,Other Small Contracts,Bradley House Home Care Services,86.2, 27-Apr-2011,
,Revenue,CCHD,Home Care Purch North,Other Small Contracts,Bradley House Home Care Services,2555.83, 27-Apr-2011,
,Revenue,CCHD,Day Care - South,Private & Voluntary Day Care,Bradley House Home Care Services,60.34, 27-Apr-2011,
,Revenue,CCHD,Day Care - North,Private & Voluntary Day Care,Bradley House Home Care Services,241.36, 27-Apr-2011,
,Revenue,CCHD,Elderly MH Home Care,Other Small Contracts,Bradley House Home Care Services,51.72, 27-Apr-2011,
,Revenue,CCHD,Home Care Purch South,Other Small Contracts,Bradley House Home Care Services,81.89, 27-Apr-2011,
,Revenue,CCHD,Home Care Purch North,Other Small Contracts,Bradley House Home Care Services,2486.87, 27-Apr-2011,
,Revenue,CCHD,Day Care - South,Private & Voluntary Day Care,Bradley House Home Care Services,51.72, 27-Apr-2011,
,Revenue,CCHD,Day Care - North,Private & Voluntary Day Care,Bradley House Home Care Services,232.74, 27-Apr-2011,
,Revenue,CCHD,Elderly MH Home Care,Other Small Contracts,Bradley House Home Care Services,176.71, 27-Apr-2011,
,Revenue,CCHD,Home Care Purch South,Other Small Contracts,Bradley House Home Care Services,86.2, 11-Apr-2011,
,Revenue,CCHD,Home Care Purch North,Other Small Contracts,Bradley House Home Care Services,2538.59, 11-Apr-2011,
,Revenue,CCHD,Day Care - South,Private & Voluntary Day Care,Bradley House Home Care Services,56.03, 11-Apr-2011,
,Revenue,CCHD,Day Care - North,Private & Voluntary Day Care,Bradley House Home Care Services,237.05, 11-Apr-2011,
,Revenue,CCHD,Elderly MH Home Care,Other Small Contracts,Bradley House Home Care Services,142.23, 11-Apr-2011,
,Revenue,CCHD,Elderly Purchasing - North,Residential Homes,Bridge House Care Home,924.45, 19-Apr-2011,
,Revenue,CCHD,Elderly Purchasing - North,Residential Homes,Bridge House Care Home,1054.4, 19-Apr-2011,
,Revenue,CCHD,Elderly Purchasing - North,Residential Homes,Bridge House Care Home,818.97, 19-Apr-2011,
,Revenue,CCHD,Elderly Mental Health,Residential Homes,Brightbow,2487.2, 19-Apr-2011,
,Revenue,CCHD,MH Purchasing - Younger,Residential Homes,Brightbow,969.16, 19-Apr-2011,
,Revenue,CCHD,Older People's Commissioned Se,Grants to Voluntary Bodies,Bristol Area Stroke Foundation,4500, 05-Apr-2011,
,Revenue,CCHD,Supporting People Programme,Grants to Voluntary Bodies,Bristol Care & Repair,9780.82, 27-Apr-2011,
,Revenue,CCHD,Supporting People Programme,Grants to Voluntary Bodies,Bristol Care & Repair,9780.82, 27-Apr-2011,
,Revenue,CCHD,Supporting People Programme,Grants to Voluntary Bodies,Bristol Care & Repair,9780.82, 27-Apr-2011,
,Revenue,CCHD,Other LAs in South Glos Homes,Nursing Homes,Bristol City Council,559.03, 04-Apr-2011,
,Revenue,CCHD,Getting a Life Project,Other Supplies & Services,Bristol City Council,13459.44, 18-Apr-2011,
,Revenue,CCHD,Supporting People Programme,Grants to Voluntary Bodies,Bristol Houses,9639.6, 27-Apr-2011,
,Revenue,CCHD,Supporting People Programme,Grants to Voluntary Bodies,Bristol Houses,9639.6, 27-Apr-2011,
,Revenue,CCHD,Supporting People Programme,Grants to Voluntary Bodies,Bristol Houses,8262.51, 27-Apr-2011,
,Revenue,CCHD,Supported Living - KD,Private & Voluntary Home Care,Bristol Houses UK Ltd,1269.1, 13-Apr-2011,
,Revenue,CCHD,Supported Living - KD,Private & Voluntary Home Care,Bristol Houses UK Ltd,1020.43, 13-Apr-2011,
,Revenue,CCHD,Supported Living - KD,Private & Voluntary Home Care,Bristol Houses UK Ltd,2058, 13-Apr-2011,
,Revenue,CCHD,Day Care - North,Private & Voluntary Day Care,Bristol Houses UK Ltd,1534.57, 27-Apr-2011,
,Revenue,CCHD,Supported Living - KD,Private & Voluntary Home Care,Bristol Houses UK Ltd,1029, 13-Apr-2011,
,Revenue,CCHD,Day Care - North,Private & Voluntary Day Care,Bristol Houses UK Ltd,2641.1, 28-Apr-2011,
,Revenue,CCHD,Emersons Green Offices,Water Charges,Bristol Wessex Billing Services Limited,926.2, 15-Apr-2011,
,Revenue,CCHD,Charlton,Water Charges,Bristol Wessex Billing Services Limited,3142.09, 19-Apr-2011,
,Revenue,CCHD,Downend Day Centre,Water Charges,Bristol Wessex Billing Services Limited,1495.68, 07-Apr-2011,
,Revenue,CCHD,Kerr House,Water Charges,Bristol Wessex Billing Services Limited,5741.61, 14-Apr-2011,
,Revenue,CCHD,Kerr House NRC,Water Charges,Bristol Wessex Billing Services Limited,1014.41, 14-Apr-2011,
,Revenue,CCHD,Chipping Sodbury Memorial Day,Gas,British Gas Business,1354.1, 14-Apr-2011,
,Revenue,CCHD,Supporting People Programme,Grants to Voluntary Bodies,Bromford Housing Group,14293.2, 27-Apr-2011,
,Revenue,CCHD,Supporting People Programme,Grants to Voluntary Bodies,Bromford Housing Group,14293.2, 27-Apr-2011,
,Revenue,CCHD,Supporting People Programme,Grants to Voluntary Bodies,Bromford Housing Group,6636.13, 27-Apr-2011,
,Revenue,CCHD,Elderly Purchasing - North,Residential Homes,Brook Lane Residential Home,953.64, 19-Apr-2011,
,Revenue,CCHD,South Glos Users in South Glos Homes,Nursing Homes,Brunel Care,1739.2, 19-Apr-2011,
,Revenue,CCHD,South Glos Users in South Glos Homes,Nursing Homes,Brunel Care,869.6, 19-Apr-2011,
,Revenue,CCHD,South Glos Users in South Glos Homes,Nursing Homes,Brunel Care,714.31, 19-Apr-2011,
,Revenue,CCHD,South Glos Users in South Glos Homes,Nursing Homes,Brunel Care,2624.33, 19-Apr-2011,
,Revenue,CCHD,Section 117 Placements,Nursing Homes,Brunel Care,2366.86, 19-Apr-2011,
,Revenue,CCHD,Southmead Hospital Purchasing,Residential Homes,Brunel Care,927.84, 19-Apr-2011,
,Revenue,CCHD,Southmead Hospital Purchasing,Residential Homes,Brunel Care,975.24, 19-Apr-2011,
,Revenue,CCHD,Elderly MH non-res purchasing,Private & Voluntary Day Care,Brunelcare,548, 04-Apr-2011,
,Revenue,CCHD,Contracts & Commissioning Team,Other Small Contracts,Brunelcare,13500, 01-Apr-2011,
,Revenue,CCHD,Contracts & Commissioning Team,Other Small Contracts,Brunelcare,13500, 08-Apr-2011,
,Revenue,CCHD,Contracts & Commissioning Team,Other Small Contracts,Brunelcare,13500, 15-Apr-2011,
,Revenue,CCHD,Contracts & Commissioning Team,Other Small Contracts,Brunelcare,13500, 20-Apr-2011,
,Revenue,CCHD,Contracts & Commissioning Team,Other Small Contracts,Brunelcare,13500, 28-Apr-2011,
,Revenue,CCHD,Charlton,Agency Staff (Admin/Support Staff) Pay,BS Project Services Limited,493.17, 19-Apr-2011,
,Revenue,CCHD,Information Systems - Software,Computer Equipment - Purchase,BT Global Services Solutions,759.31, 14-Apr-2011,
,Revenue,CCHD,Purchasing Phys Dis - North,Nursing Homes,Bupa Care Services  Bridge House,5700.16, 19-Apr-2011,
,Revenue,CCHD,South Glos Users in all other LA Homes,Nursing Homes,Bupa Care Services  Bridge House,598.4, 19-Apr-2011,
,Revenue,CCHD,Minor Adaptations Service,Prop.Serv. General Repairs,C A P Security Limited,1216.97, 14-Apr-2011,
,Revenue,CCHD,Supported Living - KD,Private & Voluntary Home Care,Camphill Communities Thornbury Limited,1640.56, 08-Apr-2011,
,Revenue,CCHD,Supported Living - KD,Private & Voluntary Home Care,Camphill Communities Thornbury Limited,1754, 08-Apr-2011,
,Revenue,CCHD,Supported Living - KD,Private & Voluntary Home Care,Camphill Communities Thornbury Limited,1315.5, 11-Apr-2011,
,Revenue,CCHD,Supported Living - KD,Private & Voluntary Home Care,Camphill Communities Thornbury Limited,1895.76, 18-Apr-2011,
,Revenue,CCHD,Supported Living - KD,Private & Voluntary Home Care,Camphill Communities Thornbury Limited,1415.76, 18-Apr-2011,
,Revenue,CCHD,Supported Living - KD,Private & Voluntary Home Care,Camphill Communities Thornbury Limited,1640.56, 18-Apr-2011,
,Revenue,CCHD,Under 65s PWLD - KD,Residential Homes,Camphill Devon Community,3154.28, 19-Apr-2011,
,Revenue,CCHD,Under 65s PWLD - KD,Residential Homes,Camphill Devon Community,2211.04, 19-Apr-2011,
,Revenue,CCHD,Supported Living - KD,Private & Voluntary Home Care,Care Horizons Limited,4613.93, 08-Apr-2011,
,Revenue,CCHD,Purchase of Non-Res Care - KD,Private & Voluntary Day Care,Care Horizons Limited,1013.28, 08-Apr-2011,
,Revenue,CCHD,Purchase of Non-Res Care - KD,Private & Voluntary Day Care,Care Horizons Limited,1255.65, 08-Apr-2011,
,Revenue,CCHD,Supported Living - KH,Private & Voluntary Home Care,Care Horizons Limited,1694.47, 06-Apr-2011,
,Revenue,CCHD,Supported Living - KD,Private & Voluntary Home Care,Care Horizons Limited,5234.74, 08-Apr-2011,
,Revenue,CCHD,Day Care - North,Private & Voluntary Day Care,Care Horizons Limited,733.82, 28-Apr-2011,
,Revenue,CCHD,Supported Living - KH,Private & Voluntary Home Care,Care Horizons Limited,1904.26, 27-Apr-2011,
,Revenue,CCHD,Electronic Home Care Monitoring,Other Supplies & Services,Care monitoring 2000 Ltd,5354.52, 28-Apr-2011,
,Revenue,CCHD,Home Care - General,Other Supplies & Services,Care monitoring 2000 Ltd,7202.8, 28-Apr-2011,
,Revenue,CCHD,Charlton,Prop.Serv. General Repairs,Care Shop Limited,470, 14-Apr-2011,
,Revenue,CCHD,Charlton,Prop.Serv. General Repairs,Care Shop Limited,744, 14-Apr-2011,
,Revenue,CCHD,Contracts & Commissioning Team,Other Small Contracts,Care UK Homecare,20000, 01-Apr-2011,
,Revenue,CCHD,Contracts & Commissioning Team,Other Small Contracts,Care UK Homecare,20000, 08-Apr-2011,
,Revenue,CCHD,Contracts & Commissioning Team,Other Small Contracts,Care UK Homecare,20000, 15-Apr-2011,
,Revenue,CCHD,Contracts & Commissioning Team,Other Small Contracts,Care UK Homecare,20000, 20-Apr-2011,
,Revenue,CCHD,Contracts & Commissioning Team,Other Small Contracts,Care UK Homecare,20000, 28-Apr-2011,
,Revenue,CCHD,Contracts & Commissioning Team,Other Small Contracts,Carewatch (Bristol),2500, 01-Apr-2011,
,Revenue,CCHD,Contracts & Commissioning Team,Other Small Contracts,Carewatch (Bristol),2500, 08-Apr-2011,
,Revenue,CCHD,Contracts & Commissioning Team,Other Small Contracts,Carewatch (Bristol),2500, 15-Apr-2011,
,Revenue,CCHD,Contracts & Commissioning Team,Other Small Contracts,Carewatch (Bristol),2500, 20-Apr-2011,
,Revenue,CCHD,Contracts & Commissioning Team,Other Small Contracts,Carewatch (Bristol),2500, 28-Apr-2011,
,Revenue,CCHD,Frenchay Hospital Purchasing,Nursing Homes,Caring Homes Group Ltd,1360.35, 19-Apr-2011,
,Revenue,CCHD,Under 65s PWLD - PS,Nursing Homes,Carriage Court,5766.48, 19-Apr-2011,
,Revenue,CCHD,Detained,Nursing Homes,Castlebeck Care (Teesdale) Limited,16166.66, 13-Apr-2011,
,Revenue,CCHD,Frenchay Hospital Purchasing,Nursing Homes,Cedar Care Homes Ltd,1059.52, 19-Apr-2011,
,Revenue,CCHD,Elderly Purchasing - South,Residential Homes,Cepen Lodge Care Home,2120, 19-Apr-2011,
,Revenue,CCHD,Elderly Purchasing - South,Residential Homes,Cepen Lodge Care Home,2120, 19-Apr-2011,
,Revenue,CCHD,Elderly PWLD - PS,Residential Homes,Charlton House,1966.36, 19-Apr-2011,
,Revenue,CCHD,Elderly Mental Health,Residential Homes,Chatsworth House,1300.56, 19-Apr-2011,
,Revenue,CCHD,Southmead Hospital Purchasing,Residential Homes,Chatsworth House,1032.12, 19-Apr-2011,
,Revenue,CCHD,S28A - Under 65,Residential Homes,Chescombe Lodge,8370.44, 19-Apr-2011,
,Revenue,CCHD,Supported Living - KD,Private & Voluntary Home Care,Cintre Community,1270.67, 08-Apr-2011,
,Revenue,CCHD,Under 65s PWLD - PS,Residential Homes,Cintre Community,4683.6, 19-Apr-2011,
,Revenue,CCHD,Finance,Other Supplies & Services,CIPFA,595, 15-Apr-2011,
,Revenue,CCHD,Homelessness Grant,Computer Services,Civica UK Limited,900, 13-Apr-2011,
,Revenue,CCHD,Homelessness Grant,Computer Services,Civica UK Limited,700, 15-Apr-2011,
,Revenue,CCHD,Homelessness Grant,Computer Services,Civica UK Limited,1400, 20-Apr-2011,
,Revenue,CCHD,Elderly Purchasing - North,Residential Homes,Cleeve Lodge,1197.33, 19-Apr-2011,
,Revenue,CCHD,Southmead Hospital Purchasing,Residential Homes,Cleeve Lodge,850.23, 19-Apr-2011,
,Revenue,CCHD,Southmead Hospital Purchasing,Residential Homes,Cleeve Lodge,2493.6, 19-Apr-2011,
,Revenue,CCHD,Southmead Hospital Purchasing,Residential Homes,Cleeve Lodge,1341.04, 19-Apr-2011,
,Revenue,CCHD,Southmead Hospital Purchasing,Residential Homes,Cleeve Lodge,1245.25, 19-Apr-2011,
,Revenue,CCHD,Frenchay Hospital Purchasing,Residential Homes,Cleeve Lodge,1373.82, 19-Apr-2011,
,Revenue,CCHD,Elderly Purchasing - South,Residential Homes,Cleeve Lodge,1290.08, 19-Apr-2011,
,Revenue,CCHD,Elderly Purchasing - South,Residential Homes,Cleeve Lodge,1326.68, 19-Apr-2011,
,Revenue,CCHD,Elderly Purchasing - North,Residential Homes,Cleeve Lodge,1497.32, 19-Apr-2011,
,Revenue,CCHD,Elderly Purchasing - North,Residential Homes,Cleeve Lodge,1706.12, 19-Apr-2011,
,Revenue,CCHD,Information Systems - Software,Software Support & Maintenance,Coldharbour Systems Limited,2742.5, 20-Apr-2011,
,Revenue,CCHD,Elderly Purchasing - South,Residential Homes,Collingwood Residential Home,799.83, 19-Apr-2011,
,Revenue,CCHD,Elderly Purchasing - South,Residential Homes,Collingwood Residential Home,973.38, 19-Apr-2011,
,Revenue,CCHD,Frenchay Hospital Purchasing,Residential Homes,Collingwood Residential Home,910.95, 19-Apr-2011,
,Revenue,CCHD,Elderly Mental Health,Residential Homes,Collingwood Residential Home,1304.68, 19-Apr-2011,
,Revenue,CCHD,Southmead Hospital Purchasing,Residential Homes,Collingwood Residential Home,913.89, 19-Apr-2011,
,Revenue,CCHD,Elderly Purchasing - South,Residential Homes,Collingwood Residential Home,1860, 19-Apr-2011,
,Revenue,CCHD,Elderly Purchasing - South,Residential Homes,Collingwood Residential Home,1256.96, 19-Apr-2011,
,Revenue,CCHD,Elderly Purchasing - North,Residential Homes,Collingwood Residential Home,1117.68, 19-Apr-2011,
,Revenue,CCHD,Elderly Purchasing - South,Residential Homes,Collingwood Residential Home,1230, 19-Apr-2011,
,Revenue,CCHD,Elderly Purchasing - South,Residential Homes,Collingwood Residential Home,1405.68, 19-Apr-2011,
,Revenue,CCHD,S28A - Under 65,Residential Homes,Compass Care,9444.24, 19-Apr-2011,
,Revenue,CCHD,Bed and Breakfast,Bed & Breakfast,Connolly & Callaghan Limited,581, 12-Apr-2011,
,Revenue,CCHD,Bed and Breakfast,Bed & Breakfast,Connolly & Callaghan Limited,581, 12-Apr-2011,
,Revenue,CCHD,Bed and Breakfast,Bed & Breakfast,Connolly & Callaghan Limited,441, 11-Apr-2011,
,Revenue,CCHD,Bed and Breakfast,Bed & Breakfast,Connolly & Callaghan Limited,581, 18-Apr-2011,
,Revenue,CCHD,Bed and Breakfast,Bed & Breakfast,Connolly & Callaghan Limited,441, 18-Apr-2011,
,Revenue,CCHD,Bed and Breakfast,Bed & Breakfast,Connolly & Callaghan Limited,511, 27-Apr-2011,
,Revenue,CCHD,Bed and Breakfast,Bed & Breakfast,Connolly & Callaghan Limited,581, 27-Apr-2011,
,Revenue,CCHD,Bed and Breakfast,Bed & Breakfast,Connolly & Callaghan Limited,441, 27-Apr-2011,
,Revenue,CCHD,Under 65s PWLD - KD,Residential Homes,Consensus Support Services Ltd,8942, 06-Apr-2011,
,Revenue,CCHD,Under 65s PWLD - PS,Residential Homes,Consensus Support Services Ltd,9189.2, 12-Apr-2011,
,Revenue,CCHD,Wapley Court,Gas,Corona Energy Retail 3 Limited,889.44, 06-Apr-2011,
,Revenue,CCHD,Blackhorse RAC,Gas,Corona Energy Retail 3 Limited,2129.96, 06-Apr-2011,
,Revenue,CCHD,Downend Day Centre,Gas,Corona Energy Retail 3 Limited,2223.03, 06-Apr-2011,
,Revenue,CCHD,Newton House,Gas,Corona Energy Retail 3 Limited,2433.94, 06-Apr-2011,
,Revenue,CCHD,Kerr House,Gas,Corona Energy Retail 3 Limited,1413.8, 06-Apr-2011,
,Revenue,CCHD,Woodleaze,Gas,Corona Energy Retail 3 Limited,1510.98, 06-Apr-2011,
,Revenue,CCHD,Alexandra Way,Gas,Corona Energy Retail 3 Limited,1824.44, 06-Apr-2011,
,Revenue,CCHD,Charlton,Gas,Corona Energy Retail 3 Limited,1386.48, 06-Apr-2011,
,Revenue,CCHD,Detained,Nursing Homes,Craegmoor Facilities Company Ltd,13135.8, 20-Apr-2011,
,Revenue,CCHD,Elderly PWLD - KH,Residential Homes,Craegmoor Healthcare,4803.28, 19-Apr-2011,
,Revenue,CCHD,Under 65s PWLD - KH,Residential Homes,Craegmoor Healthcare,4031.92, 19-Apr-2011,
,Revenue,CCHD,Under 65s PWLD - KH,Residential Homes,Craegmoor Healthcare,4827.68, 19-Apr-2011,
,Revenue,CCHD,Under 65s PWLD - KH,Residential Homes,Craegmoor Healthcare,13468.64, 19-Apr-2011,
,Revenue,CCHD,Under 65s PWLD - PS,Residential Homes,Craegmoor Healthcare,5423, 19-Apr-2011,
,Revenue,CCHD,Elderly PWLD - KH,Residential Homes,Craegmoor Healthcare,2474.61, 19-Apr-2011,
,Revenue,CCHD,Elderly PWLD - KH,Residential Homes,Craegmoor Healthcare,37346.79, 19-Apr-2011,
,Revenue,CCHD,Under 65s PWLD - KD,Residential Homes,Craegmoor Healthcare,2723.4, 19-Apr-2011,
,Revenue,CCHD,S28A - Under 65,Residential Homes,Craegmoor Healthcare,3380.1, 19-Apr-2011,
,Revenue,CCHD,S28A - Under 65,Residential Homes,Craegmoor Healthcare,1129.3, 19-Apr-2011,
,Revenue,CCHD,S28A - Under 65,Residential Homes,Craegmoor Healthcare,5511.52, 19-Apr-2011,
,Revenue,CCHD,S28A - Over 65,Residential Homes,Craegmoor Healthcare,5176.17, 19-Apr-2011,
,Revenue,CCHD,S28A - Over 65,Residential Homes,Craegmoor Healthcare,72046.68, 19-Apr-2011,
,Revenue,CCHD,Under 65s PWLD - KH,Residential Homes,Craegmoor Healthcare,7038.23, 19-Apr-2011,
,Revenue,CCHD,Under 65s PWLD - KD,Residential Homes,Craegmoor Healthcare,2151.88, 19-Apr-2011,
,Revenue,CCHD,Under 65s PWLD - KH,Residential Homes,Craegmoor Healthcare,3601.47, 19-Apr-2011,
,Revenue,CCHD,Under 65s PWLD - KH,Residential Homes,Craegmoor Healthcare,1203.09, 19-Apr-2011,
,Revenue,CCHD,S28A - Under 65,Residential Homes,Craegmoor Healthcare,5707.6, 19-Apr-2011,
,Revenue,CCHD,S28A - Under 65,Residential Homes,Cream Ii Ltd,7735.13, 19-Apr-2011,
,Revenue,CCHD,S28A - Under 65,Residential Homes,Creedy Court,6701.13, 19-Apr-2011,
,Revenue,CCHD,S28A - Under 65,Residential Homes,Creedy Court,2238.16, 19-Apr-2011,
,Revenue,CCHD,S28A - Over 65,Residential Homes,Creedy Court,5575.59, 19-Apr-2011,
,Revenue,CCHD,S28A - Over 65,Residential Homes,Creedy Court,1862.98, 19-Apr-2011,
,Revenue,CCHD,S28A - Over 65,Residential Homes,Creedy Court,100637.28, 19-Apr-2011,
,Revenue,CCHD,Under 65s PWLD - PS,Residential Homes,Cromwell House,7808.64, 19-Apr-2011,
,Revenue,CCHD,Under 65s PWLD - PS,Residential Homes,Daneswood,10598.4, 19-Apr-2011,
,Revenue,CCHD,Under 65s PWLD - KD,Residential Homes,Daneswood,8761.4, 19-Apr-2011,
,Revenue,CCHD,Learning Difficulties PSL,Rent,Individual,1800, 20-Apr-2011,
,Revenue,CCHD,Day Care - South,Private & Voluntary Day Care,Deafblind UK,1105.08, 05-Apr-2011,
,Revenue,CCHD,Day Care - South,Private & Voluntary Day Care,Deafblind UK,2010, 05-Apr-2011,
,Revenue,CCHD,Day Care - North,Private & Voluntary Day Care,Deafblind UK,1161.16, 07-Apr-2011,
,Revenue,CCHD,Frenchay Hospital Purchasing,Nursing Homes,Desai Care Homes  C/O Waltham House,1181.34, 19-Apr-2011,
,Revenue,CCHD,Day Care - South,Private & Voluntary Day Care,Dhek Bhal,1222.4, 05-Apr-2011,
,Revenue,CCHD,Under 65s PWLD - KH,Residential Homes,Dimensions(Uk) Ltd,4698.6, 19-Apr-2011,
,Revenue,CCHD,Under 65s PWLD - PS,Residential Homes,Dimensions(Uk) Ltd,1711.52, 19-Apr-2011,
,Revenue,CCHD,Supporting People Programme,Grants to Voluntary Bodies,Drugs & Homeless Initiative,1109.36, 13-Apr-2011,
,Revenue,CCHD,Brokerage and Information Service,Grants to Voluntary Bodies,Drugs & Homeless Initiative,9210.09, 27-Apr-2011,
,Revenue,CCHD,Elderly Purchasing - South,Nursing Homes,Dunkirk Memorial House,1173.24, 19-Apr-2011,
,Revenue,CCHD,MH Purchasing - Younger,Residential Homes,Dunraven House,1802, 19-Apr-2011,
,Revenue,CCHD,Bed and Breakfast,Bed & Breakfast,E J Bartlett,637, 11-Apr-2011,
,Revenue,CCHD,Bed and Breakfast,Bed & Breakfast,E J Bartlett,455, 11-Apr-2011,
,Revenue,CCHD,Bed and Breakfast,Bed & Breakfast,E J Bartlett,637, 27-Apr-2011,
,Revenue,CCHD,Bed and Breakfast,Bed & Breakfast,E J Bartlett,455, 27-Apr-2011,
,Revenue,CCHD,Bed and Breakfast,Bed & Breakfast,E J Bartlett,702, 27-Apr-2011,
,Revenue,CCHD,Bed and Breakfast,Bed & Breakfast,E J Bartlett,637, 28-Apr-2011,
,Revenue,CCHD,Bed and Breakfast,Bed & Breakfast,E J Bartlett,455, 27-Apr-2011,
,Revenue,CCHD,Under 65s PWLD - KH,Residential Homes,East Court,2159.31, 19-Apr-2011,
,Revenue,CCHD,Blackhorse RAC,Electricity,EDF Energy 1 Limited,603, 27-Apr-2011,
,Revenue,CCHD,Blackhorse RAC,Electricity,EDF Energy 1 Limited,652.31, 27-Apr-2011,
,Revenue,CCHD,Charlton,Electricity,EDF Energy 1 Limited,1162.29, 07-Apr-2011,
,Revenue,CCHD,Kerr House,Electricity,EDF Energy 1 Limited,1013.66, 07-Apr-2011,
,Revenue,CCHD,Wapley Court,Electricity,EDF Energy 1 Limited,1152.12, 07-Apr-2011,
,Revenue,CCHD,Woodleaze,Electricity,EDF Energy 1 Limited,1051.4, 07-Apr-2011,
,Revenue,CCHD,Newton House,Electricity,EDF Energy 1 Limited,1049.23, 15-Apr-2011,
,Revenue,CCHD,Downend Day Centre,Electricity,EDF Energy 1 Limited,989.92, 07-Apr-2011,
,Revenue,CCHD,Alexandra Way,Electricity,EDF Energy 1 Limited,1244.56, 07-Apr-2011,
,Revenue,CCHD,Mental Capacity Act - Advocacy,Training Expenses,Edge Training,860, 01-Apr-2011,
,Revenue,CCHD,Section 117 Placements,Residential Homes,Edgecumbe Lodge,1879.56, 19-Apr-2011,
,Revenue,CCHD,Southmead Hospital Purchasing,Residential Homes,Edgecumbe Lodge,1085.14, 19-Apr-2011,
,Revenue,CCHD,Elderly Purchasing - South,Residential Homes,Edgecumbe Lodge,912.51, 19-Apr-2011,
,Revenue,CCHD,Frenchay Hospital Purchasing,Residential Homes,Edgecumbe Lodge,1080.04, 19-Apr-2011,
,Revenue,CCHD,Elderly Mental Health,Residential Homes,Edgecumbe Lodge,859.77, 19-Apr-2011,
,Revenue,CCHD,Elderly Mental Health,Residential Homes,Edgecumbe Lodge,2325.7, 19-Apr-2011,
,Revenue,CCHD,Elderly Mental Health,Residential Homes,Edgecumbe Lodge,864.03, 19-Apr-2011,
,Revenue,CCHD,Elderly PWLD - PS,Residential Homes,Edgemont House Ltd,1316.96, 19-Apr-2011,
,Revenue,CCHD,Frenchay Hospital Purchasing,Residential Homes,Edgemont House Ltd,930.09, 19-Apr-2011,
,Revenue,CCHD,Frenchay Hospital Purchasing,Residential Homes,Edgemont House Ltd,921.75, 19-Apr-2011,
,Revenue,CCHD,Elderly Purchasing - South,Residential Homes,Edgemont House Ltd,1088.52, 19-Apr-2011,
,Revenue,CCHD,Elderly Purchasing - South,Residential Homes,Edgemont House Ltd,946.95, 19-Apr-2011,
,Revenue,CCHD,Elderly Purchasing - South,Residential Homes,Edgemont House Ltd,1438.8, 19-Apr-2011,
,Revenue,CCHD,Elderly Purchasing - South,Residential Homes,Edgemont House Ltd,719.4, 19-Apr-2011,
,Revenue,CCHD,Elderly Purchasing - South,Nursing Homes,Edgemont View Nursing Home,1053.75, 19-Apr-2011,
,Revenue,CCHD,Frenchay Hospital Purchasing,Nursing Homes,Edgemont View Nursing Home,1001.85, 19-Apr-2011,
,Revenue,CCHD,Elderly Purchasing - North,Nursing Homes,Edgemont View Nursing Home,1080.63, 19-Apr-2011,
,Revenue,CCHD,Elderly Purchasing - South,Nursing Homes,Edgemont View Nursing Home,1260.32, 19-Apr-2011,
,Revenue,CCHD,Elderly Purchasing - South,Nursing Homes,Edgemont View Nursing Home,1432.14, 19-Apr-2011,
,Revenue,CCHD,Elderly Purchasing - South,Nursing Homes,Edgemont View Nursing Home,1189.65, 19-Apr-2011,
,Revenue,CCHD,Frenchay Hospital Purchasing,Nursing Homes,Edgemont View Nursing Home,1373.96, 19-Apr-2011,
,Revenue,CCHD,HRD Grant - Main,Training Expenses,Eils/Scils,3150, 14-Apr-2011,
,Revenue,CCHD,Supporting People Programme,Grants to Voluntary Bodies,Elim Housing Association Ltd,633.51, 13-Apr-2011,
,Revenue,CCHD,Frenchay Hospital Purchasing,Nursing Homes,Elmwood Nursing Home,2332.12, 19-Apr-2011,
,Revenue,CCHD,Younger MH non-res purchasing,Private & Voluntary Day Care,Enham,638.72, 08-Apr-2011,
,Revenue,CCHD,Training - Adult Services,Training Expenses,Equality & Diversity UK Limited,801, 15-Apr-2011,
,Revenue,CCHD,Southmead Hospital Purchasing,Residential Homes,Fairview Court,1246.11, 19-Apr-2011,
,Revenue,CCHD,Elderly Mental Health,Nursing Homes,Fairview Court,892.54, 19-Apr-2011,
,Revenue,CCHD,Elderly Mental Health,Nursing Homes,Fairview Court,773.12, 19-Apr-2011,
,Revenue,CCHD,Elderly Mental Health,Residential Homes,Fairview Court,1406.8, 19-Apr-2011,
,Revenue,CCHD,Frenchay Hospital Purchasing,Residential Homes,Fairview Court,1130.73, 19-Apr-2011,
,Revenue,CCHD,Elderly Mental Health,Residential Homes,Fairview Court,1878.8, 19-Apr-2011,
,Revenue,CCHD,Elderly Mental Health,Residential Homes,Fairview Court,1198.41, 19-Apr-2011,
,Revenue,CCHD,Elderly Mental Health,Nursing Homes,Fairview Court,590.57, 19-Apr-2011,
,Revenue,CCHD,Elderly Purchasing - South,Residential Homes,Fairview House,667.08, 19-Apr-2011,
,Revenue,CCHD,Frenchay Hospital Purchasing,Residential Homes,Fairview House,1260, 19-Apr-2011,
,Revenue,CCHD,Section 117 Placements,Residential Homes,Fairview House,1840, 19-Apr-2011,
,Revenue,CCHD,Elderly Mental Health,Residential Homes,Fairview House,1259.52, 19-Apr-2011,
,Revenue,CCHD,Elderly Mental Health,Residential Homes,Fairview House,1105.16, 19-Apr-2011,
,Revenue,CCHD,Frenchay Hospital Purchasing,Residential Homes,Fairview House,2449.07, 19-Apr-2011,
,Revenue,CCHD,Southmead Hospital Purchasing,Residential Homes,Fairview House,654.84, 19-Apr-2011,
,Revenue,CCHD,Elderly Mental Health,Residential Homes,Fairview House,786.96, 19-Apr-2011,
,Revenue,CCHD,Elderly Mental Health,Residential Homes,Fairview House,872.91, 19-Apr-2011,
,Revenue,CCHD,Frenchay Hospital Purchasing,Residential Homes,Fairview House,1290.72, 19-Apr-2011,
,Revenue,CCHD,Elderly Mental Health,Residential Homes,Fairview House,796.29, 19-Apr-2011,
,Revenue,CCHD,Elderly Purchasing - North,Residential Homes,Faith House,901.25, 19-Apr-2011,
,Revenue,CCHD,Frenchay Hospital Purchasing,Residential Homes,Faith House,1302.84, 19-Apr-2011,
,Revenue,CCHD,Under 65s PWLD - KD,Residential Homes,Fernbank,8353.16, 19-Apr-2011,
,Revenue,CCHD,Purchasing Phys Dis - North,Nursing Homes,Field House Care Home,1508.91, 19-Apr-2011,
,Revenue,CCHD,Under 65s PWLD - KD,Residential Homes,Forge House,3625.76, 19-Apr-2011,
,Revenue,CCHD,Southmead Hospital Purchasing,Residential Homes,Four Seasons Health Care,1129.04, 19-Apr-2011,
,Revenue,CCHD,Frenchay Hospital Purchasing,Residential Homes,Four Seasons Health Care,680.28, 19-Apr-2011,
,Revenue,CCHD,Elderly Purchasing - South,Residential Homes,Four Seasons Health Care,1183.72, 19-Apr-2011,
,Revenue,CCHD,Frenchay Hospital Purchasing,Nursing Homes,Four Seasons Health Care,1366.8, 19-Apr-2011,
,Revenue,CCHD,Elderly Purchasing - South,Nursing Homes,Four Seasons Health Care,1366.8, 19-Apr-2011,
,Revenue,CCHD,Frenchay Hospital Purchasing,Nursing Homes,Four Seasons Health Care,653.64, 19-Apr-2011,
,Revenue,CCHD,Frenchay Hospital Purchasing,Nursing Homes,Four Seasons Health Care,1011.75, 19-Apr-2011,
,Revenue,CCHD,Elderly Purchasing - South,Nursing Homes,Four Seasons Health Care,865.92, 19-Apr-2011,
,Revenue,CCHD,Southmead Hospital Purchasing,Residential Homes,Four Seasons Health Care,1366.8, 19-Apr-2011,
,Revenue,CCHD,Elderly Purchasing - North,Nursing Homes,Four Seasons Health Care,792.45, 19-Apr-2011,
,Revenue,CCHD,Frenchay Hospital Purchasing,Nursing Homes,Four Seasons Health Care,3543.12, 19-Apr-2011,
,Revenue,CCHD,Elderly Purchasing - South,Residential Homes,Four Seasons Health Care,919.35, 19-Apr-2011,
,Revenue,CCHD,Southmead Hospital Purchasing,Nursing Homes,Four Seasons Health Care,1366.8, 19-Apr-2011,
,Revenue,CCHD,Frenchay Hospital Purchasing,Nursing Homes,Four Seasons Health Care,5760.08, 19-Apr-2011,
,Revenue,CCHD,Frenchay Hospital Purchasing,Nursing Homes,Four Seasons Health Care,1011.75, 19-Apr-2011,
,Revenue,CCHD,South Glos Users in South Glos Homes,Nursing Homes,Four Seasons Health Care,869.6, 19-Apr-2011,
,Revenue,CCHD,Cash for Change Discharges,Nursing Homes,Four Seasons Health Care,1011.75, 19-Apr-2011,
,Revenue,CCHD,Elderly Purchasing - South,Nursing Homes,Four Seasons Health Care,1394.8, 19-Apr-2011,
,Revenue,CCHD,Elderly Purchasing - South,Nursing Homes,Four Seasons Health Care,1366.8, 19-Apr-2011,
,Revenue,CCHD,Frenchay Hospital Purchasing,Nursing Homes,Four Seasons Health Care,1366.8, 19-Apr-2011,
,Revenue,CCHD,Frenchay Hospital Purchasing,Nursing Homes,Four Seasons Health Care,854.25, 19-Apr-2011,
,Revenue,CCHD,Elderly Purchasing - South,Nursing Homes,Four Seasons Health Care,784.98, 19-Apr-2011,
,Revenue,CCHD,Southmead Hospital Purchasing,Nursing Homes,Four Seasons Health Care,939.96, 19-Apr-2011,
,Revenue,CCHD,Elderly Purchasing - South,Nursing Homes,Four Seasons Health Care,1366.8, 19-Apr-2011,
,Revenue,CCHD,Elderly Purchasing - South,Nursing Homes,Four Seasons Health Care,1310.12, 19-Apr-2011,
,Revenue,CCHD,Frenchay Hospital Purchasing,Nursing Homes,Four Seasons Health Care,1007.13, 19-Apr-2011,
,Revenue,CCHD,Elderly Purchasing - South,Residential Homes,Four Seasons Health Care,974.6, 19-Apr-2011,
,Revenue,CCHD,Elderly Purchasing - North,Nursing Homes,Four Seasons Health Care,1330.8, 19-Apr-2011,
,Revenue,CCHD,Frenchay Hospital Purchasing,Nursing Homes,Four Seasons Health Care,3114.72, 19-Apr-2011,
,Revenue,CCHD,Frenchay Hospital Purchasing,Nursing Homes,Four Seasons Health Care,1070.36, 19-Apr-2011,
,Revenue,CCHD,Elderly Purchasing - South,Nursing Homes,Four Seasons Health Care,750.97, 19-Apr-2011,
,Revenue,CCHD,Elderly Mental Health,Residential Homes,Four Seasons Health Care,792.48, 19-Apr-2011,
,Revenue,CCHD,Frenchay Hospital Purchasing,Residential Homes,Four Seasons Health Care,1086.84, 19-Apr-2011,
,Revenue,CCHD,Elderly Purchasing - South,Nursing Homes,Four Seasons Health Care,1308.56, 19-Apr-2011,
,Revenue,CCHD,Elderly Mental Health,Nursing Homes,Four Seasons Health Care,976.65, 19-Apr-2011,
,Revenue,CCHD,Elderly Purchasing - South,Nursing Homes,Four Seasons Health Care,1359.48, 19-Apr-2011,
,Revenue,CCHD,Frenchay Hospital Purchasing,Nursing Homes,Four Seasons Health Care,1374.8, 19-Apr-2011,
,Revenue,CCHD,Elderly Mental Health,Nursing Homes,Four Seasons Health Care,899.49, 19-Apr-2011,
,Revenue,CCHD,Southmead Hospital Purchasing,Nursing Homes,Four Seasons Health Care,1012.52, 19-Apr-2011,
,Revenue,CCHD,Elderly Purchasing - North,Nursing Homes,Four Seasons Health Care,750, 19-Apr-2011,
,Revenue,CCHD,Frenchay Hospital Purchasing,Nursing Homes,Four Seasons Health Care,1137.75, 19-Apr-2011,
,Revenue,CCHD,Elderly Mental Health,Residential Homes,Four Seasons Health Care,511, 19-Apr-2011,
,Revenue,CCHD,Southmead Hospital Purchasing,Residential Homes,Four Seasons Health Care,924, 19-Apr-2011,
,Revenue,CCHD,Elderly Purchasing - North,Residential Homes,Four Seasons Health Care,1059.75, 19-Apr-2011,
,Revenue,CCHD,Elderly Purchasing - North,Residential Homes,Four Seasons Health Care,715.4, 19-Apr-2011,
,Revenue,CCHD,Elderly Purchasing - North,Residential Homes,Four Seasons Health Care,613.2, 19-Apr-2011,
,Revenue,CCHD,South Glos Users in South Glos Homes,Nursing Homes,Four Seasons Health Care,1568.39, 19-Apr-2011,
,Revenue,CCHD,Elderly Purchasing - South,Nursing Homes,Four Seasons Health Care,1229.2, 19-Apr-2011,
,Revenue,CCHD,Elderly Mental Health,Nursing Homes,Four Seasons Health Care,984.75, 19-Apr-2011,
,Revenue,CCHD,Frenchay Hospital Purchasing,Nursing Homes,Four Seasons Health Care,951.06, 19-Apr-2011,
,Revenue,CCHD,Elderly Purchasing - South,Nursing Homes,Four Seasons Health Care,1366.8, 19-Apr-2011,
,Revenue,CCHD,Elderly Purchasing - South,Nursing Homes,Four Seasons Health Care,1094.49, 19-Apr-2011,
,Revenue,CCHD,Southmead Hospital Purchasing,Nursing Homes,Four Seasons Health Care,1011.75, 19-Apr-2011,
,Revenue,CCHD,Elderly Purchasing - South,Nursing Homes,Four Seasons Health Care,1011.75, 19-Apr-2011,
,Revenue,CCHD,Elderly Purchasing - South,Nursing Homes,Four Seasons Health Care,1808, 19-Apr-2011,
,Revenue,CCHD,Southmead Hospital Purchasing,Nursing Homes,Four Seasons Health Care,809.64, 19-Apr-2011,
,Revenue,CCHD,Elderly Mental Health,Nursing Homes,Four Seasons Health Care,1073.79, 19-Apr-2011,
,Revenue,CCHD,Elderly Purchasing - North,Nursing Homes,Four Seasons Health Care,1366.8, 19-Apr-2011,
,Revenue,CCHD,Elderly Purchasing - North,Nursing Homes,Four Seasons Health Care,827.61, 19-Apr-2011,
,Revenue,CCHD,South Glos Users in South Glos Homes,Nursing Homes,Four Seasons Health Care,2236.11, 19-Apr-2011,
,Revenue,CCHD,Southmead Hospital Purchasing,Nursing Homes,Four Seasons Health Care,1041.45, 19-Apr-2011,
,Revenue,CCHD,Southmead Hospital Purchasing,Nursing Homes,Four Seasons Health Care,1355.4, 19-Apr-2011,
,Revenue,CCHD,Frenchay Hospital Purchasing,Nursing Homes,Four Seasons Health Care,963.42, 19-Apr-2011,
,Revenue,CCHD,Elderly Mental Health,Nursing Homes,Four Seasons Health Care,1534.8, 19-Apr-2011,
,Revenue,CCHD,Elderly Purchasing - North,Residential Homes,Four Seasons Health Care,739.32, 19-Apr-2011,
,Revenue,CCHD,Elderly Purchasing - North,Nursing Homes,Four Seasons Health Care,539.76, 19-Apr-2011,
,Revenue,CCHD,Frenchay Hospital Purchasing,Nursing Homes,Four Seasons Health Care,992.85, 19-Apr-2011,
,Revenue,CCHD,Elderly Purchasing - North,Nursing Homes,Four Seasons Health Care,1498.88, 19-Apr-2011,
,Revenue,CCHD,Elderly Purchasing - South,Residential Homes,Four Seasons Health Care,921.75, 19-Apr-2011,
,Revenue,CCHD,Elderly Purchasing - North,Nursing Homes,Four Seasons Health Care,1402.72, 19-Apr-2011,
,Revenue,CCHD,Elderly Mental Health,Nursing Homes,Four Seasons Health Care,1051.89, 19-Apr-2011,
,Revenue,CCHD,Elderly Mental Health,Nursing Homes,Four Seasons Health Care,1533.6, 19-Apr-2011,
,Revenue,CCHD,Southmead Hospital Purchasing,Nursing Homes,Four Seasons Health Care,1011.75, 19-Apr-2011,
,Revenue,CCHD,Frenchay Hospital Purchasing,Nursing Homes,Four Seasons Health Care,1221.6, 19-Apr-2011,
,Revenue,CCHD,Elderly Purchasing - North,Nursing Homes,Four Seasons Health Care,921, 19-Apr-2011,
,Revenue,CCHD,Elderly Purchasing - North,Nursing Homes,Four Seasons Health Care,1478.16, 19-Apr-2011,
,Revenue,CCHD,Southmead Hospital Purchasing,Nursing Homes,Four Seasons Health Care,709.6, 19-Apr-2011,
,Revenue,CCHD,Elderly Purchasing - South,Nursing Homes,Four Seasons Health Care,1294.92, 19-Apr-2011,
,Revenue,CCHD,Frenchay Hospital Purchasing,Nursing Homes,Four Seasons Health Care,912.57, 19-Apr-2011,
,Revenue,CCHD,Elderly Mental Health,Residential Homes,Four Seasons Health Care,1230.28, 19-Apr-2011,
,Revenue,CCHD,Southmead Hospital Purchasing,Nursing Homes,Four Seasons Health Care,1366.8, 19-Apr-2011,
,Revenue,CCHD,Southmead Hospital Purchasing,Residential Homes,Four Seasons Health Care,1246.8, 19-Apr-2011,
,Revenue,CCHD,Southmead Hospital Purchasing,Residential Homes,Four Seasons Health Care,1157.74, 19-Apr-2011,
,Revenue,CCHD,Elderly Mental Health,Nursing Homes,Four Seasons Health Care,1363.56, 19-Apr-2011,
,Revenue,CCHD,Elderly Mental Health,Residential Homes,Four Seasons Health Care,1008.12, 19-Apr-2011,
,Revenue,CCHD,Elderly Purchasing - North,Nursing Homes,Four Seasons Health Care,1005.99, 19-Apr-2011,
,Revenue,CCHD,Elderly Mental Health,Nursing Homes,Four Seasons Health Care,776.13, 19-Apr-2011,
,Revenue,CCHD,Frenchay Hospital Purchasing,Nursing Homes,Four Seasons Health Care,1366.8, 19-Apr-2011,
,Revenue,CCHD,Elderly Mental Health,Residential Homes,Four Seasons Health Care,1163.76, 19-Apr-2011,
,Revenue,CCHD,Frenchay Hospital Purchasing,Nursing Homes,Four Seasons Health Care,2391.9, 19-Apr-2011,
,Revenue,CCHD,Southmead Hospital Purchasing,Nursing Homes,Four Seasons Health Care,6052.97, 19-Apr-2011,
,Revenue,CCHD,Southmead Hospital Purchasing,Nursing Homes,Four Seasons Health Care,625.05, 19-Apr-2011,
,Revenue,CCHD,South Glos Users in South Glos Homes,Nursing Homes,Four Seasons Health Care,869.6, 19-Apr-2011,
,Revenue,CCHD,South Glos Users in South Glos Homes,Nursing Homes,Four Seasons Health Care,605.61, 19-Apr-2011,
,Revenue,CCHD,South Glos Users in South Glos Homes,Nursing Homes,Four Seasons Health Care,683.25, 19-Apr-2011,
,Revenue,CCHD,Frenchay Hospital Purchasing,Nursing Homes,Four Seasons Health Care,1366.8, 19-Apr-2011,
,Revenue,CCHD,Frenchay Hospital Purchasing,Nursing Homes,Four Seasons Health Care,1341.12, 19-Apr-2011,
,Revenue,CCHD,Elderly Purchasing - South,Nursing Homes,Four Seasons Health Care,938.79, 19-Apr-2011,
,Revenue,CCHD,Frenchay Hospital Purchasing,Nursing Homes,Four Seasons Health Care,840.87, 19-Apr-2011,
,Revenue,CCHD,Elderly Purchasing - North,Nursing Homes,Four Seasons Health Care,823.32, 19-Apr-2011,
,Revenue,CCHD,Southmead Hospital Purchasing,Nursing Homes,Four Seasons Health Care,1366.8, 19-Apr-2011,
,Revenue,CCHD,Elderly Mental Health,Nursing Homes,Four Seasons Health Care,1232.6, 19-Apr-2011,
,Revenue,CCHD,Southmead Hospital Purchasing,Nursing Homes,Four Seasons Health Care,2928.86, 19-Apr-2011,
,Revenue,CCHD,Southmead Hospital Purchasing,Nursing Homes,Four Seasons Health Care,1011.75, 19-Apr-2011,
,Revenue,CCHD,Frenchay Hospital Purchasing,Nursing Homes,Four Seasons Health Care,1297.12, 19-Apr-2011,
,Revenue,CCHD,Frenchay Hospital Purchasing,Nursing Homes,Four Seasons Health Care,602.31, 19-Apr-2011,
,Revenue,CCHD,Frenchay Hospital Purchasing,Nursing Homes,Four Seasons Health Care,3563.44, 19-Apr-2011,
,Revenue,CCHD,Frenchay Hospital Purchasing,Nursing Homes,Four Seasons Health Care,1011.75, 19-Apr-2011,
,Revenue,CCHD,Frenchay Hospital Purchasing,Nursing Homes,Four Seasons Health Care,1011.75, 19-Apr-2011,
,Revenue,CCHD,Frenchay Hospital Purchasing,Nursing Homes,Four Seasons Health Care,1011.75, 19-Apr-2011,
,Revenue,CCHD,Frenchay Hospital Purchasing,Nursing Homes,Four Seasons Health Care,1366.8, 19-Apr-2011,
,Revenue,CCHD,Frenchay Hospital Purchasing,Nursing Homes,Four Seasons Health Care,1382.8, 19-Apr-2011,
,Revenue,CCHD,Elderly Purchasing - South,Nursing Homes,Four Seasons Health Care,793.44, 19-Apr-2011,
,Revenue,CCHD,Elderly Purchasing - North,Nursing Homes,Four Seasons Health Care,643.47, 19-Apr-2011,
,Revenue,CCHD,Southmead Hospital Purchasing,Residential Homes,Four Seasons Health Care,2887.82, 19-Apr-2011,
,Revenue,CCHD,Southmead Hospital Purchasing,Residential Homes,Four Seasons Health Care,827.58, 19-Apr-2011,
,Revenue,CCHD,Southmead Hospital Purchasing,Nursing Homes,Four Seasons Health Care,848.28, 19-Apr-2011,
,Revenue,CCHD,Southmead Hospital Purchasing,Nursing Homes,Four Seasons Health Care,988.17, 19-Apr-2011,
,Revenue,CCHD,Purchasing Phys Dis - North,Nursing Homes,Four Seasons Health Care,1372.88, 19-Apr-2011,
,Revenue,CCHD,Elderly Purchasing - South,Nursing Homes,Four Seasons Health Care,918.96, 19-Apr-2011,
,Revenue,CCHD,Southmead Hospital Purchasing,Residential Homes,Four Seasons Health Care,817.52, 19-Apr-2011,
,Revenue,CCHD,Frenchay Hospital Purchasing,Nursing Homes,Four Seasons Health Care,1808, 19-Apr-2011,
,Revenue,CCHD,Southmead Hospital Purchasing,Nursing Homes,Four Seasons Health Care,1294.8, 19-Apr-2011,
,Revenue,CCHD,Elderly Mental Health,Residential Homes,Four Seasons Health Care,1031.97, 19-Apr-2011,
,Revenue,CCHD,Elderly Mental Health,Residential Homes,Four Seasons Health Care,1430.8, 19-Apr-2011,
,Revenue,CCHD,Southmead Hospital Purchasing,Residential Homes,Four Seasons Health Care,1170.64, 19-Apr-2011,
,Revenue,CCHD,South Glos Users in South Glos Homes,Nursing Homes,Four Seasons Health Care,1087, 19-Apr-2011,
,Revenue,CCHD,Elderly PWLD - PS,Residential Homes,Four Seasons Health Care,1246.8, 19-Apr-2011,
,Revenue,CCHD,Frenchay Hospital Purchasing,Nursing Homes,Four Seasons Health Care,1366.8, 19-Apr-2011,
,Revenue,CCHD,Frenchay Hospital Purchasing,Nursing Homes,Four Seasons Health Care,1808, 19-Apr-2011,
,Revenue,CCHD,Frenchay Hospital Purchasing,Nursing Homes,Four Seasons Health Care,1103, 19-Apr-2011,
,Revenue,CCHD,Elderly Purchasing - South,Nursing Homes,Four Seasons Health Care,1283.44, 19-Apr-2011,
,Revenue,CCHD,Elderly Purchasing - South,Nursing Homes,Four Seasons Health Care,1001.73, 19-Apr-2011,
,Revenue,CCHD,Elderly Purchasing - South,Residential Homes,Four Seasons Health Care,894.12, 19-Apr-2011,
,Revenue,CCHD,Elderly Purchasing - South,Residential Homes,Four Seasons Health Care,999.6, 19-Apr-2011,
,Revenue,CCHD,Frenchay Hospital Purchasing,Nursing Homes,Four Seasons Health Care,1005.84, 19-Apr-2011,
,Revenue,CCHD,Elderly Purchasing - South,Nursing Homes,Four Seasons Health Care,636.48, 19-Apr-2011,
,Revenue,CCHD,Elderly Purchasing - South,Nursing Homes,Four Seasons Health Care,1245.64, 19-Apr-2011,
,Revenue,CCHD,Frenchay Hospital Purchasing,Nursing Homes,Four Seasons Health Care,881.92, 19-Apr-2011,
,Revenue,CCHD,Section 117 Placements,Residential Homes,Four Seasons Health Care,1688, 19-Apr-2011,
,Revenue,CCHD,Elderly Purchasing - South,Residential Homes,Four Seasons Health Care,634.65, 19-Apr-2011,
,Revenue,CCHD,Elderly Purchasing - South,Residential Homes,Four Seasons Health Care,1133.92, 19-Apr-2011,
,Revenue,CCHD,Elderly Purchasing - South,Nursing Homes,Four Seasons Health Care,987.28, 19-Apr-2011,
,Revenue,CCHD,Frenchay Hospital Purchasing,Residential Homes,Four Seasons Health Care,920.85, 19-Apr-2011,
,Revenue,CCHD,Frenchay Hospital Purchasing,Residential Homes,Four Seasons Health Care,896.88, 19-Apr-2011,
,Revenue,CCHD,Elderly Purchasing - South,Nursing Homes,Four Seasons Health Care,1366.8, 19-Apr-2011,
,Revenue,CCHD,Section 117 Placements,Residential Homes,Four Seasons Health Care,1688, 19-Apr-2011,
,Revenue,CCHD,Frenchay Hospital Purchasing,Residential Homes,Four Seasons Health Care,819.72, 19-Apr-2011,
,Revenue,CCHD,Frenchay Hospital Purchasing,Nursing Homes,Four Seasons Health Care,1216.92, 19-Apr-2011,
,Revenue,CCHD,Frenchay Hospital Purchasing,Residential Homes,Four Seasons Health Care,1260.64, 19-Apr-2011,
,Revenue,CCHD,Southmead Hospital Purchasing,Residential Homes,Four Seasons Health Care,930.75, 19-Apr-2011,
,Revenue,CCHD,Frenchay Hospital Purchasing,Nursing Homes,Four Seasons Health Care,1009.35, 19-Apr-2011,
,Revenue,CCHD,Elderly Mental Health,Residential Homes,Four Seasons Health Care,998.92, 19-Apr-2011,
,Revenue,CCHD,Elderly Purchasing - South,Nursing Homes,Four Seasons Health Care,683.4, 19-Apr-2011,
,Revenue,CCHD,Southmead Hospital Purchasing,Nursing Homes,Four Seasons Health Care,554.25, 19-Apr-2011,
,Revenue,CCHD,Elderly Mental Health,Nursing Homes,Four Seasons Health Care,1356.84, 19-Apr-2011,
,Revenue,CCHD,Elderly Purchasing - North,Nursing Homes,Four Seasons Health Care,1315.28, 19-Apr-2011,
,Revenue,CCHD,Elderly Mental Health,Nursing Homes,Four Seasons Health Care,1011.75, 19-Apr-2011,
,Revenue,CCHD,Frenchay Hospital Purchasing,Nursing Homes,Four Seasons Health Care,580.74, 19-Apr-2011,
,Revenue,CCHD,Elderly Purchasing - North,Nursing Homes,Four Seasons Health Care,1366.8, 19-Apr-2011,
,Revenue,CCHD,Freeways,Residential Homes,Freeways Trust Limited,42358.09, 08-Apr-2011,
,Revenue,CCHD,Purchase of Non-Res Care - KD,Private & Voluntary Day Care,Freeways Trust Limited,620.88, 08-Apr-2011,
,Revenue,CCHD,Supported Living - PS,Private & Voluntary Home Care,Freeways Trust Limited,1617, 08-Apr-2011,
,Revenue,CCHD,Supported Living - PS,Private & Voluntary Home Care,Freeways Trust Limited,1954.35, 28-Apr-2011,
,Revenue,CCHD,Purchase of Non-Res Care - KD,Private & Voluntary Day Care,Freeways Trust Limited,620.88, 13-Apr-2011,
,Revenue,CCHD,Supported Living - KD,Private & Voluntary Home Care,Freeways Trust Limited,620.88, 13-Apr-2011,
,Revenue,CCHD,Under 65s PWLD - KD,Residential Homes,Freeways Trust Ltd,2759.6, 19-Apr-2011,
,Revenue,CCHD,S28A - Under 65,Residential Homes,Freeways Trust Ltd,2856.6, 19-Apr-2011,
,Revenue,CCHD,Under 65s PWLD - KD,Residential Homes,Freeways Trust Ltd,2209.48, 19-Apr-2011,
,Revenue,CCHD,Under 65s PWLD - KD,Residential Homes,Freeways Trust Ltd,2217.28, 19-Apr-2011,
,Revenue,CCHD,Under 65s PWLD - KD,Residential Homes,Freeways Trust Ltd,2643.88, 19-Apr-2011,
,Revenue,CCHD,Under 65s PWLD - KH,Residential Homes,Freeways Trust Ltd,6446.04, 19-Apr-2011,
,Revenue,CCHD,Under 65s PWLD - KH,Residential Homes,Freeways Trust Ltd,806.73, 19-Apr-2011,
,Revenue,CCHD,Elderly PWLD - KD,Residential Homes,Freeways Trust Ltd,2210.28, 19-Apr-2011,
,Revenue,CCHD,Under 65s PWLD - KH,Residential Homes,Freeways Trust Ltd,2352.92, 19-Apr-2011,
,Revenue,CCHD,Under 65s PWLD - KH,Residential Homes,Freeways Trust Ltd,35625.03, 19-Apr-2011,
,Revenue,CCHD,Under 65s PWLD - PS,Residential Homes,Freeways Trust Ltd,1139.2, 19-Apr-2011,
,Revenue,CCHD,Under 65s PWLD - KH,Residential Homes,Freeways Trust Ltd,2636.08, 19-Apr-2011,
,Revenue,CCHD,Frenchay Hospital Purchasing,Nursing Homes,Frenchay Park Nursing Home,1222.36, 19-Apr-2011,
,Revenue,CCHD,Homeless - Private Sector Leasing,Other Premises Costs,Geoff Lewis Flooring Limited,460, 20-Apr-2011,
,Revenue,CCHD,Charlton,Prop.Serv. General Repairs,Geoff Lewis Flooring Limited,3600, 04-Apr-2011,
,Revenue,CCHD,Under 65s PWLD - PS,Residential Homes,Glasallt Fawr,4444.8, 19-Apr-2011,
,Revenue,CCHD,Elderly Purchasing - North,Nursing Homes,Glebe House Nursing Home,1284.16, 19-Apr-2011,
,Revenue,CCHD,Elderly Purchasing - North,Nursing Homes,Glebe House Nursing Home,1334.8, 19-Apr-2011,
,Revenue,CCHD,Southmead Hospital Purchasing,Nursing Homes,Glebe House Nursing Home,1664.84, 19-Apr-2011,
,Revenue,CCHD,Purchasing Phys Dis - South,Nursing Homes,Glenside Centre For Brain Injury,6955.52, 19-Apr-2011,
,Revenue,CCHD,Under 65s PWLD - KH,Residential Homes,Gordena Care Home,2050.92, 19-Apr-2011,
,Revenue,CCHD,Elderly PWLD - KH,Residential Homes,Gordena Care Home,3468.27, 19-Apr-2011,
,Revenue,CCHD,Elderly PWLD - KH,Residential Homes,Gordena Care Home,1160.54, 19-Apr-2011,
,Revenue,CCHD,Elderly PWLD - KH,Residential Homes,Gordena Care Home,64812.84, 19-Apr-2011,
,Revenue,CCHD,Elderly PWLD - KH,Residential Homes,Gordena Care Home,2883.92, 19-Apr-2011,
,Revenue,CCHD,Under 65s PWLD - KH,Residential Homes,Gordena Care Home,2047.08, 19-Apr-2011,
,Revenue,CCHD,Home Care Purch South,Other Small Contracts,Greenbanks Homecare (Western) Limited,4767.1, 06-Apr-2011,
,Revenue,CCHD,Home Care Purch North,Other Small Contracts,Greenbanks Homecare (Western) Limited,802.88, 06-Apr-2011,
,Revenue,CCHD,Home Care Purch North,Other Small Contracts,Greenbanks Homecare (Western) Limited,748.84, 06-Apr-2011,
,Revenue,CCHD,Home Care Purch South,Other Small Contracts,Greenbanks Homecare (Western) Limited,5048.88, 06-Apr-2011,
,Revenue,CCHD,Home Care Purch South,Other Small Contracts,Greenbanks Homecare (Western) Limited,4913.78, 06-Apr-2011,
,Revenue,CCHD,Home Care Purch South,Other Small Contracts,Greenbanks Homecare (Western) Limited,4979.4, 06-Apr-2011,
,Revenue,CCHD,Home Care Purch North,Other Small Contracts,Greenbanks Homecare (Western) Limited,710.24, 06-Apr-2011,
,Revenue,CCHD,Home Care Purch North,Other Small Contracts,Greenbanks Homecare (Western) Limited,841.48, 06-Apr-2011,
,Revenue,CCHD,Home Care Purch South,Other Small Contracts,Greenbanks Homecare (Western) Limited,5087.48, 06-Apr-2011,
,Revenue,CCHD,Home Care Purch North,Other Small Contracts,Greenbanks Homecare (Western) Limited,818.32, 06-Apr-2011,
,Revenue,CCHD,Home Care Purch South,Other Small Contracts,Greenbanks Homecare (Western) Limited,4882.9, 06-Apr-2011,
,Revenue,CCHD,Home Care Purch North,Other Small Contracts,Greenbanks Homecare (Western) Limited,756.56, 06-Apr-2011,
,Revenue,CCHD,Home Care Purch South,Other Small Contracts,Greenbanks Homecare (Western) Limited,5079.76, 06-Apr-2011,
,Revenue,CCHD,Home Care Purch North,Other Small Contracts,Greenbanks Homecare (Western) Limited,795.16, 06-Apr-2011,
,Revenue,CCHD,Home Care Purch South,Other Small Contracts,Greenbanks Homecare (Western) Limited,5149.24, 06-Apr-2011,
,Revenue,CCHD,Home Care Purch North,Other Small Contracts,Greenbanks Homecare (Western) Limited,764.28, 06-Apr-2011,
,Revenue,CCHD,Home Care Purch South,Other Small Contracts,Greenbanks Homecare (Western) Limited,4844.3, 06-Apr-2011,
,Revenue,CCHD,Home Care Purch North,Other Small Contracts,Greenbanks Homecare (Western) Limited,775.86, 06-Apr-2011,
,Revenue,CCHD,Elderly Purchasing - North,Residential Homes,Greensleeves,1313.88, 19-Apr-2011,
,Revenue,CCHD,Home Care Purch South,Other Small Contracts,Guardian Homecare (Bristol & Avon) Ltd DO NOT USE,3032.76, 11-Apr-2011,
,Revenue,CCHD,Home Care Purch North,Other Small Contracts,Guardian Homecare (Bristol & Avon) Ltd DO NOT USE,3824.78, 11-Apr-2011,
,Revenue,CCHD,Day Care - South,Private & Voluntary Day Care,Guardian Homecare (Bristol & Avon) Ltd DO NOT USE,311.68, 11-Apr-2011,
,Revenue,CCHD,Day Care - North,Private & Voluntary Day Care,Guardian Homecare (Bristol & Avon) Ltd DO NOT USE,789.78, 11-Apr-2011,
,Revenue,CCHD,Elderly MH Home Care,Other Small Contracts,Guardian Homecare (Bristol & Avon) Ltd DO NOT USE,338.3, 11-Apr-2011,
,Revenue,CCHD,Elderly MH non-res purchasing,Private & Voluntary Day Care,Guardian Homecare (Bristol & Avon) Ltd DO NOT USE,113.92, 11-Apr-2011,
,Revenue,CCHD,PWLD Home Care - Under 65 - PS,Private & Voluntary Home Care,Guardian Homecare (Bristol & Avon) Ltd DO NOT USE,31.84, 11-Apr-2011,
,Revenue,CCHD,PWLD Home Care - Under 65 - KD,Private & Voluntary Home Care,Guardian Homecare (Bristol & Avon) Ltd DO NOT USE,15.92, 11-Apr-2011,
,Revenue,CCHD,PWLD Home Care - Under 65 - KH,Private & Voluntary Home Care,Guardian Homecare (Bristol & Avon) Ltd DO NOT USE,167.16, 11-Apr-2011,
,Revenue,CCHD,Home Care Purch South,Other Small Contracts,Guardian Homecare (Bristol & Avon) Ltd DO NOT USE,2587, 05-Apr-2011,
,Revenue,CCHD,Home Care Purch North,Other Small Contracts,Guardian Homecare (Bristol & Avon) Ltd DO NOT USE,3582, 05-Apr-2011,
,Revenue,CCHD,Day Care - South,Private & Voluntary Day Care,Guardian Homecare (Bristol & Avon) Ltd DO NOT USE,168.4, 05-Apr-2011,
,Revenue,CCHD,Day Care - North,Private & Voluntary Day Care,Guardian Homecare (Bristol & Avon) Ltd DO NOT USE,780.08, 05-Apr-2011,
,Revenue,CCHD,Elderly MH Home Care,Other Small Contracts,Guardian Homecare (Bristol & Avon) Ltd DO NOT USE,354.22, 05-Apr-2011,
,Revenue,CCHD,Elderly MH non-res purchasing,Private & Voluntary Day Care,Guardian Homecare (Bristol & Avon) Ltd DO NOT USE,117.34, 05-Apr-2011,
,Revenue,CCHD,PWLD Home Care - Under 65 - PS,Private & Voluntary Home Care,Guardian Homecare (Bristol & Avon) Ltd DO NOT USE,31.84, 05-Apr-2011,
,Revenue,CCHD,PWLD Home Care - Under 65 - KD,Private & Voluntary Home Care,Guardian Homecare (Bristol & Avon) Ltd DO NOT USE,15.92, 05-Apr-2011,
,Revenue,CCHD,PWLD Home Care - Under 65 - KH,Private & Voluntary Home Care,Guardian Homecare (Bristol & Avon) Ltd DO NOT USE,167.16, 05-Apr-2011,
,Revenue,CCHD,Home Care Purch South,Other Small Contracts,Guardian Homecare (Bristol & Avon) Ltd DO NOT USE,2312.38, 27-Apr-2011,
,Revenue,CCHD,Home Care Purch North,Other Small Contracts,Guardian Homecare (Bristol & Avon) Ltd DO NOT USE,3375.04, 27-Apr-2011,
,Revenue,CCHD,Day Care - South,Private & Voluntary Day Care,Guardian Homecare (Bristol & Avon) Ltd DO NOT USE,168.4, 27-Apr-2011,
,Revenue,CCHD,Day Care - North,Private & Voluntary Day Care,Guardian Homecare (Bristol & Avon) Ltd DO NOT USE,784.06, 27-Apr-2011,
,Revenue,CCHD,Elderly MH Home Care,Other Small Contracts,Guardian Homecare (Bristol & Avon) Ltd DO NOT USE,151.24, 27-Apr-2011,
,Revenue,CCHD,Elderly MH non-res purchasing,Private & Voluntary Day Care,Guardian Homecare (Bristol & Avon) Ltd DO NOT USE,82.08, 27-Apr-2011,
,Revenue,CCHD,PWLD Home Care - Under 65 - PS,Private & Voluntary Home Care,Guardian Homecare (Bristol & Avon) Ltd DO NOT USE,31.84, 27-Apr-2011,
,Revenue,CCHD,PWLD Home Care - Under 65 - KH,Private & Voluntary Home Care,Guardian Homecare (Bristol & Avon) Ltd DO NOT USE,67.66, 27-Apr-2011,
,Revenue,CCHD,Elderly Purchasing - South,Residential Homes,Gwendoline House,859.71, 19-Apr-2011,
,Revenue,CCHD,Elderly Purchasing - South,Residential Homes,Gwendoline House,1246.8, 19-Apr-2011,
,Revenue,CCHD,Elderly Mental Health,Residential Homes,Gwendoline House,1250.8, 19-Apr-2011,
,Revenue,CCHD,Elderly Purchasing - South,Residential Homes,Gwendoline House,1241.7, 19-Apr-2011,
,Revenue,CCHD,Elderly Purchasing - South,Residential Homes,Gwendoline House,1255.05, 19-Apr-2011,
,Revenue,CCHD,Elderly Purchasing - South,Residential Homes,Gwendoline House,1138.12, 19-Apr-2011,
,Revenue,CCHD,Elderly Purchasing - South,Residential Homes,Gwendoline House,1025.28, 19-Apr-2011,
,Revenue,CCHD,Elderly Purchasing - South,Residential Homes,Harefield Hall,1103.94, 19-Apr-2011,
,Revenue,CCHD,Elderly Purchasing - South,Residential Homes,Harefield Hall,1274.56, 19-Apr-2011,
,Revenue,CCHD,Elderly Mental Health,Residential Homes,Harefield Hall,832.05, 19-Apr-2011,
,Revenue,CCHD,Elderly Purchasing - North,Residential Homes,Hawkridge House,728.56, 19-Apr-2011,
,Revenue,CCHD,Housing Needs,Agency Staff (Admin/Support Staff) Pay,Hays Specialist Recruitment,431.07, 14-Apr-2011,
,Revenue,CCHD,Southmead Hospital Team,Agency Staff (Operational)/PCT Pay,Hays Specialist Recruitment,1122.23, 18-Apr-2011,
,Revenue,CCHD,Elderly Mental Health,Residential Homes,Heather House,1237.45, 19-Apr-2011,
,Revenue,CCHD,Elderly Mental Health,Residential Homes,Heathwood Rest Home,1561.52, 19-Apr-2011,
,Revenue,CCHD,Community Support ACM - North,Preventative Assistance,Helen & Douglas House,1800, 14-Apr-2011,
,Revenue,CCHD,Getting a Life Project,Other Supplies & Services,Helen Sanderson Associates Limited,464.7, 01-Apr-2011,
,Revenue,CCHD,Under 65s PWLD - PS,Residential Homes,Hilltop Nursing Home,12415, 28-Apr-2011,
,Revenue,CCHD,Under 65s PWLD - KD,Nursing Homes,Holmleigh Care Homes Ltd,3911.28, 19-Apr-2011,
,Revenue,CCHD,Under 65s PWLD - KH,Residential Homes,Holmleigh Care Homes Ltd,4920.08, 19-Apr-2011,
,Revenue,CCHD,Frenchay Hospital Purchasing,Nursing Homes,Holmwood House,1314.92, 19-Apr-2011,
,Revenue,CCHD,Under 65s PWLD - KD,Residential Homes,Home Farm,3559.31, 19-Apr-2011,
,Revenue,CCHD,Under 65s PWLD - KD,Residential Homes,Home Farm Trust Ltd  5-6 Brook Office Pa,2751.96, 19-Apr-2011,
,Revenue,CCHD,Under 65s PWLD - KD,Residential Homes,Home Farm Trust Ltd  5-6 Brook Office Pa,2220.28, 19-Apr-2011,
,Revenue,CCHD,Under 65s PWLD - PS,Residential Homes,Home Farm Trust Ltd  5-6 Brook Office Pa,2409.2, 19-Apr-2011,
,Revenue,CCHD,Under 65s PWLD - PS,Residential Homes,Home Farm Trust Ltd  5-6 Brook Office Pa,3120.12, 19-Apr-2011,
,Revenue,CCHD,Under 65s PWLD - KD,Residential Homes,Home Farm Trust Ltd  5-6 Brook Office Pa,3327.88, 19-Apr-2011,
,Revenue,CCHD,Under 65s PWLD - PS,Residential Homes,Home Farm Trust Ltd  5-6 Brook Office Pa,3321.48, 19-Apr-2011,
,Revenue,CCHD,Under 65s PWLD - PS,Residential Homes,Home Farm Trust Ltd  5-6 Brook Office Pa,1109.76, 19-Apr-2011,
,Revenue,CCHD,Elderly Purchasing - North,Nursing Homes,Horfield Care Limited,5266.53, 27-Apr-2011,
,Revenue,CCHD,Frenchay Hospital Purchasing,Nursing Homes,Horfield Care Limited,6278.92, 27-Apr-2011,
,Revenue,CCHD,Southmead Hospital Purchasing,Nursing Homes,Horfield Care Limited,1061.93, 27-Apr-2011,
,Revenue,CCHD,Purchasing Phys Dis - North,Nursing Homes,Horfield Care Limited,986.03, 27-Apr-2011,
,Revenue,CCHD,S28A - Over 65,Nursing Homes,Horfield Care Limited,1687.3, 27-Apr-2011,
,Revenue,CCHD,Supporting People Programme,Grants to Voluntary Bodies,Housing 21,828, 20-Apr-2011,
,Revenue,CCHD,Home Care Purch North,Private & Voluntary Home Care,Housing 21,35220.9, 08-Apr-2011,
,Revenue,CCHD,Home Care Purch South,Private & Voluntary Home Care,Housing 21,22092.54, 01-Apr-2011,
,Revenue,CCHD,Directorate,Training Expenses,HQN Limited,620, 20-Apr-2011,
,Revenue,CCHD,Housing Needs,Agency Staff (Admin/Support Staff) Pay,HSBC Invoice Finance (UK) Limited,440.09, 14-Apr-2011,
,Revenue,CCHD,Homeless - Private Sector Leasing,Prop.Serv. General Repairs,J P Woods Electrical Contractor,534.8, 13-Apr-2011,
,Revenue,CCHD,Elderly Purchasing - South,Residential Homes,Jah-Jireh Charity Homes,1245.45, 19-Apr-2011,
,Revenue,CCHD,Tenancy Start Up Scheme,Other Supplies & Services,Individual,650, 01-Apr-2011,
,Revenue,CCHD,Under 65s PWLD - PS,Residential Homes,Keepers Cottage,1969.48, 19-Apr-2011,
,Revenue,CCHD,Elderly Mental Health,Residential Homes,Kenver House Residential Home,1122.33, 19-Apr-2011,
,Revenue,CCHD,Section 117 Placements,Residential Homes,Kenver House Residential Home,1848, 19-Apr-2011,
,Revenue,CCHD,Southmead Hospital Purchasing,Residential Homes,Kenver House Residential Home,1638.8, 19-Apr-2011,
,Revenue,CCHD,Elderly Mental Health,Residential Homes,Kenver House Residential Home,1055.1, 19-Apr-2011,
,Revenue,CCHD,Frenchay Hospital Purchasing,Residential Homes,Kenver House Residential Home,1406.8, 19-Apr-2011,
,Revenue,CCHD,Frenchay Hospital Purchasing,Residential Homes,Kenver House Residential Home,1614.04, 19-Apr-2011,
,Revenue,CCHD,Frenchay Hospital Purchasing,Residential Homes,Kenver House Residential Home,1079.52, 19-Apr-2011,
,Revenue,CCHD,Elderly Mental Health,Residential Homes,Kenver House Residential Home,918.27, 19-Apr-2011,
,Revenue,CCHD,Elderly Mental Health,Residential Homes,Kenver House Residential Home,1369.44, 19-Apr-2011,
,Revenue,CCHD,Elderly Mental Health,Residential Homes,Kenver House Residential Home,883.89, 19-Apr-2011,
,Revenue,CCHD,Elderly Mental Health,Residential Homes,Kenver House Residential Home,1406.8, 19-Apr-2011,
,Revenue,CCHD,Elderly Mental Health,Residential Homes,Kenver House Residential Home,653.16, 19-Apr-2011,
,Revenue,CCHD,Frenchay Hospital Purchasing,Residential Homes,Kenver House Residential Home,2446.14, 19-Apr-2011,
,Revenue,CCHD,Frenchay Hospital Purchasing,Residential Homes,Kenver House Residential Home,1426.92, 19-Apr-2011,
,Revenue,CCHD,Elderly Purchasing - South,Residential Homes,Kenver House Residential Home,1638.8, 19-Apr-2011,
,Revenue,CCHD,Elderly Mental Health,Residential Homes,Kenver House Residential Home,1202.36, 19-Apr-2011,
,Revenue,CCHD,Elderly Mental Health,Residential Homes,Kenver House Residential Home,1040.73, 19-Apr-2011,
,Revenue,CCHD,Elderly Purchasing - South,Residential Homes,Kenver House Residential Home,1528.12, 19-Apr-2011,
,Revenue,CCHD,Frenchay Hospital Purchasing,Residential Homes,Kenver House Residential Home,1568.12, 19-Apr-2011,
,Revenue,CCHD,Elderly Mental Health,Residential Homes,Kenver House Residential Home,1041.75, 19-Apr-2011,
,Revenue,CCHD,Elderly Mental Health,Residential Homes,Kenver House Residential Home,1128.52, 19-Apr-2011,
,Revenue,CCHD,Elderly Purchasing - South,Residential Homes,Kenver House Residential Home,986.28, 19-Apr-2011,
,Revenue,CCHD,Elderly Mental Health,Residential Homes,Kenver House Residential Home,997.65, 19-Apr-2011,
,Revenue,CCHD,Elderly Mental Health,Residential Homes,Kenver House Residential Home,1487, 19-Apr-2011,
,Revenue,CCHD,Elderly Purchasing - South,Residential Homes,Kenver House Residential Home,1638.8, 19-Apr-2011,
,Revenue,CCHD,Elderly Purchasing - South,Residential Homes,Kenver House Residential Home,643.81, 19-Apr-2011,
,Revenue,CCHD,Elderly Mental Health,Residential Homes,Kenver House Residential Home,1305.6, 19-Apr-2011,
,Revenue,CCHD,Elderly Mental Health,Residential Homes,Kenver House Residential Home,1638.8, 19-Apr-2011,
,Revenue,CCHD,Frenchay Hospital Purchasing,Residential Homes,Kingswood Care Centre,851.88, 19-Apr-2011,
,Revenue,CCHD,Elderly Purchasing - North,Residential Homes,Kingswood Care Centre,891.93, 19-Apr-2011,
,Revenue,CCHD,Supporting People Programme,Grants to Voluntary Bodies,Kingswood Young Homeless Project,5133.12, 27-Apr-2011,
,Revenue,CCHD,Supporting People Programme,Grants to Voluntary Bodies,Kingswood Young Homeless Project,5133.12, 27-Apr-2011,
,Revenue,CCHD,Supporting People Programme,Grants to Voluntary Bodies,Kingswood Young Homeless Project,4399.82, 27-Apr-2011,
,Revenue,CCHD,Under 65s PWLD - KH,Residential Homes,Kisimul Group,11087.32, 19-Apr-2011,
,Revenue,CCHD,Supporting People Programme,Grants to Voluntary Bodies,Knightstone Housing Association Limited,516.64, 27-Apr-2011,
,Revenue,CCHD,Supporting People Programme,Grants to Voluntary Bodies,Knightstone Housing Association Limited,516.64, 27-Apr-2011,
,Revenue,CCHD,Supporting People Programme,Grants to Voluntary Bodies,Knightstone Housing Association Limited,1387.68, 27-Apr-2011,
,Revenue,CCHD,Supporting People Programme,Grants to Voluntary Bodies,Knightstone Housing Association Limited,1387.68, 27-Apr-2011,
,Revenue,CCHD,Supporting People Programme,Grants to Voluntary Bodies,Knightstone Housing Association Limited,1968, 27-Apr-2011,
,Revenue,CCHD,Supporting People Programme,Grants to Voluntary Bodies,Knightstone Housing Association Limited,1968, 27-Apr-2011,
,Revenue,CCHD,Supporting People Programme,Grants to Voluntary Bodies,Knightstone Housing Association Limited,2193.84, 27-Apr-2011,
,Revenue,CCHD,Supporting People Programme,Grants to Voluntary Bodies,Knightstone Housing Association Limited,2193.84, 27-Apr-2011,
,Revenue,CCHD,Supporting People Programme,Grants to Voluntary Bodies,Knightstone Housing Association Limited,2194.4, 27-Apr-2011,
,Revenue,CCHD,Supporting People Programme,Grants to Voluntary Bodies,Knightstone Housing Association Limited,2194.4, 27-Apr-2011,
,Revenue,CCHD,Supporting People Programme,Grants to Voluntary Bodies,Knightstone Housing Association Limited,1189.44, 27-Apr-2011,
,Revenue,CCHD,Supporting People Programme,Grants to Voluntary Bodies,Knightstone Housing Association Limited,1686.86, 27-Apr-2011,
,Revenue,CCHD,Supporting People Programme,Grants to Voluntary Bodies,Knightstone Housing Association Limited,1880.43, 27-Apr-2011,
,Revenue,CCHD,Supporting People Programme,Grants to Voluntary Bodies,Knightstone Housing Association Limited,1880.91, 27-Apr-2011,
,Revenue,CCHD,Supporting People Programme,Grants to Voluntary Bodies,Knightstone Housing Association Ltd,1337.68, 18-Apr-2011,
,Revenue,CCHD,Supporting People Programme,Grants to Voluntary Bodies,Knightstone Housing Association Ltd,1537.27, 18-Apr-2011,
,Revenue,CCHD,Contracts & Commissioning Team,Other Small Contracts,Kumari Care Limited,7500, 01-Apr-2011,
,Revenue,CCHD,Contracts & Commissioning Team,Other Small Contracts,Kumari Care Limited,7500, 08-Apr-2011,
,Revenue,CCHD,Contracts & Commissioning Team,Other Small Contracts,Kumari Care Limited,7500, 15-Apr-2011,
,Revenue,CCHD,Contracts & Commissioning Team,Other Small Contracts,Kumari Care Limited,7500, 20-Apr-2011,
,Revenue,CCHD,Contracts & Commissioning Team,Other Small Contracts,Kumari Care Limited,7500, 28-Apr-2011,
,Revenue,CCHD,Home Care Purch North,Other Small Contracts,Kumari Care Limited,809.87, 05-Apr-2011,
,Revenue,CCHD,Home Care Purch North,Other Small Contracts,Kumari Care Limited,809.87, 15-Apr-2011,
,Revenue,CCHD,Home Care Purch North,Other Small Contracts,Kumari Care Limited,809.87, 15-Apr-2011,
,Revenue,CCHD,Section 117 Placements,Residential Homes,Laurel Court,4099.43, 15-Apr-2011,
,Revenue,CCHD,Purchasing Phys Dis - North,Nursing Homes,Leonard Cheshire  National Account Centr,2588.28, 19-Apr-2011,
,Revenue,CCHD,Purchasing Phys Dis - North,Residential Homes,Leonard Cheshire  National Account Centr,2313.76, 19-Apr-2011,
,Revenue,CCHD,Under 65s PWLD - KH,Residential Homes,Leonard Cheshire  National Account Centr,2905.32, 19-Apr-2011,
,Revenue,CCHD,Purchasing Phys Dis - North,Nursing Homes,Leonard Cheshire  National Account Centr,2698.6, 19-Apr-2011,
,Revenue,CCHD,Elderly Purchasing - South,Residential Homes,Leonard Cheshire  National Account Centr,4353.96, 19-Apr-2011,
,Revenue,CCHD,Purchasing Phys Dis - North,Nursing Homes,Leonard Cheshire  National Account Centr,2779.84, 19-Apr-2011,
,Revenue,CCHD,Purchasing Phys Dis - North,Nursing Homes,Leonard Cheshire  National Account Centr,2357.85, 19-Apr-2011,
,Revenue,CCHD,Purchasing Phys Dis - North,Nursing Homes,Leonard Cheshire  National Account Centr,788.95, 19-Apr-2011,
,Revenue,CCHD,Purchasing Phys Dis - North,Residential Homes,Leonard Cheshire  National Account Centr,2837.08, 19-Apr-2011,
,Revenue,CCHD,Purchasing Phys Dis - South,Nursing Homes,Leonard Cheshire  National Account Centr,3140.4, 19-Apr-2011,
,Revenue,CCHD,Purchasing Phys Dis - South,Nursing Homes,Leonard Cheshire  National Account Centr,5956.56, 19-Apr-2011,
,Revenue,CCHD,Purchasing Phys Dis - North,Nursing Homes,Leonard Cheshire  National Account Centr,5378.48, 19-Apr-2011,
,Revenue,CCHD,Purchasing Phys Dis - North,Nursing Homes,Leonard Cheshire  National Account Centr,3246, 19-Apr-2011,
,Revenue,CCHD,Frenchay Hospital Purchasing,Residential Homes,Leonard Cheshire  National Account Centr,2765.85, 19-Apr-2011,
,Revenue,CCHD,Frenchay Hospital Purchasing,Residential Homes,Leonard Cheshire  National Account Centr,924.55, 19-Apr-2011,
,Revenue,CCHD,Elderly Purchasing - North,Nursing Homes,Leonard Cheshire  National Account Centr,4531.24, 19-Apr-2011,
,Revenue,CCHD,S28A - Over 65,Residential Homes,Leonard Cheshire  National Account Centr,2845.89, 19-Apr-2011,
,Revenue,CCHD,Supported Living - KH,Private & Voluntary Home Care,Lifeways Community Care (Gloucester) Ltd,11373, 27-Apr-2011,
,Revenue,CCHD,Supported Living - KH,Private & Voluntary Home Care,Lifeways Community Care (Gloucester) Ltd,11373, 20-Apr-2011,
,Revenue,CCHD,Supported Living - KH,Private & Voluntary Home Care,Lifeways Community Care (Gloucester) Ltd,10990, 01-Apr-2011,
,Revenue,CCHD,Supported Living - KH,Private & Voluntary Home Care,Lifeways Community Care (Gloucester) Ltd,8792, 20-Apr-2011,
,Revenue,CCHD,Alexandra Way,Prop.Serv. General Repairs,Linmar Interiors Limited,690.2, 06-Apr-2011,
,Revenue,CCHD,Kerr House,Furniture & Fittings Loose,Lionel Saunders & Co (Bristol) Limited,490, 06-Apr-2011,
,Revenue,CCHD,Under 65s PWLD - KD,Residential Homes,Littlecroft Residential Homes  Longcroft,6430.48, 19-Apr-2011,
,Revenue,CCHD,Supported Living - PS,Private & Voluntary Home Care,Lloyds TSB Commercial Finance Limited,3261.57, 27-Apr-2011,
,Revenue,CCHD,Supported Living - PS,Private & Voluntary Home Care,Lloyds TSB Commercial Finance Limited,635.85, 01-Apr-2011,
,Revenue,CCHD,Supported Living - KD,Private & Voluntary Home Care,Lloyds TSB Commercial Finance Limited,3667.33, 13-Apr-2011,
,Revenue,CCHD,Supported Living - PS,Private & Voluntary Home Care,Lloyds TSB Commercial Finance Limited,6062.1, 14-Apr-2011,
,Revenue,CCHD,Supported Living - PS,Private & Voluntary Home Care,Lloyds TSB Commercial Finance Limited,5471.42, 01-Apr-2011,
,Revenue,CCHD,Supported Living - KD,Private & Voluntary Home Care,Lloyds TSB Commercial Finance Limited,3831.73, 13-Apr-2011,
,Revenue,CCHD,Supported Living - PS,Private & Voluntary Home Care,Lloyds TSB Commercial Finance Limited,4083.44, 14-Apr-2011,
,Revenue,CCHD,Supported Living - PS,Private & Voluntary Home Care,Lloyds TSB Commercial Finance Limited,3664.14, 01-Apr-2011,
,Revenue,CCHD,Supported Living - PS,Private & Voluntary Home Care,Lloyds TSB Commercial Finance Limited,3208.56, 14-Apr-2011,
,Revenue,CCHD,Supported Living - PS,Private & Voluntary Day Care,Lloyds TSB Commercial Finance Limited,635.85, 01-Apr-2011,
,Revenue,CCHD,Supported Living - PS,Private & Voluntary Home Care,Lloyds TSB Commercial Finance Limited,3084.4, 14-Apr-2011,
,Revenue,CCHD,Supported Living - PS,Private & Voluntary Day Care,Lloyds TSB Commercial Finance Limited,635.85, 01-Apr-2011,
,Revenue,CCHD,Supported Living - KD,Private & Voluntary Home Care,Lloyds TSB Commercial Finance Limited,3479.3, 13-Apr-2011,
,Revenue,CCHD,Home Care Purch North,Other Small Contracts,Lloyds TSB Commercial Finance Limited,5354.97, 05-Apr-2011,
,Revenue,CCHD,Day Care - North,Private & Voluntary Day Care,Lloyds TSB Commercial Finance Limited,383, 05-Apr-2011,
,Revenue,CCHD,Elderly MH Home Care,Other Small Contracts,Lloyds TSB Commercial Finance Limited,76.6, 05-Apr-2011,
,Revenue,CCHD,Elderly MH non-res purchasing,Private & Voluntary Day Care,Lloyds TSB Commercial Finance Limited,118.73, 05-Apr-2011,
,Revenue,CCHD,Home Care Purch North,Other Small Contracts,Lloyds TSB Commercial Finance Limited,4969.13, 05-Apr-2011,
,Revenue,CCHD,Day Care - North,Private & Voluntary Day Care,Lloyds TSB Commercial Finance Limited,405.98, 05-Apr-2011,
,Revenue,CCHD,Elderly MH Home Care,Other Small Contracts,Lloyds TSB Commercial Finance Limited,68.94, 05-Apr-2011,
,Revenue,CCHD,Elderly MH non-res purchasing,Private & Voluntary Day Care,Lloyds TSB Commercial Finance Limited,114.9, 05-Apr-2011,
,Revenue,CCHD,Supported Living - KH,Private & Voluntary Home Care,Lloyds TSB Commercial Finance Limited,573.05, 13-Apr-2011,
,Revenue,CCHD,Supported Living - PS,Private & Voluntary Home Care,Lloyds TSB Commercial Finance Limited,773.75, 14-Apr-2011,
,Revenue,CCHD,Supported Living - PS,Private & Voluntary Home Care,Lloyds TSB Commercial Finance Limited,687.4, 01-Apr-2011,
,Revenue,CCHD,Under 65s PWLD - KH,Residential Homes,Lufton Manor College,4809.7, 19-Apr-2011,
,Revenue,CCHD,Southmead Hospital Purchasing,Residential Homes,Lyndridge,1469.2, 27-Apr-2011,
,Revenue,CCHD,Southmead Hospital Purchasing,Residential Homes,Lyndridge,1469.2, 27-Apr-2011,
,Revenue,CCHD,Southmead Hospital Purchasing,Residential Homes,Lyndridge,1469.2, 27-Apr-2011,
,Revenue,CCHD,Southmead Hospital Purchasing,Residential Homes,Lyndridge,1469.2, 27-Apr-2011,
,Revenue,CCHD,Southmead Hospital Purchasing,Residential Homes,Lyndridge,1469.2, 27-Apr-2011,
,Revenue,CCHD,Tenancy Start Up Scheme,Other Supplies & Services,Individual,1190, 20-Apr-2011,
,Revenue,CCHD,Southmead Hospital Purchasing,Nursing Homes,Majestic 3 Limited,1052.32, 19-Apr-2011,
,Revenue,CCHD,Supporting People Programme,Grants to Voluntary Bodies,Maples Community Housing Limited,2401.2, 27-Apr-2011,
,Revenue,CCHD,Supporting People Programme,Grants to Voluntary Bodies,Maples Community Housing Limited,2401.2, 27-Apr-2011,
,Revenue,CCHD,Supporting People Programme,Grants to Voluntary Bodies,Maples Community Housing Limited,2058.17, 27-Apr-2011,
,Revenue,CCHD,Younger MH non-res purchasing,Private & Voluntary Day Care,Maples Community Housing Limited,645.11, 14-Apr-2011,
,Revenue,CCHD,Younger MH non-res purchasing,Private & Voluntary Day Care,Maples Community Housing Limited,624.3, 14-Apr-2011,
,Revenue,CCHD,Younger MH non-res purchasing,Private & Voluntary Day Care,Maples Community Housing Limited,665.92, 14-Apr-2011,
,Revenue,CCHD,Younger MH non-res purchasing,Private & Voluntary Day Care,Maples Community Housing Limited,655.52, 14-Apr-2011,
,Revenue,CCHD,Younger MH non-res purchasing,Private & Voluntary Day Care,Maples Community Housing Limited,582.68, 14-Apr-2011,
,Revenue,CCHD,Elderly Mental Health,Nursing Homes,Meadow Care Home,1457.41, 19-Apr-2011,
,Revenue,CCHD,Home Care Purch South,Other Small Contracts,Mears Care,1593.3, 05-Apr-2011,
,Revenue,CCHD,Home Care Purch North,Other Small Contracts,Mears Care,10062.7, 05-Apr-2011,
,Revenue,CCHD,Day Care - South,Private & Voluntary Day Care,Mears Care,230.3, 05-Apr-2011,
,Revenue,CCHD,Day Care - North,Private & Voluntary Day Care,Mears Care,376, 05-Apr-2011,
,Revenue,CCHD,Carer`s Grant - North,Carers Breaks & Services,Mears Care,37.6, 05-Apr-2011,
,Revenue,CCHD,Under 65s -MH  Home Care Purch,Other Small Contracts,Mears Care,141, 05-Apr-2011,
,Revenue,CCHD,Elderly MH Home Care,Other Small Contracts,Mears Care,864.8, 05-Apr-2011,
,Revenue,CCHD,Elderly MH non-res purchasing,Private & Voluntary Day Care,Mears Care,112.8, 05-Apr-2011,
,Revenue,CCHD,Home Care - Elderly LD - KH,Private & Voluntary Home Care,Mears Care,61.1, 05-Apr-2011,
,Revenue,CCHD,Home Care Purch South,Other Small Contracts,Mears Care,1626.2, 07-Apr-2011,
,Revenue,CCHD,Home Care Purch North,Other Small Contracts,Mears Care,10034.5, 07-Apr-2011,
,Revenue,CCHD,Day Care - South,Private & Voluntary Day Care,Mears Care,230.3, 07-Apr-2011,
,Revenue,CCHD,Day Care - North,Private & Voluntary Day Care,Mears Care,432.4, 07-Apr-2011,
,Revenue,CCHD,Carer`s Grant - North,Carers Breaks & Services,Mears Care,37.6, 07-Apr-2011,
,Revenue,CCHD,Under 65s -MH  Home Care Purch,Other Small Contracts,Mears Care,141, 07-Apr-2011,
,Revenue,CCHD,Elderly MH Home Care,Other Small Contracts,Mears Care,911.8, 07-Apr-2011,
,Revenue,CCHD,Elderly MH non-res purchasing,Private & Voluntary Day Care,Mears Care,112.8, 07-Apr-2011,
,Revenue,CCHD,Home Care - Elderly LD - KH,Private & Voluntary Home Care,Mears Care,65.8, 07-Apr-2011,
,Revenue,CCHD,Home Care Purch South,Other Small Contracts,Mears Care,1612.1, 07-Apr-2011,
,Revenue,CCHD,Home Care Purch North,Other Small Contracts,Mears Care,10006.3, 07-Apr-2011,
,Revenue,CCHD,Day Care - South,Private & Voluntary Day Care,Mears Care,230.3, 07-Apr-2011,
,Revenue,CCHD,Day Care - North,Private & Voluntary Day Care,Mears Care,380.7, 07-Apr-2011,
,Revenue,CCHD,Carer`s Grant - North,Carers Breaks & Services,Mears Care,37.6, 07-Apr-2011,
,Revenue,CCHD,Under 65s -MH  Home Care Purch,Other Small Contracts,Mears Care,141, 07-Apr-2011,
,Revenue,CCHD,Elderly MH Home Care,Other Small Contracts,Mears Care,169.2, 07-Apr-2011,
,Revenue,CCHD,Elderly MH non-res purchasing,Private & Voluntary Day Care,Mears Care,112.8, 07-Apr-2011,
,Revenue,CCHD,Home Care - Elderly LD - KH,Private & Voluntary Home Care,Mears Care,65.8, 07-Apr-2011,
,Revenue,CCHD,Home Care Purch South,Other Small Contracts,Mears Care,1588.6, 27-Apr-2011,
,Revenue,CCHD,Home Care Purch North,Other Small Contracts,Mears Care,10156.7, 27-Apr-2011,
,Revenue,CCHD,Day Care - South,Private & Voluntary Day Care,Mears Care,230.3, 27-Apr-2011,
,Revenue,CCHD,Day Care - North,Private & Voluntary Day Care,Mears Care,347.8, 27-Apr-2011,
,Revenue,CCHD,Carer`s Grant - North,Carers Breaks & Services,Mears Care,37.6, 27-Apr-2011,
,Revenue,CCHD,Under 65s -MH  Home Care Purch,Other Small Contracts,Mears Care,141, 27-Apr-2011,
,Revenue,CCHD,Elderly MH Home Care,Other Small Contracts,Mears Care,84.6, 27-Apr-2011,
,Revenue,CCHD,Elderly MH non-res purchasing,Private & Voluntary Day Care,Mears Care,112.8, 27-Apr-2011,
,Revenue,CCHD,Home Care - Elderly LD - KH,Private & Voluntary Home Care,Mears Care,65.8, 27-Apr-2011,
,Revenue,CCHD,Home Care Purch South,Other Small Contracts,Medacs Home Care,346.8, 07-Apr-2011,
,Revenue,CCHD,Home Care Purch North,Other Small Contracts,Medacs Home Care,1091.4, 07-Apr-2011,
,Revenue,CCHD,Day Care - North,Private & Voluntary Day Care,Medacs Home Care,44.2, 07-Apr-2011,
,Revenue,CCHD,Elderly MH Home Care,Other Small Contracts,Medacs Home Care,224.4, 07-Apr-2011,
,Revenue,CCHD,Elderly MH non-res purchasing,Private & Voluntary Day Care,Medacs Home Care,68, 07-Apr-2011,
,Revenue,CCHD,Home Care Purch South,Other Small Contracts,Medacs Home Care,377.4, 06-Apr-2011,
,Revenue,CCHD,Home Care Purch North,Other Small Contracts,Medacs Home Care,1016.6, 06-Apr-2011,
,Revenue,CCHD,Day Care - North,Private & Voluntary Day Care,Medacs Home Care,51, 06-Apr-2011,
,Revenue,CCHD,Elderly MH Home Care,Other Small Contracts,Medacs Home Care,207.4, 06-Apr-2011,
,Revenue,CCHD,Elderly MH non-res purchasing,Private & Voluntary Day Care,Medacs Home Care,74.8, 06-Apr-2011,
,Revenue,CCHD,Home Care Purch South,Other Small Contracts,Medacs Home Care,363.8, 06-Apr-2011,
,Revenue,CCHD,Home Care Purch North,Other Small Contracts,Medacs Home Care,1020, 06-Apr-2011,
,Revenue,CCHD,Day Care - North,Private & Voluntary Day Care,Medacs Home Care,57.8, 06-Apr-2011,
,Revenue,CCHD,Elderly MH Home Care,Other Small Contracts,Medacs Home Care,190.4, 06-Apr-2011,
,Revenue,CCHD,Elderly MH non-res purchasing,Private & Voluntary Day Care,Medacs Home Care,71.4, 06-Apr-2011,
,Revenue,CCHD,Home Care Purch South,Other Small Contracts,Medacs Home Care,380.8, 06-Apr-2011,
,Revenue,CCHD,Home Care Purch North,Other Small Contracts,Medacs Home Care,1183.2, 06-Apr-2011,
,Revenue,CCHD,Day Care - North,Private & Voluntary Day Care,Medacs Home Care,51, 06-Apr-2011,
,Revenue,CCHD,Elderly MH Home Care,Other Small Contracts,Medacs Home Care,231.2, 06-Apr-2011,
,Revenue,CCHD,Elderly MH non-res purchasing,Private & Voluntary Day Care,Medacs Home Care,68, 06-Apr-2011,
,Revenue,CCHD,Home Care Purch South,Other Small Contracts,Medacs Home Care,374, 12-Apr-2011,
,Revenue,CCHD,Home Care Purch North,Other Small Contracts,Medacs Home Care,986, 12-Apr-2011,
,Revenue,CCHD,Day Care - North,Private & Voluntary Day Care,Medacs Home Care,54.4, 12-Apr-2011,
,Revenue,CCHD,Elderly MH Home Care,Other Small Contracts,Medacs Home Care,227.8, 12-Apr-2011,
,Revenue,CCHD,Elderly MH non-res purchasing,Private & Voluntary Day Care,Medacs Home Care,64.6, 12-Apr-2011,
,Revenue,CCHD,Home Care Purch South,Other Small Contracts,Medacs Home Care,367.2, 06-Apr-2011,
,Revenue,CCHD,Home Care Purch North,Other Small Contracts,Medacs Home Care,1003, 06-Apr-2011,
,Revenue,CCHD,Day Care - North,Private & Voluntary Day Care,Medacs Home Care,51, 06-Apr-2011,
,Revenue,CCHD,Elderly MH Home Care,Other Small Contracts,Medacs Home Care,275.4, 06-Apr-2011,
,Revenue,CCHD,Elderly MH non-res purchasing,Private & Voluntary Day Care,Medacs Home Care,64.6, 06-Apr-2011,
,Revenue,CCHD,Home Care Purch South,Other Small Contracts,Medacs Home Care,350.2, 12-Apr-2011,
,Revenue,CCHD,Home Care Purch North,Other Small Contracts,Medacs Home Care,1023.4, 12-Apr-2011,
,Revenue,CCHD,Day Care - North,Private & Voluntary Day Care,Medacs Home Care,44.2, 12-Apr-2011,
,Revenue,CCHD,Elderly MH Home Care,Other Small Contracts,Medacs Home Care,193.8, 12-Apr-2011,
,Revenue,CCHD,Elderly MH non-res purchasing,Private & Voluntary Day Care,Medacs Home Care,37.4, 12-Apr-2011,
,Revenue,CCHD,NRS Contract,Daily Living Equipment,Medequip Assistive Technology Ltd,31837.24, 19-Apr-2011,
,Revenue,CCHD,NRS Contract,Daily Living Equipment,Medequip Assistive Technology Ltd,52844.19, 19-Apr-2011,
,Revenue,CCHD,NRS Contract,Other Supplies & Services,Medequip Assistive Technology Ltd,7168.13, 19-Apr-2011,
,Revenue,CCHD,NRS Contract,Daily Living Equipment,Medequip Assistive Technology Ltd,181.8, 20-Apr-2011,
,Revenue,CCHD,NRS Contract,Daily Living Equipment,Medequip Assistive Technology Ltd,323.2, 20-Apr-2011,
,Revenue,CCHD,NRS Contract,Other Supplies & Services,Medequip Assistive Technology Ltd,275, 20-Apr-2011,
,Revenue,CCHD,Contracts & Commissioning Team,Other Small Contracts,Medico Nursing & Homecare Ltd,18000, 01-Apr-2011,
,Revenue,CCHD,Contracts & Commissioning Team,Other Small Contracts,Medico Nursing & Homecare Ltd,18000, 08-Apr-2011,
,Revenue,CCHD,Contracts & Commissioning Team,Other Small Contracts,Medico Nursing & Homecare Ltd,18000, 15-Apr-2011,
,Revenue,CCHD,Contracts & Commissioning Team,Other Small Contracts,Medico Nursing & Homecare Ltd,18000, 20-Apr-2011,
,Revenue,CCHD,Contracts & Commissioning Team,Other Small Contracts,Medico Nursing & Homecare Ltd,18000, 28-Apr-2011,
,Revenue,CCHD,Home Care Purch North,Other Small Contracts,Medico Nursing & Homecare Ltd,1927.73, 01-Apr-2011,
,Revenue,CCHD,Home Care Purch North,Other Small Contracts,Medico Nursing & Homecare Ltd,1927.73, 08-Apr-2011,
,Revenue,CCHD,Home Care Purch North,Other Small Contracts,Medico Nursing & Homecare Ltd,1927.73, 15-Apr-2011,
,Revenue,CCHD,Home Care Purch North,Other Small Contracts,Medico Nursing & Homecare Ltd,1927.73, 20-Apr-2011,
,Revenue,CCHD,Contracts & Commissioning Team,Other Small Contracts,Medico Nursing & Homecare Ltd,12897.67, 20-Apr-2011,
,Revenue,CCHD,Contracts & Commissioning Team,Other Small Contracts,Medico Nursing & Homecare Ltd,14918.25, 20-Apr-2011,
,Revenue,CCHD,Supported Living (S28a),Private & Voluntary Home Care,Mencap - PSH West,3689, 13-Apr-2011,
,Revenue,CCHD,Supported Living (S28a),Private & Voluntary Home Care,Mencap - PSH West,3689, 13-Apr-2011,
,Revenue,CCHD,Supported Living (S28a),Private & Voluntary Home Care,Mencap - PSH West,3689, 13-Apr-2011,
,Revenue,CCHD,Supported Living (S28a),Private & Voluntary Home Care,Mencap - PSH West,3689, 13-Apr-2011,
,Revenue,CCHD,Supporting People Programme,Grants to Voluntary Bodies,Merlin Housing Society,2172.8, 27-Apr-2011,
,Revenue,CCHD,Supporting People Programme,Grants to Voluntary Bodies,Merlin Housing Society,2172.8, 27-Apr-2011,
,Revenue,CCHD,Supporting People Programme,Grants to Voluntary Bodies,Merlin Housing Society,2186.3, 27-Apr-2011,
,Revenue,CCHD,Supporting People Programme,Grants to Voluntary Bodies,Merlin Housing Society,2186.3, 27-Apr-2011,
,Revenue,CCHD,Supporting People Programme,Grants to Voluntary Bodies,Merlin Housing Society,2416.44, 27-Apr-2011,
,Revenue,CCHD,Supporting People Programme,Grants to Voluntary Bodies,Merlin Housing Society,2416.44, 27-Apr-2011,
,Revenue,CCHD,Supporting People Programme,Grants to Voluntary Bodies,Merlin Housing Society,3452.84, 27-Apr-2011,
,Revenue,CCHD,Supporting People Programme,Grants to Voluntary Bodies,Merlin Housing Society,3452.84, 27-Apr-2011,
,Revenue,CCHD,Supporting People Programme,Grants to Voluntary Bodies,Merlin Housing Society,13808.8, 27-Apr-2011,
,Revenue,CCHD,Supporting People Programme,Grants to Voluntary Bodies,Merlin Housing Society,13808.8, 27-Apr-2011,
,Revenue,CCHD,Supporting People Programme,Grants to Voluntary Bodies,Merlin Housing Society,41424.66, 27-Apr-2011,
,Revenue,CCHD,Supporting People Programme,Grants to Voluntary Bodies,Merlin Housing Society,41424.66, 27-Apr-2011,
,Revenue,CCHD,Supporting People Programme,Grants to Voluntary Bodies,Merlin Housing Society,1862.4, 27-Apr-2011,
,Revenue,CCHD,Supporting People Programme,Grants to Voluntary Bodies,Merlin Housing Society,1873.97, 27-Apr-2011,
,Revenue,CCHD,Supporting People Programme,Grants to Voluntary Bodies,Merlin Housing Society,2071.23, 27-Apr-2011,
,Revenue,CCHD,Supporting People Programme,Grants to Voluntary Bodies,Merlin Housing Society,2466.31, 27-Apr-2011,
,Revenue,CCHD,Supporting People Programme,Grants to Voluntary Bodies,Merlin Housing Society,35506.85, 27-Apr-2011,
,Revenue,CCHD,Supporting People Programme,Grants to Voluntary Bodies,Merlin Housing Society,28892.44, 13-Apr-2011,
,Revenue,CCHD,Supporting People Programme,Grants to Voluntary Bodies,Merlin Housing Society,6568.85, 12-Apr-2011,
,Revenue,CCHD,Bed and Breakfast,Other Supplies & Services,Merlin Housing Society,7653.76, 05-Apr-2011,
,Revenue,CCHD,Elderly Mental Health,Residential Homes,Mid Lothian Council,8642.14, 14-Apr-2011,
,Revenue,CCHD,Contracts & Commissioning Team,Other Small Contracts,Milestones Outreach Dementia Services,2000, 01-Apr-2011,
,Revenue,CCHD,Contracts & Commissioning Team,Other Small Contracts,Milestones Outreach Dementia Services,2000, 08-Apr-2011,
,Revenue,CCHD,Contracts & Commissioning Team,Other Small Contracts,Milestones Outreach Dementia Services,2000, 15-Apr-2011,
,Revenue,CCHD,Contracts & Commissioning Team,Other Small Contracts,Milestones Outreach Dementia Services,2000, 20-Apr-2011,
,Revenue,CCHD,Contracts & Commissioning Team,Other Small Contracts,Milestones Outreach Dementia Services,2000, 28-Apr-2011,
,Revenue,CCHD,Section 117 Placements,Nursing Homes,Mimosa Healthcare Holdings Ltd,1888, 19-Apr-2011,
,Revenue,CCHD,Southmead Hospital Purchasing,Nursing Homes,Mimosa Healthcare Holdings Ltd,855.64, 19-Apr-2011,
,Revenue,CCHD,Southmead Hospital Purchasing,Residential Homes,Mostyn Lodge Residential Home,1251.45, 19-Apr-2011,
,Revenue,CCHD,Section 117 Placements,Residential Homes,Mostyn Lodge Residential Home,1848, 19-Apr-2011,
,Revenue,CCHD,Mental Illness SLA's,Grants to Voluntary Bodies,Mothers for Mothers,2100, 05-Apr-2011,
,Revenue,CCHD,Supported Living - PS,Private & Voluntary Home Care,Moving On,6456.38, 14-Apr-2011,
,Revenue,CCHD,Tenancy Start Up Scheme,Other Supplies & Services,Individual,990, 20-Apr-2011,
,Revenue,CCHD,Rent in Advance,Other Supplies & Services,Mr Geoff Webb,575, 27-Apr-2011,
,Revenue,CCHD,Under 65s PWLD - KH,Residential Homes,Mr J Davis & Mrs S Davis,1840, 27-Apr-2011,
,Revenue,CCHD,Tenancy Start Up Scheme,Other Supplies & Services,Individual,675, 01-Apr-2011,
,Revenue,CCHD,Elderly MH non-res purchasing,Private & Voluntary Day Care,Mrs B Kimber,726.8, 05-Apr-2011,
,Revenue,CCHD,Supported Living - KD,Private & Voluntary Home Care,Mrs B Kimber,3393.16, 08-Apr-2011,
,Revenue,CCHD,Day Care - North,Private & Voluntary Day Care,Mrs B Kimber,534.44, 05-Apr-2011,
,Revenue,CCHD,Day Care - North,Private & Voluntary Day Care,Mrs B Kimber,1290.07, 05-Apr-2011,
,Revenue,CCHD,Day Care - South,Private & Voluntary Day Care,Mrs B Kimber,726.72, 28-Apr-2011,
,Revenue,CCHD,Elderly MH non-res purchasing,Private & Voluntary Day Care,Mrs B Kimber,569.52, 20-Apr-2011,
,Revenue,CCHD,Elderly MH non-res purchasing,Private & Voluntary Day Care,Mrs B Kimber,508.76, 20-Apr-2011,
,Revenue,CCHD,Day Care - South,Private & Voluntary Day Care,Mrs B Kimber,704.76, 28-Apr-2011,
,Revenue,CCHD,Elderly MH non-res purchasing,Private & Voluntary Day Care,Mrs B Kimber,704.76, 20-Apr-2011,
,Revenue,CCHD,Elderly MH non-res purchasing,Private & Voluntary Day Care,Mrs B Kimber,654.12, 20-Apr-2011,
,Revenue,CCHD,Elderly MH non-res purchasing,Private & Voluntary Day Care,Mrs B Kimber,654.12, 20-Apr-2011,
,Revenue,CCHD,Supported Living - KH,Private & Voluntary Home Care,Mrs B Kimber,1355.98, 07-Apr-2011,
,Revenue,CCHD,Purchase of Non-Res Care - KD,Private & Voluntary Day Care,Mrs B Kimber,707.36, 08-Apr-2011,
,Revenue,CCHD,Supported Living - KD,Private & Voluntary Home Care,Mrs B Kimber,1114.56, 08-Apr-2011,
,Revenue,CCHD,Elderly MH non-res purchasing,Private & Voluntary Day Care,Mrs B Kimber,690.46, 20-Apr-2011,
,Revenue,CCHD,Supported Living - KH,Private & Voluntary Home Care,Mrs B Kimber,1676.56, 07-Apr-2011,
,Revenue,CCHD,Supported Living - KH,Private & Voluntary Home Care,Mrs B Kimber,872.16, 07-Apr-2011,
,Revenue,CCHD,Supported Living - PS,Private & Voluntary Home Care,Mrs B Kimber,11113.74, 27-Apr-2011,
,Revenue,CCHD,Day Care - North,Private & Voluntary Day Care,Mrs B Kimber,577.43, 28-Apr-2011,
,Revenue,CCHD,Day Care - North,Private & Voluntary Day Care,Mrs B Kimber,668.05, 28-Apr-2011,
,Revenue,CCHD,Day Care - North,Private & Voluntary Day Care,Mrs B Kimber,1352.4, 27-Apr-2011,
,Revenue,CCHD,Supported Living - KH,Private & Voluntary Home Care,Mrs B Kimber,1209.96, 20-Apr-2011,
,Revenue,CCHD,Supported Living - KH,Private & Voluntary Home Care,Mrs B Kimber,944.84, 20-Apr-2011,
,Revenue,CCHD,Contracts & Commissioning Team,Other Small Contracts,Mrs B Kimber,8000, 01-Apr-2011,
,Revenue,CCHD,Contracts & Commissioning Team,Other Small Contracts,Mrs B Kimber,8000, 08-Apr-2011,
,Revenue,CCHD,Contracts & Commissioning Team,Other Small Contracts,Mrs B Kimber,8000, 15-Apr-2011,
,Revenue,CCHD,Contracts & Commissioning Team,Other Small Contracts,Mrs B Kimber,8000, 20-Apr-2011,
,Revenue,CCHD,Contracts & Commissioning Team,Other Small Contracts,Mrs B Kimber,8000, 28-Apr-2011,
,Revenue,CCHD,Younger MH non-res purchasing,Private & Voluntary Home Care,Mrs Felicity Cooksley,1676, 11-Apr-2011,
,Revenue,CCHD,Supporting People Programme,Grants to Voluntary Bodies,Mrs Jane Spiers Cowie,759.22, 27-Apr-2011,
,Revenue,CCHD,Purchase of Non-Res Care - KD,Private & Voluntary Day Care,Mrs W Thompson,554, 13-Apr-2011,
,Revenue,CCHD,Purchase of Non-Res Care - KD,Private & Voluntary Day Care,Mrs W Thompson,1460, 14-Apr-2011,
,Revenue,CCHD,Younger MH non-res purchasing,Private & Voluntary Day Care,NAS Services Limited,791.7, 01-Apr-2011,
,Revenue,CCHD,Younger MH non-res purchasing,Private & Voluntary Day Care,NAS Services Limited,1489.15, 01-Apr-2011,
,Revenue,CCHD,Younger MH non-res purchasing,Private & Voluntary Day Care,NAS Services Limited,705.67, 20-Apr-2011,
,Revenue,CCHD,Purchase of Non-Res Care - KH,Private & Voluntary Day Care,Natureworks Training Community Interest,1031.76, 04-Apr-2011,
,Revenue,CCHD,Contracts & Commissioning Team,Other Small Contracts,Network Health & Social Care,2500, 01-Apr-2011,
,Revenue,CCHD,Contracts & Commissioning Team,Other Small Contracts,Network Health & Social Care,2500, 08-Apr-2011,
,Revenue,CCHD,Contracts & Commissioning Team,Other Small Contracts,Network Health & Social Care,2500, 15-Apr-2011,
,Revenue,CCHD,Contracts & Commissioning Team,Other Small Contracts,Network Health & Social Care,2500, 20-Apr-2011,
,Revenue,CCHD,Contracts & Commissioning Team,Other Small Contracts,Network Health & Social Care,2500, 28-Apr-2011,
,Revenue,CCHD,Elderly Purchasing - North,Residential Homes,Newton House,887.84, 19-Apr-2011,
,Revenue,CCHD,Purchase of Non-Res Care - KH,Private & Voluntary Day Care,Nightingale Care Homes,3085.94, 07-Apr-2011,
,Revenue,CCHD,Under 65s PWLD - KH,Residential Homes,Nightingale Nursing Home,3047.48, 19-Apr-2011,
,Revenue,CCHD,S28A - Under 65,Residential Homes,North Lincolnshire Council,3527.1, 12-Apr-2011,
,Revenue,CCHD,Purchase of RAC places,Other L.A.'s - General,North Somerset Council,4819.5, 01-Apr-2011,
,Revenue,CCHD,Block Contracts,Nursing Homes,North Somerset Council,12890.64, 27-Apr-2011,
,Revenue,CCHD,Information Systems - Software,Software Support & Maintenance,Northgate Information Solutions UK Limited,106875.1, 15-Apr-2011,
,Revenue,CCHD,Information Systems - Software,Software Support & Maintenance,Northgate Information Solutions UK Limited,10247.07, 15-Apr-2011,
,Revenue,CCHD,Under 65s PWLD - PS,Residential Homes,Norwood   Broadway House,4795.12, 19-Apr-2011,
,Revenue,CCHD,MH Purchasing - Younger,Residential Homes,Notaro Homes Ltd  Queensmead Court,1065.35, 19-Apr-2011,
,Revenue,CCHD,Home Care Purch South,Other Small Contracts,Nursing Solutions Limited,911.25, 05-Apr-2011,
,Revenue,CCHD,Elderly MH Home Care,Other Small Contracts,Nursing Solutions Limited,384.75, 05-Apr-2011,
,Revenue,CCHD,Elderly MH non-res purchasing,Private & Voluntary Day Care,Nursing Solutions Limited,145.8, 05-Apr-2011,
,Revenue,CCHD,Home Care Purch South,Other Small Contracts,Nursing Solutions Limited,943.65, 05-Apr-2011,
,Revenue,CCHD,Elderly MH Home Care,Other Small Contracts,Nursing Solutions Limited,417.15, 05-Apr-2011,
,Revenue,CCHD,Elderly MH non-res purchasing,Private & Voluntary Day Care,Nursing Solutions Limited,174.15, 05-Apr-2011,
,Revenue,CCHD,Home Care Purch South,Other Small Contracts,Nursing Solutions Limited,882.9, 27-Apr-2011,
,Revenue,CCHD,Elderly MH Home Care,Other Small Contracts,Nursing Solutions Limited,425.25, 27-Apr-2011,
,Revenue,CCHD,Elderly MH non-res purchasing,Private & Voluntary Day Care,Nursing Solutions Limited,417.15, 27-Apr-2011,
,Revenue,CCHD,Home Care Purch South,Other Small Contracts,Nursing Solutions Limited,907.2, 07-Apr-2011,
,Revenue,CCHD,Elderly MH Home Care,Other Small Contracts,Nursing Solutions Limited,425.25, 07-Apr-2011,
,Revenue,CCHD,Elderly MH non-res purchasing,Private & Voluntary Day Care,Nursing Solutions Limited,255.15, 07-Apr-2011,
,Revenue,CCHD,Home Care Purch South,Other Small Contracts,Nursing Solutions Limited,939.6, 07-Apr-2011,
,Revenue,CCHD,Elderly MH Home Care,Other Small Contracts,Nursing Solutions Limited,409.05, 07-Apr-2011,
,Revenue,CCHD,Elderly MH non-res purchasing,Private & Voluntary Day Care,Nursing Solutions Limited,255.15, 07-Apr-2011,
,Revenue,CCHD,Home Care Purch South,Other Small Contracts,Nursing Solutions Limited,1012.5, 07-Apr-2011,
,Revenue,CCHD,Elderly MH Home Care,Other Small Contracts,Nursing Solutions Limited,413.1, 07-Apr-2011,
,Revenue,CCHD,Elderly MH non-res purchasing,Private & Voluntary Day Care,Nursing Solutions Limited,206.55, 07-Apr-2011,
,Revenue,CCHD,Home Care Purch South,Other Small Contracts,Nursing Solutions Limited,1004.4, 27-Apr-2011,
,Revenue,CCHD,Elderly MH Home Care,Other Small Contracts,Nursing Solutions Limited,356.4, 27-Apr-2011,
,Revenue,CCHD,Elderly MH non-res purchasing,Private & Voluntary Day Care,Nursing Solutions Limited,206.55, 27-Apr-2011,
,Revenue,CCHD,Home Care Purch South,Other Small Contracts,Nursing Solutions Limited,963.9, 27-Apr-2011,
,Revenue,CCHD,Elderly MH Home Care,Other Small Contracts,Nursing Solutions Limited,372.6, 27-Apr-2011,
,Revenue,CCHD,Elderly MH non-res purchasing,Private & Voluntary Day Care,Nursing Solutions Limited,145.8, 27-Apr-2011,
,Revenue,CCHD,Home Care Purch South,Other Small Contracts,On the Up,403.38, 07-Apr-2011,
,Revenue,CCHD,Day Care - South,Private & Voluntary Day Care,On the Up,63.18, 07-Apr-2011,
,Revenue,CCHD,Elderly MH non-res purchasing,Private & Voluntary Day Care,On the Up,77.76, 07-Apr-2011,
,Revenue,CCHD,Home Care Purch South,Other Small Contracts,On the Up,364.5, 07-Apr-2011,
,Revenue,CCHD,Day Care - South,Private & Voluntary Day Care,On the Up,63.18, 07-Apr-2011,
,Revenue,CCHD,Elderly MH non-res purchasing,Private & Voluntary Day Care,On the Up,77.76, 07-Apr-2011,
,Revenue,CCHD,S28A - Under 65,Residential Homes,Orchard End Limited,7468.76, 19-Apr-2011,
,Revenue,CCHD,Getting a Life Project,Other Supplies & Services,Orchard Restaurant (Taunton Racecourse) Ltd,920, 05-Apr-2011,
,Revenue,CCHD,Elderly Mental Health,Residential Homes,Osborne House,1409.01, 19-Apr-2011,
,Revenue,CCHD,Elderly Mental Health,Residential Homes,Osbourne Court,1406.8, 19-Apr-2011,
,Revenue,CCHD,Elderly Purchasing - North,Residential Homes,Osbourne Court,725.88, 19-Apr-2011,
,Revenue,CCHD,Elderly Mental Health,Nursing Homes,Osbourne Court,1384.52, 19-Apr-2011,
,Revenue,CCHD,Section 117 Placements,Residential Homes,Osbourne Court,1782, 19-Apr-2011,
,Revenue,CCHD,Elderly Purchasing - North,Residential Homes,Osbourne Court,1053.48, 19-Apr-2011,
,Revenue,CCHD,Elderly Mental Health,Residential Homes,Osbourne Court,1438.8, 19-Apr-2011,
,Revenue,CCHD,Elderly Mental Health,Residential Homes,Osbourne Court,703.4, 19-Apr-2011,
,Revenue,CCHD,Section 117 Placements,Residential Homes,Osbourne Court,1848, 19-Apr-2011,
,Revenue,CCHD,Frenchay Hospital Purchasing,Residential Homes,Osbourne Court,890.85, 19-Apr-2011,
,Revenue,CCHD,Yate District Office,Office Supplies & Equipment,Osmond Group Limited,754.42, 14-Apr-2011,
,Revenue,CCHD,Under 65s PWLD - PS,Residential Homes,Osprey Court,8057.08, 19-Apr-2011,
,Revenue,CCHD,S28A - Under 65,Residential Homes,Osprey Court,4494.36, 19-Apr-2011,
,Revenue,CCHD,Elderly Mental Health,Residential Homes,Park Farm House,998.61, 19-Apr-2011,
,Revenue,CCHD,Elderly Purchasing - South,Residential Homes,Park Farm House,1487.24, 19-Apr-2011,
,Revenue,CCHD,Southmead Hospital Purchasing,Residential Homes,Park Farm House,1132.95, 19-Apr-2011,
,Revenue,CCHD,Elderly Mental Health,Residential Homes,Park Farm House,1584.2, 19-Apr-2011,
,Revenue,CCHD,Elderly Mental Health,Residential Homes,Park Farm House,1144.32, 19-Apr-2011,
,Revenue,CCHD,Elderly Purchasing - South,Residential Homes,Park Street Home,3469.5, 19-Apr-2011,
,Revenue,CCHD,Alexandra Way,Furniture & Fittings Loose,Pearce Bros,2050, 07-Apr-2011,
,Revenue,CCHD,Alexandra Way,Furniture & Fittings Loose,Pearce Bros Mobility Centre,2050, 20-Apr-2011,
,Revenue,CCHD,Under 65s PWLD - KH,Residential Homes,Penleigh House Care Home,4391.92, 19-Apr-2011,
,Revenue,CCHD,S28A - Under 65,Residential Homes,Penleigh House Care Home,5299.32, 19-Apr-2011,
,Revenue,CCHD,Section 117 Placements,Nursing Homes,Pennwood Lodge Nursing Home,1911.96, 19-Apr-2011,
,Revenue,CCHD,Section 117 Placements,Nursing Homes,Pennwood Lodge Nursing Home,1921.08, 19-Apr-2011,
,Revenue,CCHD,Elderly Mental Health,Nursing Homes,Pennwood Lodge Nursing Home,1778.86, 19-Apr-2011,
,Revenue,CCHD,Elderly Purchasing - North,Residential Homes,Pennwood Lodge Nursing Home,1481.12, 19-Apr-2011,
,Revenue,CCHD,Elderly Mental Health,Nursing Homes,Pennwood Lodge Nursing Home,1470.8, 19-Apr-2011,
,Revenue,CCHD,Elderly Mental Health,Nursing Homes,Pennwood Lodge Nursing Home,908.01, 19-Apr-2011,
,Revenue,CCHD,Elderly Mental Health,Nursing Homes,Pennwood Lodge Nursing Home,1470.8, 19-Apr-2011,
,Revenue,CCHD,Elderly Mental Health,Nursing Homes,Pennwood Lodge Nursing Home,1195, 19-Apr-2011,
,Revenue,CCHD,Elderly Mental Health,Nursing Homes,Pennwood Lodge Nursing Home,905.48, 19-Apr-2011,
,Revenue,CCHD,Home Care Purch North,Other Small Contracts,Premier Homecare Limited,1534, 08-Apr-2011,
,Revenue,CCHD,Home Care Purch North,Other Small Contracts,Premier Homecare Limited,7278.72, 07-Apr-2011,
,Revenue,CCHD,Day Care - North,Private & Voluntary Day Care,Premier Homecare Limited,962.88, 07-Apr-2011,
,Revenue,CCHD,Elderly MH Home Care,Other Small Contracts,Premier Homecare Limited,179.52, 07-Apr-2011,
,Revenue,CCHD,Elderly MH non-res purchasing,Private & Voluntary Day Care,Premier Homecare Limited,250.24, 07-Apr-2011,
,Revenue,CCHD,Home Care Purch North,Other Small Contracts,Premier Homecare Limited,7626.88, 11-Apr-2011,
,Revenue,CCHD,Day Care - North,Private & Voluntary Day Care,Premier Homecare Limited,1022.72, 11-Apr-2011,
,Revenue,CCHD,Elderly MH Home Care,Other Small Contracts,Premier Homecare Limited,184.96, 11-Apr-2011,
,Revenue,CCHD,Elderly MH non-res purchasing,Private & Voluntary Day Care,Premier Homecare Limited,250.24, 11-Apr-2011,
,Revenue,CCHD,Home Care Purch North,Other Small Contracts,Premier Homecare Limited,6402.88, 27-Apr-2011,
,Revenue,CCHD,Day Care - North,Private & Voluntary Day Care,Premier Homecare Limited,739.84, 27-Apr-2011,
,Revenue,CCHD,Elderly MH Home Care,Other Small Contracts,Premier Homecare Limited,179.52, 27-Apr-2011,
,Revenue,CCHD,Elderly MH non-res purchasing,Private & Voluntary Day Care,Premier Homecare Limited,250.24, 27-Apr-2011,
,Revenue,CCHD,Home Care Purch North,Other Small Contracts,Premier Homecare Limited,7213.44, 27-Apr-2011,
,Revenue,CCHD,Day Care - North,Private & Voluntary Day Care,Premier Homecare Limited,794.24, 27-Apr-2011,
,Revenue,CCHD,Elderly MH Home Care,Other Small Contracts,Premier Homecare Limited,179.52, 27-Apr-2011,
,Revenue,CCHD,Elderly MH non-res purchasing,Private & Voluntary Day Care,Premier Homecare Limited,250.24, 27-Apr-2011,
,Revenue,CCHD,Contracts & Commissioning Team,Other Small Contracts,Prestige Nursing,4500, 01-Apr-2011,
,Revenue,CCHD,Contracts & Commissioning Team,Other Small Contracts,Prestige Nursing,4500, 08-Apr-2011,
,Revenue,CCHD,Contracts & Commissioning Team,Other Small Contracts,Prestige Nursing,4500, 15-Apr-2011,
,Revenue,CCHD,Contracts & Commissioning Team,Other Small Contracts,Prestige Nursing,4500, 20-Apr-2011,
,Revenue,CCHD,Contracts & Commissioning Team,Other Small Contracts,Prestige Nursing,4500, 28-Apr-2011,
,Revenue,CCHD,Carers STF,Grants to Voluntary Bodies,Princess Royal Trust Carers Centre,37500, 05-Apr-2011,
,Revenue,CCHD,Carers STF,Grants to Voluntary Bodies,Princess Royal Trust Carers Centre,1930.75, 05-Apr-2011,
,Revenue,CCHD,Preventative Technology Grant,Other Supplies & Services,Princess Royal Trust Carers Centre,5297.65, 15-Apr-2011,
,Revenue,CCHD,Alexandra Way,Equipment Maintenance,Professional Hygiene Ltd,468.45, 04-Apr-2011,
,Revenue,CCHD,Newton House,Equipment Maintenance,Professional Hygiene Ltd,470.45, 13-Apr-2011,
,Revenue,CCHD,Frenchay Hospital Purchasing,Residential Homes,Quality Care Homes Ltd,842.06, 19-Apr-2011,
,Revenue,CCHD,Elderly Purchasing - South,Residential Homes,Quality Care Homes Ltd,1264.6, 19-Apr-2011,
,Revenue,CCHD,Elderly Purchasing - South,Residential Homes,Quality Care Homes Ltd,1250.8, 19-Apr-2011,
,Revenue,CCHD,Elderly Purchasing - South,Residential Homes,Quality Care Homes Ltd,1423.76, 19-Apr-2011,
,Revenue,CCHD,Elderly Purchasing - South,Residential Homes,Quality Care Homes Ltd,1138.56, 19-Apr-2011,
,Revenue,CCHD,Frenchay Hospital Purchasing,Residential Homes,Quality Care Homes Ltd,1246.8, 19-Apr-2011,
,Revenue,CCHD,Elderly Purchasing - South,Residential Homes,Quality Care Homes Ltd,1245.36, 19-Apr-2011,
,Revenue,CCHD,Frenchay Hospital Purchasing,Residential Homes,Quality Care Homes Ltd,1036.36, 19-Apr-2011,
,Revenue,CCHD,Southmead Hospital Purchasing,Residential Homes,Quality Care Homes Ltd,1220.48, 19-Apr-2011,
,Revenue,CCHD,Southmead Hospital Purchasing,Residential Homes,Quality Care Homes Ltd,1236.61, 19-Apr-2011,
,Revenue,CCHD,Elderly Mental Health,Nursing Homes,Ravenswood,1233.12, 19-Apr-2011,
,Revenue,CCHD,Elderly Purchasing - South,Nursing Homes,Regent House,1638.6, 19-Apr-2011,
,Revenue,CCHD,Elderly Purchasing - South,Nursing Homes,Regent House,820.32, 19-Apr-2011,
,Revenue,CCHD,South Glos Users in South Glos Homes,Nursing Homes,Regent House,1087, 19-Apr-2011,
,Revenue,CCHD,Elderly Purchasing - South,Nursing Homes,Regent House,1215.6, 19-Apr-2011,
,Revenue,CCHD,Southmead Hospital Purchasing,Nursing Homes,Regent House,1384.8, 19-Apr-2011,
,Revenue,CCHD,Elderly Purchasing - South,Nursing Homes,Regent House,1782.04, 19-Apr-2011,
,Revenue,CCHD,Elderly Purchasing - South,Nursing Homes,Regent House,763.73, 19-Apr-2011,
,Revenue,CCHD,Elderly Purchasing - South,Nursing Homes,Regent House,1230.2, 19-Apr-2011,
,Revenue,CCHD,South Glos Users in South Glos Homes,Nursing Homes,Regent House,1242.29, 19-Apr-2011,
,Revenue,CCHD,Elderly Mental Health,Nursing Homes,Regent House,1924, 19-Apr-2011,
,Revenue,CCHD,Elderly Mental Health,Nursing Homes,Regent House,1434.76, 19-Apr-2011,
,Revenue,CCHD,Elderly Mental Health,Nursing Homes,Regent House,1083.15, 19-Apr-2011,
,Revenue,CCHD,Elderly Mental Health,Nursing Homes,Regent House,1089.08, 19-Apr-2011,
,Revenue,CCHD,Elderly Mental Health,Nursing Homes,Regent House,1924, 19-Apr-2011,
,Revenue,CCHD,Elderly Mental Health,Nursing Homes,Regent House,962.04, 19-Apr-2011,
,Revenue,CCHD,Elderly PWLD - PS,Residential Homes,Renaissance,2174.4, 19-Apr-2011,
,Revenue,CCHD,Elderly PWLD - PS,Residential Homes,Renaissance,33348.9, 19-Apr-2011,
,Revenue,CCHD,Under 65s PWLD - PS,Residential Homes,Ridgeway House,3383.72, 19-Apr-2011,
,Revenue,CCHD,Elderly Purchasing - South,Nursing Homes,Riversway Nursing Home,1168.96, 19-Apr-2011,
,Revenue,CCHD,Southmead Hospital Purchasing,Nursing Homes,Riversway Nursing Home,1362.52, 19-Apr-2011,
,Revenue,CCHD,Southmead Hospital Purchasing,Nursing Homes,Riversway Nursing Home,1708, 19-Apr-2011,
,Revenue,CCHD,Elderly Mental Health,Nursing Homes,Riversway Nursing Home,1242.99, 19-Apr-2011,
,Revenue,CCHD,Elderly Purchasing - South,Nursing Homes,Riversway Nursing Home,556.98, 19-Apr-2011,
,Revenue,CCHD,Elderly Mental Health,Nursing Homes,Riversway Nursing Home,620.63, 19-Apr-2011,
,Revenue,CCHD,Elderly PWLD - PS,Residential Homes,Rockleaze,1600.62, 19-Apr-2011,
,Revenue,CCHD,Elderly PWLD - PS,Residential Homes,Rockleaze,537.99, 19-Apr-2011,
,Revenue,CCHD,Elderly PWLD - PS,Residential Homes,Rockleaze,1404.36, 19-Apr-2011,
,Revenue,CCHD,S28A - Over 65,Residential Homes,Rockleaze,1511.64, 19-Apr-2011,
,Revenue,CCHD,S28A - Over 65,Residential Homes,Rockleaze,508.33, 19-Apr-2011,
,Revenue,CCHD,Under 65s PWLD - PS,Residential Homes,Rockleaze,2352.88, 19-Apr-2011,
,Revenue,CCHD,Elderly PWLD - PS,Residential Homes,Rockleaze,1404.36, 19-Apr-2011,
,Revenue,CCHD,Under 65s PWLD - PS,Residential Homes,Rosewood Lodge & Brook House,7840.76, 19-Apr-2011,
,Revenue,CCHD,Elderly Mental Health,Residential Homes,Ross Healthcare,1270.88, 19-Apr-2011,
,Revenue,CCHD,Learning Difficulties Development Fund,Other Supplies & Services,Royal Mencap Society,1184, 01-Apr-2011,
,Revenue,CCHD,LD - Kingswood PCT,Agency Staff (Operational)/PCT Pay,Ryeford Cleaning Services Limited,628.33, 01-Apr-2011,
,Revenue,CCHD,Learning Difficulties PSL,Rent,Individual,1400, 01-Apr-2011,
,Revenue,CCHD,Under 65s PWLD - KH,Residential Homes,Scope   Accounts Dept,4929.2, 19-Apr-2011,
,Revenue,CCHD,Under 65s PWLD - KH,Residential Homes,Scope   Accounts Dept,3026.68, 19-Apr-2011,
,Revenue,CCHD,Information Systems - Software,Other Supplies & Services,Scout Solutions Software Limited,30525.08, 05-Apr-2011,
,Revenue,CCHD,Homelessness Grant,Computer Services,Scout Solutions Software Limited,17220, 04-Apr-2011,
,Revenue,CCHD,Frenchay Hospital Purchasing,Nursing Homes,Sedbury Park Care Centre,1260.81, 19-Apr-2011,
,Revenue,CCHD,Purchase of Non-Res Care - KD,Private & Voluntary Day Care,Selborne Care Ltd,1476.08, 08-Apr-2011,
,Revenue,CCHD,Supported Living - PS,Private & Voluntary Home Care,Selborne Care Ltd,4997.44, 04-Apr-2011,
,Revenue,CCHD,Supported Living - KH,Private & Voluntary Home Care,Selborne Care Ltd,540.44, 07-Apr-2011,
,Revenue,CCHD,Supported Living - PS,Private & Voluntary Home Care,Selborne Care Ltd,1379.84, 20-Apr-2011,
,Revenue,CCHD,Supported Living - PS,Private & Voluntary Home Care,Selborne Care Ltd,4915.7, 27-Apr-2011,
,Revenue,CCHD,Purchase of Non-Res Care - KD,Private & Voluntary Day Care,Selborne Care Ltd,878.08, 27-Apr-2011,
,Revenue,CCHD,Supported Living - KH,Private & Voluntary Home Care,Selborne Care Ltd,1116, 20-Apr-2011,
,Revenue,CCHD,Supported Living - PS,Private & Voluntary Home Care,Selborne Care Ltd,564.48, 20-Apr-2011,
,Revenue,CCHD,Supported Living - PS,Private & Voluntary Home Care,Selborne Care Ltd,4557, 27-Apr-2011,
,Revenue,CCHD,Supported Living - KH,Private & Voluntary Home Care,Selborne Care Ltd,540.44, 20-Apr-2011,
,Revenue,CCHD,Supported Living - PS,Private & Voluntary Home Care,Selborne Care Ltd,1857.12, 27-Apr-2011,
,Revenue,CCHD,Under 65s PWLD - KD,Residential Homes,Sense,10341.6, 19-Apr-2011,
,Revenue,CCHD,Purchase of Non-Res Care - KH,Private & Voluntary Day Care,Servoca Nursing & Care,1414.17, 27-Apr-2011,
,Revenue,CCHD,Purchase of Non-Res Care - KH,Private & Voluntary Day Care,Servoca Nursing & Care,738.35, 07-Apr-2011,
,Revenue,CCHD,Purchase of Non-Res Care - KH,Private & Voluntary Day Care,Servoca Nursing & Care,1259.27, 04-Apr-2011,
,Revenue,CCHD,Purchase of Non-Res Care - KH,Private & Voluntary Day Care,Servoca Nursing & Care,640.64, 04-Apr-2011,
,Revenue,CCHD,Purchase of Non-Res Care - KH,Private & Voluntary Day Care,Servoca Nursing & Care,1301.48, 04-Apr-2011,
,Revenue,CCHD,Home Care Purch South,Other Small Contracts,Servoca Nursing & Care,593.07, 11-Apr-2011,
,Revenue,CCHD,Home Care Purch South,Other Small Contracts,Servoca Nursing & Care,503.55, 11-Apr-2011,
,Revenue,CCHD,Home Care Purch South,Other Small Contracts,Servoca Nursing & Care,619.18, 11-Apr-2011,
,Revenue,CCHD,Purchase of Non-Res Care - KH,Private & Voluntary Day Care,Servoca Nursing & Care,689.45, 07-Apr-2011,
,Revenue,CCHD,Purchase of Non-Res Care - KH,Private & Voluntary Day Care,Servoca Nursing & Care,1282.88, 07-Apr-2011,
,Revenue,CCHD,Purchase of Non-Res Care - KH,Private & Voluntary Day Care,Servoca Nursing & Care,725.76, 07-Apr-2011,
,Revenue,CCHD,Purchase of Non-Res Care - KH,Private & Voluntary Day Care,Servoca Nursing & Care,1312.13, 07-Apr-2011,
,Revenue,CCHD,Purchase of Non-Res Care - KH,Private & Voluntary Day Care,Servoca Nursing & Care,565.56, 07-Apr-2011,
,Revenue,CCHD,Purchase of Non-Res Care - KH,Private & Voluntary Day Care,Servoca Nursing & Care,1274.77, 07-Apr-2011,
,Revenue,CCHD,Purchase of Non-Res Care - KH,Private & Voluntary Day Care,Servoca Nursing & Care,1290.17, 14-Apr-2011,
,Revenue,CCHD,Purchase of Non-Res Care - KH,Private & Voluntary Day Care,Servoca Nursing & Care,1241.74, 27-Apr-2011,
,Revenue,CCHD,Home Energy Conservation Act Activities,Other Supplies & Services,Severn Wye Energy Agency Ltd,5000, 06-Apr-2011,
,Revenue,CCHD,Elderly Mental Health,Nursing Homes,Shaw Healthcare Ltd,923.88, 19-Apr-2011,
,Revenue,CCHD,S117 Placements PCT,Residential Homes,Shaw Healthcare Ltd,15925.32, 19-Apr-2011,
,Revenue,CCHD,Under 65s PWLD - PS,Nursing Homes,Shaw Healthcare Ltd,7415.13, 19-Apr-2011,
,Revenue,CCHD,Under 65s PWLD - PS,Nursing Homes,Shaw Healthcare Ltd,2474.31, 19-Apr-2011,
,Revenue,CCHD,Under 65s PWLD - KD,Residential Homes,Shaw Healthcare Ltd,10323.96, 19-Apr-2011,
,Revenue,CCHD,S28A - Under 65,Residential Homes,Shaw Healthcare Ltd,8208.72, 19-Apr-2011,
,Revenue,CCHD,S28A - Under 65,Residential Homes,Shaw Healthcare Ltd,2738.84, 19-Apr-2011,
,Revenue,CCHD,S28A - Under 65,Residential Homes,Shaw Healthcare Ltd,8809.53, 19-Apr-2011,
,Revenue,CCHD,S28A - Under 65,Residential Homes,Shaw Healthcare Ltd,2939.11, 19-Apr-2011,
,Revenue,CCHD,S28A - Under 65,Residential Homes,Shaw Healthcare Ltd,4876.2, 19-Apr-2011,
,Revenue,CCHD,S28A - Over 65,Residential Homes,Shaw Healthcare Ltd,3643.8, 19-Apr-2011,
,Revenue,CCHD,S28A - Over 65,Residential Homes,Shaw Healthcare Ltd,1219.05, 19-Apr-2011,
,Revenue,CCHD,Under 65s PWLD - PS,Nursing Homes,Shaw Healthcare Ltd,7415.13, 19-Apr-2011,
,Revenue,CCHD,Under 65s PWLD - PS,Nursing Homes,Shaw Healthcare Ltd,2487.31, 19-Apr-2011,
,Revenue,CCHD,S28A - Over 65,Residential Homes,Shaw Healthcare Ltd,3637.8, 19-Apr-2011,
,Revenue,CCHD,S28A - Over 65,Residential Homes,Shaw Healthcare Ltd,1219.05, 19-Apr-2011,
,Revenue,CCHD,S28A - Over 65,Residential Homes,Shaw Healthcare Ltd,3643.8, 19-Apr-2011,
,Revenue,CCHD,S28A - Over 65,Residential Homes,Shaw Healthcare Ltd,1219.05, 19-Apr-2011,
,Revenue,CCHD,S28A - Over 65,Residential Homes,Shaw Healthcare Ltd,4884.2, 19-Apr-2011,
,Revenue,CCHD,S28A - Under 65,Residential Homes,Shaw Healthcare Ltd,9131.32, 19-Apr-2011,
,Revenue,CCHD,S28A - Over 65,Nursing Homes,Shaw Healthcare Ltd,8974.72, 19-Apr-2011,
,Revenue,CCHD,Purchase of Non-Res Care - KH,Private & Voluntary Day Care,Shaw Healthcare Specialist Services Ltd,756.2, 08-Apr-2011,
,Revenue,CCHD,Purchase of Non-Res Care - KH,Private & Voluntary Day Care,Shaw Healthcare Specialist Services Ltd,646, 08-Apr-2011,
,Revenue,CCHD,Day Care - North,Private & Voluntary Day Care,Silva Care Limited,1222.68, 27-Apr-2011,
,Revenue,CCHD,Supported Living - KH,Private & Voluntary Home Care,Silva Care Limited,4415.44, 04-Apr-2011,
,Revenue,CCHD,Elderly Purchasing - North,Residential Homes,Simeon Care For The Elderly,1468.44, 19-Apr-2011,
,Revenue,CCHD,Under 65s PWLD - KD,Residential Homes,Small House Homes Limited,17443.68, 19-Apr-2011,
,Revenue,CCHD,Purchase of Non-Res Care - PS,Private & Voluntary Day Care,Smile Independent Living Support Limited,863.3, 14-Apr-2011,
,Revenue,CCHD,Supported Living - PS,Private & Voluntary Home Care,Smile Independent Living Support Limited,643, 14-Apr-2011,
,Revenue,CCHD,Supported Living - KD,Private & Voluntary Home Care,Smile Independent Living Support Limited,4348.46, 14-Apr-2011,
,Revenue,CCHD,Purchase of Non-Res Care - KD,Private & Voluntary Day Care,Smile Independent Living Support Limited,1302.6, 14-Apr-2011,
,Revenue,CCHD,Supported Living - KH,Private & Voluntary Home Care,Smile Independent Living Support Limited,4176.26, 14-Apr-2011,
,Revenue,CCHD,Purchase of Non-Res Care - KD,Private & Voluntary Day Care,Smile Independent Living Support Limited,1192.7, 27-Apr-2011,
,Revenue,CCHD,Supported Living - KD,Private & Voluntary Home Care,Smile Independent Living Support Limited,936.35, 27-Apr-2011,
,Revenue,CCHD,Purchase of Non-Res Care - KD,Private & Voluntary Day Care,Smile Independent Living Support Limited,664.05, 14-Apr-2011,
,Revenue,CCHD,Purchase of Non-Res Care - KD,Private & Voluntary Day Care,Smile Independent Living Support Limited,639.7, 14-Apr-2011,
,Revenue,CCHD,Purchase of Non-Res Care - KD,Private & Voluntary Day Care,Smile Independent Living Support Limited,1081.7, 14-Apr-2011,
,Revenue,CCHD,Purchase of Non-Res Care - PS,Private & Voluntary Day Care,Smile Independent Living Support Limited,1232.9, 18-Apr-2011,
,Revenue,CCHD,Purchase of Non-Res Care - KD,Private & Voluntary Day Care,Smile Independent Living Support Limited,954.9, 14-Apr-2011,
,Revenue,CCHD,Purchase of Non-Res Care - KD,Private & Voluntary Day Care,Smile Independent Living Support Limited,1153.24, 14-Apr-2011,
,Revenue,CCHD,Purchase of Non-Res Care - KD,Private & Voluntary Day Care,Smile Independent Living Support Limited,886.52, 14-Apr-2011,
,Revenue,CCHD,Purchase of Non-Res Care - KD,Private & Voluntary Day Care,Smile Independent Living Support Limited,567.3, 14-Apr-2011,
,Revenue,CCHD,Purchase of Non-Res Care - KD,Private & Voluntary Day Care,Smile Independent Living Support Limited,1829.28, 14-Apr-2011,
,Revenue,CCHD,Swift Dump Code,Residential Homes,Somerset Court,75000, 26-Apr-2011,
,Revenue,CCHD,Under 65s PWLD - KH,Nursing Homes,Somerset Hca Ltd,9510.28, 28-Apr-2011,
,Revenue,CCHD,Carers STF,Grants to Voluntary Bodies,South Gloucestershire Crossroads,16223, 05-Apr-2011,
,Revenue,CCHD,Contracts & Commissioning Team,Other Small Contracts,South Gloucestershire Crossroads,5000, 01-Apr-2011,
,Revenue,CCHD,Contracts & Commissioning Team,Other Small Contracts,South Gloucestershire Crossroads,5000, 08-Apr-2011,
,Revenue,CCHD,Contracts & Commissioning Team,Other Small Contracts,South Gloucestershire Crossroads,5000, 15-Apr-2011,
,Revenue,CCHD,Contracts & Commissioning Team,Other Small Contracts,South Gloucestershire Crossroads,5000, 20-Apr-2011,
,Revenue,CCHD,Contracts & Commissioning Team,Other Small Contracts,South Gloucestershire Crossroads,5000, 28-Apr-2011,
,Revenue,CCHD,Chipping Sodbury Memorial Day,Agency Staff (Operational)/PCT Pay,South Gloucestershire Primary Care Trust,14767.95, 06-Apr-2011,
,Revenue,CCHD,Hydrotherapy,Agency Staff (Operational)/PCT Pay,South Gloucestershire Primary Care Trust,7453.28, 06-Apr-2011,
,Revenue,CCHD,LD - Kingswood PCT,Agency Staff (Operational)/PCT Pay,South Gloucestershire Primary Care Trust,19136.55, 06-Apr-2011,
,Revenue,CCHD,Adult LD - Thornbury PCT,Agency Staff (Operational)/PCT Pay,South Gloucestershire Primary Care Trust,18318.42, 06-Apr-2011,
,Revenue,CCHD,Adult LD - Fiveways PCT,Agency Staff (Operational)/PCT Pay,South Gloucestershire Primary Care Trust,46838.81, 06-Apr-2011,
,Revenue,CCHD,NRS Contract,Daily Living Equipment,South Gloucestershire Primary Care Trust,110000, 08-Apr-2011,
,Revenue,CCHD,Assessment Team,Care Management/Assessment Staff Pay,South Gloucestershire Primary Care Trust,11092.73, 07-Apr-2011,
,Revenue,CCHD,Occupational Therapy Team,Agency Staff (Operational)/PCT Pay,South Gloucestershire Primary Care Trust,39373.26, 07-Apr-2011,
,Revenue,CCHD,Swift Dump Code,Residential Homes,South Wales Care Ltd,35066.5, 26-Apr-2011,
,Revenue,CCHD,Homelessness Administration Costs,Legal Fees,South West Law(Legal Services to the Community)Ltd,2610, 20-Apr-2011,
,Revenue,CCHD,Southmead Hospital Purchasing,Nursing Homes,Southern Cross Healthcare,1604, 19-Apr-2011,
,Revenue,CCHD,Minor Adaptations Service,Maintenance by Contractor,Southern Electric Contracting Limited,100.61, 20-Apr-2011,
,Revenue,CCHD,Under 65s PWLD - PS,Residential Homes,Spectrum,28013.18, 06-Apr-2011,
,Revenue,CCHD,Under 65s PWLD - KH,Residential Homes,St Brigas,2024.8, 19-Apr-2011,
,Revenue,CCHD,Under 65s PWLD - PS,Residential Homes,St Brigas,2917.64, 19-Apr-2011,
,Revenue,CCHD,Under 65s PWLD - KH,Residential Homes,St Brigas,1966.12, 19-Apr-2011,
,Revenue,CCHD,Frenchay Hospital Purchasing,Nursing Homes,St George Nursing Home,1302.8, 19-Apr-2011,
,Revenue,CCHD,Frenchay Hospital Purchasing,Nursing Homes,St George Nursing Home,963.75, 19-Apr-2011,
,Revenue,CCHD,Elderly Mental Health,Nursing Homes,St George Nursing Home,1221.48, 19-Apr-2011,
,Revenue,CCHD,Elderly Purchasing - South,Nursing Homes,St George Nursing Home,945.75, 19-Apr-2011,
,Revenue,CCHD,Elderly Mental Health,Nursing Homes,St George Nursing Home,963.75, 19-Apr-2011,
,Revenue,CCHD,Southmead Hospital Purchasing,Nursing Homes,St George Nursing Home,1413.2, 19-Apr-2011,
,Revenue,CCHD,Southmead Hospital Purchasing,Nursing Homes,St George Nursing Home,1302.8, 19-Apr-2011,
,Revenue,CCHD,Southmead Hospital Purchasing,Nursing Homes,St George Nursing Home,884.04, 19-Apr-2011,
,Revenue,CCHD,Frenchay Hospital Purchasing,Nursing Homes,St George Nursing Home,1302.8, 19-Apr-2011,
,Revenue,CCHD,Frenchay Hospital Purchasing,Nursing Homes,St George Nursing Home,977.1, 19-Apr-2011,
,Revenue,CCHD,Frenchay Hospital Purchasing,Residential Homes,St Monicas Trust,1249.96, 19-Apr-2011,
,Revenue,CCHD,Southmead Hospital Purchasing,Nursing Homes,St Teresas Nursing Home,2150.85, 19-Apr-2011,
,Revenue,CCHD,Under 65s PWLD - PS,Residential Homes,Stepping Stones Re-Sett. Unit,8473.28, 19-Apr-2011,
,Revenue,CCHD,Frenchay Hospital Purchasing,Residential Homes,Stonebow House Residential Home,1238.84, 19-Apr-2011,
,Revenue,CCHD,Elderly Purchasing - South,Nursing Homes,Sunnymede Nursing Home,849.51, 19-Apr-2011,
,Revenue,CCHD,Southmead Hospital Purchasing,Nursing Homes,Sunnymede Nursing Home,963.75, 19-Apr-2011,
,Revenue,CCHD,Younger MH non-res purchasing,Private & Voluntary Day Care,Supported Independance Ltd,507, 01-Apr-2011,
,Revenue,CCHD,Elderly MH non-res purchasing,Private & Voluntary Day Care,Supported Independance Ltd,1755, 04-Apr-2011,
,Revenue,CCHD,Younger MH non-res purchasing,Private & Voluntary Day Care,Supported Independance Ltd,663, 01-Apr-2011,
,Revenue,CCHD,Younger MH non-res purchasing,Private & Voluntary Day Care,Supported Independance Ltd,1930.5, 01-Apr-2011,
,Revenue,CCHD,Section 117 Placements,Private & Voluntary Day Care,Supported Independance Ltd,897, 04-Apr-2011,
,Revenue,CCHD,Younger MH non-res purchasing,Private & Voluntary Day Care,Supported Independance Ltd,1365, 01-Apr-2011,
,Revenue,CCHD,Younger MH non-res purchasing,Private & Voluntary Day Care,Supported Independance Ltd,6322.5, 14-Apr-2011,
,Revenue,CCHD,Younger MH non-res purchasing,Private & Voluntary Day Care,Supported Independance Ltd,4580, 20-Apr-2011,
,Revenue,CCHD,Supporting People Programme,Grants to Voluntary Bodies,Supported Independance Ltd,791.2, 20-Apr-2011,
,Revenue,CCHD,Supported Living - PS,Private & Voluntary Home Care,Supported Independent Living Schemes,605.4, 07-Apr-2011,
,Revenue,CCHD,Supported Living - PS,Private & Voluntary Home Care,Supported Independent Living Schemes,638.93, 18-Apr-2011,
,Revenue,CCHD,Supporting People Programme,Grants to Voluntary Bodies,Supported Independent Living Schemes,637.99, 13-Apr-2011,
,Revenue,CCHD,Supporting People Programme,Grants to Voluntary Bodies,Supported Independent Living Schemes,769.76, 13-Apr-2011,
,Revenue,CCHD,Supporting People Programme,Grants to Voluntary Bodies,Survive,40547, 28-Apr-2011,
,Revenue,CCHD,Housing Needs,Agency Staff (Admin/Support Staff) Pay,SWIM Recruitment,464.32, 04-Apr-2011,
,Revenue,CCHD,Housing Needs,Agency Staff (Admin/Support Staff) Pay,SWIM Recruitment,560.96, 05-Apr-2011,
,Revenue,CCHD,Housing Needs,Agency Staff (Admin/Support Staff) Pay,SWIM Recruitment,447.34, 27-Apr-2011,
,Revenue,CCHD,Home Care Purch South,Other Small Contracts,Tender Home Care Limited,430.54, 15-Apr-2011,
,Revenue,CCHD,Home Care Purch North,Other Small Contracts,Tender Home Care Limited,2533.08, 15-Apr-2011,
,Revenue,CCHD,Day Care - South,Private & Voluntary Day Care,Tender Home Care Limited,33.44, 15-Apr-2011,
,Revenue,CCHD,Day Care - North,Private & Voluntary Day Care,Tender Home Care Limited,87.78, 15-Apr-2011,
,Revenue,CCHD,Elderly MH Home Care,Other Small Contracts,Tender Home Care Limited,125.4, 15-Apr-2011,
,Revenue,CCHD,Home Care Purch South,Other Small Contracts,Tender Home Care Limited,777.48, 20-Apr-2011,
,Revenue,CCHD,Home Care Purch North,Other Small Contracts,Tender Home Care Limited,2608.32, 20-Apr-2011,
,Revenue,CCHD,Day Care - South,Private & Voluntary Day Care,Tender Home Care Limited,33.44, 20-Apr-2011,
,Revenue,CCHD,Day Care - North,Private & Voluntary Day Care,Tender Home Care Limited,117.04, 20-Apr-2011,
,Revenue,CCHD,Elderly MH Home Care,Other Small Contracts,Tender Home Care Limited,137.94, 20-Apr-2011,
,Revenue,CCHD,Elderly Purchasing - North,Residential Homes,The Beeches,620.86, 19-Apr-2011,
,Revenue,CCHD,Elderly Purchasing - South,Residential Homes,The Beeches,1120.64, 19-Apr-2011,
,Revenue,CCHD,Elderly Mental Health,Residential Homes,The Beeches,1848, 19-Apr-2011,
,Revenue,CCHD,Supported Living - KD,Private & Voluntary Home Care,The Brandon Trust,8856.25, 08-Apr-2011,
,Revenue,CCHD,Purchase of Non-Res Care - KH,Private & Voluntary Day Care,The Brandon Trust,1055.75, 01-Apr-2011,
,Revenue,CCHD,Purchase of Non-Res Care - KH,Private & Voluntary Day Care,The Brandon Trust,622.2, 01-Apr-2011,
,Revenue,CCHD,Purchase of Non-Res Care - KD,Private & Voluntary Day Care,The Brandon Trust,1875.75, 08-Apr-2011,
,Revenue,CCHD,Purchase of Non-Res Care - KH,Private & Voluntary Day Care,The Brandon Trust,1264.75, 01-Apr-2011,
,Revenue,CCHD,Purchase of Non-Res Care - KD,Private & Voluntary Day Care,The Brandon Trust,1660.5, 08-Apr-2011,
,Revenue,CCHD,Purchase of Non-Res Care - KH,Private & Voluntary Day Care,The Brandon Trust,1071.13, 01-Apr-2011,
,Revenue,CCHD,Purchase of Non-Res Care - KD,Private & Voluntary Day Care,The Brandon Trust,1158.25, 08-Apr-2011,
,Revenue,CCHD,Supported Living - KH,Private & Voluntary Home Care,The Brandon Trust,933.3, 08-Apr-2011,
,Revenue,CCHD,Supported Living - KD,Private & Voluntary Home Care,The Brandon Trust,8265.83, 08-Apr-2011,
,Revenue,CCHD,Purchase of Non-Res Care - KH,Private & Voluntary Day Care,The Brandon Trust,3389.76, 07-Apr-2011,
,Revenue,CCHD,Brandon Day Care,Private & Voluntary Day Care,The Brandon Trust,26479, 05-Apr-2011,
,Revenue,CCHD,Day Care - North,Private & Voluntary Day Care,The Brandon Trust,607.37, 28-Apr-2011,
,Revenue,CCHD,Under 65s PWLD - PS,Nursing Homes,The Brandon Trust  Olympus House,4230.75, 19-Apr-2011,
,Revenue,CCHD,Under 65s PWLD - PS,Nursing Homes,The Brandon Trust  Olympus House,1412.85, 19-Apr-2011,
,Revenue,CCHD,S28A - Over 65,Residential Homes,The Brandon Trust  Olympus House,3555.76, 19-Apr-2011,
,Revenue,CCHD,Under 65s PWLD - PS,Residential Homes,The Brandon Trust  Olympus House,11160.28, 19-Apr-2011,
,Revenue,CCHD,Under 65s PWLD - KD,Residential Homes,The Brandon Trust  Olympus House,3238.2, 19-Apr-2011,
,Revenue,CCHD,Under 65s PWLD - KD,Residential Homes,The Brandon Trust  Olympus House,5110.84, 19-Apr-2011,
,Revenue,CCHD,Elderly PWLD - PS,Residential Homes,The Brandon Trust  Olympus House,3355.96, 19-Apr-2011,
,Revenue,CCHD,Under 65s PWLD - KD,Nursing Homes,The Brandon Trust  Olympus House,5701.56, 19-Apr-2011,
,Revenue,CCHD,Under 65s PWLD - KH,Residential Homes,The Brandon Trust  Olympus House,3799.48, 19-Apr-2011,
,Revenue,CCHD,S28A - Over 65,Residential Homes,The Brandon Trust  Olympus House,3793.17, 19-Apr-2011,
,Revenue,CCHD,S28A - Over 65,Residential Homes,The Brandon Trust  Olympus House,54158.43, 19-Apr-2011,
,Revenue,CCHD,Under 65s PWLD - PS,Nursing Homes,The Brandon Trust  Olympus House,3790.65, 19-Apr-2011,
,Revenue,CCHD,Under 65s PWLD - PS,Nursing Homes,The Brandon Trust  Olympus House,1267.15, 19-Apr-2011,
,Revenue,CCHD,S28A - Under 65,Residential Homes,The Brandon Trust  Olympus House,5954.92, 19-Apr-2011,
,Revenue,CCHD,S28A - Under 65,Residential Homes,The Brandon Trust  Olympus House,4543.48, 19-Apr-2011,
,Revenue,CCHD,S28A - Under 65,Residential Homes,The Brandon Trust  Olympus House,5954.92, 19-Apr-2011,
,Revenue,CCHD,S28A - Under 65,Residential Homes,The Brandon Trust  Olympus House,5798.32, 19-Apr-2011,
,Revenue,CCHD,S28A - Over 65,Nursing Homes,The Brandon Trust  Olympus House,5386.84, 19-Apr-2011,
,Revenue,CCHD,S28A - Over 65,Nursing Homes,The Brandon Trust  Olympus House,74561.49, 19-Apr-2011,
,Revenue,CCHD,S28A - Over 65,Nursing Homes,The Brandon Trust  Olympus House,5738.56, 19-Apr-2011,
,Revenue,CCHD,S28A - Over 65,Nursing Homes,The Brandon Trust  Olympus House,78791.94, 19-Apr-2011,
,Revenue,CCHD,S28A - Under 65,Residential Homes,The Brandon Trust  Olympus House,5199.92, 19-Apr-2011,
,Revenue,CCHD,S28A - Under 65,Residential Homes,The Brandon Trust  Olympus House,3620.13, 19-Apr-2011,
,Revenue,CCHD,S28A - Under 65,Residential Homes,The Brandon Trust  Olympus House,1209.31, 19-Apr-2011,
,Revenue,CCHD,S28A - Over 65,Residential Homes,The Brandon Trust  Olympus House,7108.81, 19-Apr-2011,
,Revenue,CCHD,S28A - Over 65,Residential Homes,The Brandon Trust  Olympus House,96432.84, 19-Apr-2011,
,Revenue,CCHD,S28A - Under 65,Residential Homes,The Brandon Trust  Olympus House,4458.39, 19-Apr-2011,
,Revenue,CCHD,S28A - Under 65,Residential Homes,The Brandon Trust  Olympus House,1499.73, 19-Apr-2011,
,Revenue,CCHD,S28A - Under 65,Residential Homes,The Brandon Trust  Olympus House,5519.68, 19-Apr-2011,
,Revenue,CCHD,S28A - Under 65,Residential Homes,The Brandon Trust  Olympus House,4613.48, 19-Apr-2011,
,Revenue,CCHD,S28A - Under 65,Residential Homes,The Brandon Trust  Olympus House,3946.56, 19-Apr-2011,
,Revenue,CCHD,S28A - Under 65,Residential Homes,The Brandon Trust  Olympus House,1318.12, 19-Apr-2011,
,Revenue,CCHD,S28A - Over 65,Residential Homes,The Brandon Trust  Olympus House,4680.64, 19-Apr-2011,
,Revenue,CCHD,S28A - Over 65,Residential Homes,The Brandon Trust  Olympus House,65303.46, 19-Apr-2011,
,Revenue,CCHD,Purchase of Non-Res Care - KH,Private & Voluntary Day Care,The Camphill Village Trust,1626.21, 27-Apr-2011,
,Revenue,CCHD,Purchase of Non-Res Care - KH,Private & Voluntary Day Care,The Camphill Village Trust,1626.21, 27-Apr-2011,
,Revenue,CCHD,Purchase of Non-Res Care - KH,Private & Voluntary Day Care,The Camphill Village Trust,1626.21, 27-Apr-2011,
,Revenue,CCHD,Purchase of Non-Res Care - KH,Private & Voluntary Day Care,The Camphill Village Trust,1548.76, 27-Apr-2011,
,Revenue,CCHD,Purchase of Non-Res Care - KH,Private & Voluntary Day Care,The Camphill Village Trust,1626.21, 27-Apr-2011,
,Revenue,CCHD,Purchase of Non-Res Care - KH,Private & Voluntary Day Care,The Camphill Village Trust,1548.76, 27-Apr-2011,
,Revenue,CCHD,Purchase of Non-Res Care - KH,Private & Voluntary Day Care,The Camphill Village Trust,3218.28, 27-Apr-2011,
,Revenue,CCHD,Purchase of Non-Res Care - KH,Private & Voluntary Day Care,The Camphill Village Trust,3112.18, 27-Apr-2011,
,Revenue,CCHD,Purchase of Non-Res Care - KH,Private & Voluntary Day Care,The Camphill Village Trust,3804.49, 27-Apr-2011,
,Revenue,CCHD,Elderly Mental Health,Nursing Homes,The Cidermill,928.2, 19-Apr-2011,
,Revenue,CCHD,Elderly Mental Health,Nursing Homes,The Cidermill,1316.88, 19-Apr-2011,
,Revenue,CCHD,Elderly Mental Health,Residential Homes,The Cidermill,1406.8, 19-Apr-2011,
,Revenue,CCHD,Training - Adult Services,Training Expenses,The Crusty Loaf,702, 08-Apr-2011,
,Revenue,CCHD,Charlton,Prop.Serv. General Repairs,The Daily Sparkle,588, 12-Apr-2011,
,Revenue,CCHD,Elderly Purchasing - South,Residential Homes,The Gables Residential Home,1221, 19-Apr-2011,
,Revenue,CCHD,Frenchay Hospital Purchasing,Residential Homes,The Gables Residential Home,921.75, 19-Apr-2011,
,Revenue,CCHD,Elderly Purchasing - South,Residential Homes,The Gables Residential Home,813.21, 19-Apr-2011,
,Revenue,CCHD,Elderly Mental Health,Residential Homes,The Gables Residential Home,879.39, 19-Apr-2011,
,Revenue,CCHD,Section 117 Placements,Residential Homes,The Gables Residential Home,2156.84, 19-Apr-2011,
,Revenue,CCHD,Elderly Mental Health,Residential Homes,The Grove,1186.8, 19-Apr-2011,
,Revenue,CCHD,Frenchay Hospital Purchasing,Residential Homes,The Grove,674.64, 19-Apr-2011,
,Revenue,CCHD,Elderly Mental Health,Residential Homes,The Grove,1584.2, 19-Apr-2011,
,Revenue,CCHD,Elderly Mental Health,Residential Homes,The Grove,612.04, 19-Apr-2011,
,Revenue,CCHD,Section 117 Placements,Residential Homes,The Grove,2040, 19-Apr-2011,
,Revenue,CCHD,Elderly Mental Health,Residential Homes,The Grove,1619.16, 19-Apr-2011,
,Revenue,CCHD,Elderly Mental Health,Residential Homes,The Grove,1405.96, 19-Apr-2011,
,Revenue,CCHD,Elderly Mental Health,Residential Homes,The Grove,1493.72, 19-Apr-2011,
,Revenue,CCHD,Elderly Mental Health,Residential Homes,The Grove,1738.6, 19-Apr-2011,
,Revenue,CCHD,Southmead Hospital Purchasing,Residential Homes,The Grove,989.07, 19-Apr-2011,
,Revenue,CCHD,Elderly Mental Health,Residential Homes,The Grove,1113.48, 19-Apr-2011,
,Revenue,CCHD,Frenchay Hospital Purchasing,Residential Homes,The Grove,847.52, 19-Apr-2011,
,Revenue,CCHD,Supporting People Programme,Grants to Voluntary Bodies,The Hatch Camphill Community,2211.39, 27-Apr-2011,
,Revenue,CCHD,Supporting People Programme,Grants to Voluntary Bodies,The Hatch Camphill Community,2211.39, 27-Apr-2011,
,Revenue,CCHD,Supporting People Programme,Grants to Voluntary Bodies,The Hatch Camphill Community,2211.39, 27-Apr-2011,
,Revenue,CCHD,Supporting People Programme,Grants to Voluntary Bodies,The Hatch Camphill Community,2211.39, 27-Apr-2011,
,Revenue,CCHD,Supporting People Programme,Grants to Voluntary Bodies,The Hatch Camphill Community,2211.39, 27-Apr-2011,
,Revenue,CCHD,Supporting People Programme,Grants to Voluntary Bodies,The Hatch Camphill Community,2211.39, 27-Apr-2011,
,Revenue,CCHD,Supporting People Programme,Grants to Voluntary Bodies,The Hatch Camphill Community,2211.39, 27-Apr-2011,
,Revenue,CCHD,Supporting People Programme,Grants to Voluntary Bodies,The Hatch Camphill Community,2211.39, 27-Apr-2011,
,Revenue,CCHD,Supporting People Programme,Grants to Voluntary Bodies,The Hatch Camphill Community,2211.39, 27-Apr-2011,
,Revenue,CCHD,Supporting People Programme,Grants to Voluntary Bodies,The Hatch Camphill Community,2211.39, 27-Apr-2011,
,Revenue,CCHD,Supporting People Programme,Grants to Voluntary Bodies,The Hatch Camphill Community,2211.39, 27-Apr-2011,
,Revenue,CCHD,Supporting People Programme,Grants to Voluntary Bodies,The Hatch Camphill Community,2211.39, 27-Apr-2011,
,Revenue,CCHD,Supporting People Programme,Grants to Voluntary Bodies,The Hatch Camphill Community,2211.39, 27-Apr-2011,
,Revenue,CCHD,Supporting People Programme,Grants to Voluntary Bodies,The Hatch Camphill Community,2211.39, 27-Apr-2011,
,Revenue,CCHD,Supporting People Programme,Grants to Voluntary Bodies,The Hatch Camphill Community,2211.39, 27-Apr-2011,
,Revenue,CCHD,Supporting People Programme,Grants to Voluntary Bodies,The Hatch Camphill Community,2211.39, 27-Apr-2011,
,Revenue,CCHD,Supporting People Programme,Grants to Voluntary Bodies,The Hatch Camphill Community,2211.39, 27-Apr-2011,
,Revenue,CCHD,Supporting People Programme,Grants to Voluntary Bodies,The Hatch Camphill Community,2211.39, 27-Apr-2011,
,Revenue,CCHD,Frenchay Hospital Purchasing,Nursing Homes,The Heathers,963.75, 19-Apr-2011,
,Revenue,CCHD,Elderly Mental Health,Nursing Homes,The Heathers,1284.96, 19-Apr-2011,
,Revenue,CCHD,South Glos Users in South Glos Homes,Nursing Homes,The Heathers,869.6, 19-Apr-2011,
,Revenue,CCHD,Elderly Purchasing - South,Nursing Homes,The Heathers,963.75, 19-Apr-2011,
,Revenue,CCHD,Frenchay Hospital Purchasing,Nursing Homes,The Heathers,538.95, 19-Apr-2011,
,Revenue,CCHD,Southmead Hospital Purchasing,Nursing Homes,The Heathers,1034.68, 19-Apr-2011,
,Revenue,CCHD,Frenchay Hospital Purchasing,Nursing Homes,The Heathers,1306.04, 19-Apr-2011,
,Revenue,CCHD,Elderly Mental Health,Nursing Homes,The Heathers,1267.12, 19-Apr-2011,
,Revenue,CCHD,Frenchay Hospital Purchasing,Nursing Homes,The Heathers,911.88, 19-Apr-2011,
,Revenue,CCHD,Elderly Purchasing - North,Nursing Homes,The Heathers,832.38, 19-Apr-2011,
,Revenue,CCHD,South Glos Users in South Glos Homes,Nursing Homes,The Heathers,2522.96, 19-Apr-2011,
,Revenue,CCHD,Southmead Hospital Purchasing,Nursing Homes,The Heathers,751.52, 19-Apr-2011,
,Revenue,CCHD,Frenchay Hospital Purchasing,Nursing Homes,The Heathers,1302.8, 19-Apr-2011,
,Revenue,CCHD,Frenchay Hospital Purchasing,Nursing Homes,The Heathers,963.75, 19-Apr-2011,
,Revenue,CCHD,Elderly Purchasing - North,Nursing Homes,The Heathers,1169.56, 19-Apr-2011,
,Revenue,CCHD,Southmead Hospital Purchasing,Nursing Homes,The Laurels Nursing Home,1382.28, 19-Apr-2011,
,Revenue,CCHD,Southmead Hospital Purchasing,Residential Homes,The Manor Cottage,659.16, 19-Apr-2011,
,Revenue,CCHD,Elderly Purchasing - South,Residential Homes,The Manor Cottage,683.35, 19-Apr-2011,
,Revenue,CCHD,Elderly Purchasing - South,Residential Homes,The Manor Cottage,1041.75, 19-Apr-2011,
,Revenue,CCHD,Elderly Purchasing - North,Residential Homes,The Manor Cottage,879.75, 19-Apr-2011,
,Revenue,CCHD,Elderly Purchasing - South,Residential Homes,The Manor Cottage,1066.08, 19-Apr-2011,
,Revenue,CCHD,Elderly Purchasing - South,Residential Homes,The Manor Cottage,928.12, 19-Apr-2011,
,Revenue,CCHD,Under 65s PWLD - KD,Residential Homes,The Manor House,620.61, 19-Apr-2011,
,Revenue,CCHD,Under 65s PWLD - KH,Residential Homes,The Manor House,10612.5, 19-Apr-2011,
,Revenue,CCHD,Under 65s PWLD - KH,Residential Homes,The Manor House,2118.9, 19-Apr-2011,
,Revenue,CCHD,Under 65s PWLD - KH,Residential Homes,The Manor House,707.5, 19-Apr-2011,
,Revenue,CCHD,Under 65s PWLD - KD,Residential Homes,The Manor House,600.12, 19-Apr-2011,
,Revenue,CCHD,Under 65s PWLD - KH,Residential Homes,The Manor House,5079.4, 19-Apr-2011,
,Revenue,CCHD,Under 65s PWLD - KH,Residential Homes,The Manor House,2710.77, 19-Apr-2011,
,Revenue,CCHD,Under 65s PWLD - KH,Residential Homes,The Manor House,906.19, 19-Apr-2011,
,Revenue,CCHD,Under 65s PWLD - KH,Residential Homes,The Manor House,2780.92, 19-Apr-2011,
,Revenue,CCHD,Under 65s PWLD - PS,Residential Homes,The Manor House,2509.38, 19-Apr-2011,
,Revenue,CCHD,Under 65s PWLD - PS,Residential Homes,The Manor House,839.06, 19-Apr-2011,
,Revenue,CCHD,Under 65s PWLD - KD,Residential Homes,The Manor House,2058.75, 19-Apr-2011,
,Revenue,CCHD,Under 65s PWLD - KD,Residential Homes,The Manor House,688.85, 19-Apr-2011,
,Revenue,CCHD,Under 65s PWLD - KH,Residential Homes,The Manor House,2081.64, 19-Apr-2011,
,Revenue,CCHD,Under 65s PWLD - KH,Residential Homes,The Manor House,695.23, 19-Apr-2011,
,Revenue,CCHD,Under 65s PWLD - KH,Residential Homes,The Manor House,3443.4, 19-Apr-2011,
,Revenue,CCHD,Under 65s PWLD - KH,Residential Homes,The Manor House,4672.74, 19-Apr-2011,
,Revenue,CCHD,Under 65s PWLD - KH,Residential Homes,The Manor House,1560.18, 19-Apr-2011,
,Revenue,CCHD,S28A - Under 65,Residential Homes,The Manor House,3759.75, 19-Apr-2011,
,Revenue,CCHD,S28A - Under 65,Residential Homes,The Manor House,1255.85, 19-Apr-2011,
,Revenue,CCHD,Under 65s PWLD - KH,Residential Homes,The Manor House,2116.74, 19-Apr-2011,
,Revenue,CCHD,Under 65s PWLD - KH,Residential Homes,The Manor House,708.18, 19-Apr-2011,
,Revenue,CCHD,Under 65s PWLD - KH,Residential Homes,The Manor House,3536.96, 19-Apr-2011,
,Revenue,CCHD,Under 65s PWLD - KH,Residential Homes,The Manor House,3091.56, 19-Apr-2011,
,Revenue,CCHD,Under 65s PWLD - KH,Residential Homes,The Manor House,3442.36, 19-Apr-2011,
,Revenue,CCHD,Under 65s PWLD - KH,Residential Homes,The Manor House,4343.64, 19-Apr-2011,
,Revenue,CCHD,Under 65s PWLD - KH,Residential Homes,The Manor House,26116.5, 19-Apr-2011,
,Revenue,CCHD,Under 65s PWLD - PS,Residential Homes,The Manor House,3212.52, 19-Apr-2011,
,Revenue,CCHD,Under 65s PWLD - PS,Residential Homes,The Manor House,2256.09, 19-Apr-2011,
,Revenue,CCHD,Under 65s PWLD - PS,Residential Homes,The Manor House,754.63, 19-Apr-2011,
,Revenue,CCHD,Under 65s PWLD - KH,Residential Homes,The Manor House,2116.74, 19-Apr-2011,
,Revenue,CCHD,Under 65s PWLD - KH,Residential Homes,The Manor House,708.18, 19-Apr-2011,
,Revenue,CCHD,Under 65s PWLD - KH,Residential Homes,The Manor House,4485.2, 19-Apr-2011,
,Revenue,CCHD,Under 65s PWLD - KD,Residential Homes,The Manor House,2516.43, 19-Apr-2011,
,Revenue,CCHD,Under 65s PWLD - KD,Residential Homes,The Manor House,841.41, 19-Apr-2011,
,Revenue,CCHD,Under 65s PWLD - KD,Residential Homes,The Manor House,1498.68, 19-Apr-2011,
,Revenue,CCHD,Elderly PWLD - KH,Residential Homes,The Manor House,2400.04, 19-Apr-2011,
,Revenue,CCHD,Elderly PWLD - KH,Residential Homes,The Manor House,36225.81, 19-Apr-2011,
,Revenue,CCHD,Under 65s PWLD - PS,Residential Homes,The Manor House,2504.37, 19-Apr-2011,
,Revenue,CCHD,Under 65s PWLD - PS,Residential Homes,The Manor House,837.39, 19-Apr-2011,
,Revenue,CCHD,Under 65s PWLD - KD,Residential Homes,The Manor House,1016.5, 19-Apr-2011,
,Revenue,CCHD,Under 65s PWLD - PS,Residential Homes,The Manor House,576.84, 19-Apr-2011,
,Revenue,CCHD,Under 65s PWLD - KH,Residential Homes,The Manor House,3744.78, 19-Apr-2011,
,Revenue,CCHD,Under 65s PWLD - KH,Residential Homes,The Manor House,1249.71, 19-Apr-2011,
,Revenue,CCHD,Under 65s PWLD - KH,Residential Homes,The Manor House,2116.74, 19-Apr-2011,
,Revenue,CCHD,Under 65s PWLD - KH,Residential Homes,The Manor House,708.18, 19-Apr-2011,
,Revenue,CCHD,Southmead Hospital Purchasing,Residential Homes,The Mendips,2350.8, 19-Apr-2011,
,Revenue,CCHD,Elderly Mental Health,Residential Homes,The Old Vicarage Residential Home,1398, 19-Apr-2011,
,Revenue,CCHD,Under 65s PWLD - KD,Residential Homes,The Red House Residential Home,2018.76, 19-Apr-2011,
,Revenue,CCHD,Under 65s PWLD - KD,Residential Homes,The Red House Residential Home,1931.2, 19-Apr-2011,
,Revenue,CCHD,Elderly PWLD - KD,Residential Homes,The Red House Residential Home,1862.16, 19-Apr-2011,
,Revenue,CCHD,Elderly PWLD - KD,Residential Homes,The Red House Residential Home,29367.84, 19-Apr-2011,
,Revenue,CCHD,Under 65s PWLD - KD,Residential Homes,The Red House Residential Home,2018.76, 19-Apr-2011,
,Revenue,CCHD,Under 65s PWLD - KD,Residential Homes,The Red House Residential Home,1862.16, 19-Apr-2011,
,Revenue,CCHD,Contracts & Commissioning Team,Other Small Contracts,The Royal Bank of Scotland Commercial,5000, 01-Apr-2011,
,Revenue,CCHD,Contracts & Commissioning Team,Other Small Contracts,The Royal Bank of Scotland Commercial,5000, 08-Apr-2011,
,Revenue,CCHD,Contracts & Commissioning Team,Other Small Contracts,The Royal Bank of Scotland Commercial,5000, 15-Apr-2011,
,Revenue,CCHD,Contracts & Commissioning Team,Other Small Contracts,The Royal Bank of Scotland Commercial,5000, 20-Apr-2011,
,Revenue,CCHD,Contracts & Commissioning Team,Other Small Contracts,The Royal Bank of Scotland Commercial,5000, 28-Apr-2011,
,Revenue,CCHD,Under 65s PWLD - PS,Residential Homes,The Stanstead Centre,3488.28, 19-Apr-2011,
,Revenue,CCHD,Under 65s PWLD - KD,Residential Homes,The Thomas Moore Project,1904.72, 19-Apr-2011,
,Revenue,CCHD,Training - Adult Services,Training Expenses,The Training Exchange Study Days,915, 14-Apr-2011,
,Revenue,CCHD,Under 65s PWLD - PS,Residential Homes,The Turrets,872.04, 19-Apr-2011,
,Revenue,CCHD,Elderly PWLD - PS,Residential Homes,The Turrets,3152.36, 19-Apr-2011,
,Revenue,CCHD,Elderly PWLD - PS,Residential Homes,The Turrets,45817.89, 19-Apr-2011,
,Revenue,CCHD,Elderly PWLD - KH,Residential Homes,The Turrets,1499.2, 19-Apr-2011,
,Revenue,CCHD,Elderly Mental Health,Residential Homes,The Worthies,1406.8, 19-Apr-2011,
,Revenue,CCHD,Under 65s PWLD - KD,Residential Homes,Three Roses Home,1872.44, 19-Apr-2011,
,Revenue,CCHD,Learning Difficulties PSL,Rent,Individual,650, 20-Apr-2011,
,Revenue,CCHD,Learning Difficulties PSL,Rent,Individual,750, 20-Apr-2011,
,Revenue,CCHD,Learning Difficulties PSL,Rent,Individual,488, 20-Apr-2011,
,Revenue,CCHD,Under 65s PWLD - KH,Residential Homes,Tomlen,6399.24, 19-Apr-2011,
,Revenue,CCHD,Purchasing Phys Dis - North,Residential Homes,Tracs Group Ltd,6112.4, 19-Apr-2011,
,Revenue,CCHD,Purchasing Phys Dis - North,Residential Homes,Tracs Group Ltd,4478.08, 19-Apr-2011,
,Revenue,CCHD,Under 65s PWLD - PS,Residential Homes,Tracs Group Ltd,6424.76, 19-Apr-2011,
,Revenue,CCHD,Elderly Purchasing - South,Residential Homes,Tracs Group Ltd,6836.19, 19-Apr-2011,
,Revenue,CCHD,Training - Adult Services,Training Expenses,Tracy Packer,635.6, 13-Apr-2011,
,Revenue,CCHD,Management & Support costs,Rent,Trustees Of The Thorner 1990 Settlement,946.25, 01-Apr-2011,
,Revenue,CCHD,Management & Support costs,Inter Directorate Recharges,Trustees Of The Thorner 1990 Settlement,513.25, 01-Apr-2011,
,Revenue,CCHD,Preventative Technology Grant,Other Supplies & Services,Tunstall Telecom Limited,559, 28-Apr-2011,
,Revenue,CCHD,Minor Adaptations Service,Maintenance by Contractor,TVM Cheltenham Limited,1166.81, 15-Apr-2011,
,Revenue,CCHD,Minor Adaptations Service,Maintenance by Contractor,TVM Cheltenham Limited,1051.35, 27-Apr-2011,
,Revenue,CCHD,Minor Adaptations Service,Daily Living Equipment,TVM Cheltenham Limited,813.5, 27-Apr-2011,
,Revenue,CCHD,Under 65s PWLD - KD,Residential Homes,Ty Hafod Tudor,3789.76, 19-Apr-2011,
,Revenue,CCHD,PWLD S 117 Placements,Residential Homes,Unit 2,7341.4, 19-Apr-2011,
,Revenue,CCHD,S28A - Under 65,Residential Homes,United Response,2488.8, 19-Apr-2011,
,Revenue,CCHD,S28A - Under 65,Residential Homes,Urmston House,10457.12, 19-Apr-2011,
,Revenue,CCHD,S28A - Under 65,Residential Homes,Urmston House,1120.41, 19-Apr-2011,
,Revenue,CCHD,S28A - Under 65,Residential Homes,Urmston House,10449.32, 19-Apr-2011,
,Revenue,CCHD,S28A - Under 65,Residential Homes,Urmston House,1120.41, 19-Apr-2011,
,Revenue,CCHD,S28A - Under 65,Residential Homes,Urmston House,10457.12, 19-Apr-2011,
,Revenue,CCHD,S28A - Under 65,Residential Homes,Urmston House,1120.41, 19-Apr-2011,
,Revenue,CCHD,Southmead Hospital Purchasing,Residential Homes,Vaughan Lee House,1168.41, 19-Apr-2011,
,Revenue,CCHD,Homelessness Grant,Agency Staff (Admin/Support Staff) Pay,Venn Group Limited,669.33, 04-Apr-2011,
,Revenue,CCHD,Homelessness Grant,Agency Staff (Admin/Support Staff) Pay,Venn Group Limited,669.33, 18-Apr-2011,
,Revenue,CCHD,Homelessness Grant,Agency Staff (Admin/Support Staff) Pay,Venn Group Limited,669.33, 20-Apr-2011,
,Revenue,CCHD,Elderly Mental Health,Residential Homes,Ventura Residential Care Home,1246.8, 19-Apr-2011,
,Revenue,CCHD,Under 65s PWLD - PS,Residential Homes,Victoria Court,11025.96, 19-Apr-2011,
,Revenue,CCHD,Elderly PWLD - KD,Residential Homes,Victoria Court,8553.12, 19-Apr-2011,
,Revenue,CCHD,Elderly PWLD - KD,Residential Homes,Victoria Court,114677.58, 19-Apr-2011,
,Revenue,CCHD,Elderly PWLD - PS,Residential Homes,Visions,3545.16, 19-Apr-2011,
,Revenue,CCHD,Under 65s PWLD - PS,Residential Homes,Voyage Ltd,2931.44, 19-Apr-2011,
,Revenue,CCHD,Under 65s PWLD - KD,Residential Homes,Voyage Ltd,6657.8, 19-Apr-2011,
,Revenue,CCHD,Under 65s PWLD - KD,Residential Homes,Voyage Ltd,8037.51, 19-Apr-2011,
,Revenue,CCHD,S28A - Under 65,Residential Homes,Voyage Ltd,5032.38, 19-Apr-2011,
,Revenue,CCHD,S28A - Under 65,Residential Homes,Voyage Ltd,1680.06, 19-Apr-2011,
,Revenue,CCHD,Under 65s PWLD - PS,Residential Homes,Voyage Ltd,5440.77, 19-Apr-2011,
,Revenue,CCHD,Under 65s PWLD - PS,Residential Homes,Voyage Ltd,1814.94, 19-Apr-2011,
,Revenue,CCHD,Under 65s PWLD - PS,Residential Homes,Voyage Ltd,5793.04, 19-Apr-2011,
,Revenue,CCHD,Under 65s PWLD - PS,Residential Homes,Voyage Ltd,6347.99, 19-Apr-2011,
,Revenue,CCHD,Under 65s PWLD - PS,Residential Homes,Voyage Ltd,7510.08, 19-Apr-2011,
,Revenue,CCHD,Purchasing Phys Dis - South,Residential Homes,Voyage Ltd,5352, 19-Apr-2011,
,Revenue,CCHD,Under 65s PWLD - KH,Residential Homes,Voyage Ltd,5099.55, 19-Apr-2011,
,Revenue,CCHD,Elderly Mental Health,Residential Homes,Wayside Residential Care Home,1041.75, 19-Apr-2011,
,Revenue,CCHD,Elderly Mental Health,Residential Homes,Wayside Residential Care Home,991.74, 19-Apr-2011,
,Revenue,CCHD,Frenchay Hospital Purchasing,Residential Homes,Wayside Residential Care Home,979.38, 19-Apr-2011,
,Revenue,CCHD,Elderly Mental Health,Residential Homes,Wayside Residential Care Home,1203.56, 19-Apr-2011,
,Revenue,CCHD,Southmead Hospital Purchasing,Residential Homes,Wayside Residential Care Home,948.42, 19-Apr-2011,
,Revenue,CCHD,Elderly Purchasing - South,Residential Homes,Wayside Residential Care Home,923.64, 19-Apr-2011,
,Revenue,CCHD,PWLD S 117 Placements,Residential Homes,West Court,7773.44, 19-Apr-2011,
,Revenue,CCHD,Southmead Hospital Purchasing,Nursing Homes,Westbury Nursing Home,1905.77, 19-Apr-2011,
,Revenue,CCHD,Elderly Purchasing - North,Residential Homes,Westbury Nursing Home,1476.44, 19-Apr-2011,
,Revenue,CCHD,Elderly Mental Health,Residential Homes,Westbury Nursing Home,1727.6, 19-Apr-2011,
,Revenue,CCHD,Elderly Purchasing - North,Residential Homes,Wickwar Nursing Home  Castle House,867.87, 19-Apr-2011,
,Revenue,CCHD,Southmead Hospital Purchasing,Nursing Homes,Wickwar Nursing Home  Castle House,532.74, 19-Apr-2011,
,Revenue,CCHD,Elderly Purchasing - North,Residential Homes,Wickwar Nursing Home  Castle House,901.41, 19-Apr-2011,
,Revenue,CCHD,Frenchay Hospital Purchasing,Nursing Homes,Wickwar Nursing Home  Castle House,726.93, 19-Apr-2011,
,Revenue,CCHD,Elderly Purchasing - North,Nursing Homes,Wickwar Nursing Home  Castle House,1748, 19-Apr-2011,
,Revenue,CCHD,Elderly Purchasing - North,Nursing Homes,Wickwar Nursing Home  Castle House,686.71, 19-Apr-2011,
,Revenue,CCHD,Elderly Purchasing - North,Residential Homes,Wickwar Nursing Home  Castle House,1004.61, 19-Apr-2011,
,Revenue,CCHD,Elderly Purchasing - North,Nursing Homes,Wickwar Nursing Home  Castle House,1302.8, 19-Apr-2011,
,Revenue,CCHD,Elderly Purchasing - North,Nursing Homes,Wickwar Nursing Home  Castle House,1419.84, 19-Apr-2011,
,Revenue,CCHD,Elderly Purchasing - North,Nursing Homes,Wickwar Nursing Home  Castle House,1068.24, 19-Apr-2011,
,Revenue,CCHD,Elderly Purchasing - North,Residential Homes,Wickwar Nursing Home  Castle House,912.03, 19-Apr-2011,
,Revenue,CCHD,Frenchay Hospital Purchasing,Nursing Homes,Wickwar Nursing Home  Castle House,1126.08, 19-Apr-2011,
,Revenue,CCHD,Southmead Hospital Purchasing,Nursing Homes,Wickwar Nursing Home  Castle House,1133.2, 19-Apr-2011,
,Revenue,CCHD,Elderly Purchasing - North,Residential Homes,Wickwar Nursing Home  Castle House,1022.82, 19-Apr-2011,
,Revenue,CCHD,South Glos Users in South Glos Homes,Nursing Homes,Wickwar Nursing Home  Castle House,869.6, 19-Apr-2011,
,Revenue,CCHD,Elderly Purchasing - North,Nursing Homes,Wickwar Nursing Home  Castle House,1400.08, 19-Apr-2011,
,Revenue,CCHD,Purchasing Phys Dis - North,Nursing Homes,Wickwar Nursing Home  Castle House,1104.84, 19-Apr-2011,
,Revenue,CCHD,Elderly Mental Health,Residential Homes,Willow Cottage,1037.31, 19-Apr-2011,
,Revenue,CCHD,Southmead Hospital Purchasing,Residential Homes,Willow Cottage,1518.8, 19-Apr-2011,
,Revenue,CCHD,Frenchay Hospital Purchasing,Residential Homes,Willow Cottage,1079.52, 19-Apr-2011,
,Revenue,CCHD,Southmead Hospital Purchasing,Residential Homes,Willow Cottage,1403.08, 19-Apr-2011,
,Revenue,CCHD,Elderly Purchasing - North,Residential Homes,Willow Cottage,1016.01, 19-Apr-2011,
,Revenue,CCHD,Southmead Hospital Purchasing,Residential Homes,Willow Cottage,1468.5, 19-Apr-2011,
,Revenue,CCHD,Southmead Hospital Purchasing,Residential Homes,Willow Cottage,1046.2, 19-Apr-2011,
,Revenue,CCHD,Southmead Hospital Purchasing,Residential Homes,Willow Cottage,1410.32, 19-Apr-2011,
,Revenue,CCHD,Frenchay Hospital Purchasing,Residential Homes,Willow Cottage,1315.16, 19-Apr-2011,
,Revenue,CCHD,Southmead Hospital Purchasing,Residential Homes,Willow Cottage,806.73, 19-Apr-2011,
,Revenue,CCHD,South Glos Users in South Glos Homes,Nursing Homes,Willow Cottage,652.2, 19-Apr-2011,
,Revenue,CCHD,Elderly Purchasing - North,Nursing Homes,Willow Cottage,1945.44, 19-Apr-2011,
,Revenue,CCHD,Frenchay Hospital Purchasing,Nursing Homes,Willow Cottage,1645.6, 19-Apr-2011,
,Revenue,CCHD,Frenchay Hospital Purchasing,Nursing Homes,Willow Cottage,1320.72, 19-Apr-2011,
,Revenue,CCHD,Elderly Mental Health,Nursing Homes,Willow Cottage,1095.81, 19-Apr-2011,
,Revenue,CCHD,Southmead Hospital Purchasing,Nursing Homes,Willow Cottage,1082.04, 19-Apr-2011,
,Revenue,CCHD,Purchasing Phys Dis - North,Nursing Homes,Willow Cottage,1239.06, 19-Apr-2011,
,Revenue,CCHD,Elderly Purchasing - North,Nursing Homes,Willow Cottage,911.58, 19-Apr-2011,
,Revenue,CCHD,South Glos Users in South Glos Homes,Nursing Homes,Willow Cottage,1087, 19-Apr-2011,
,Revenue,CCHD,Elderly Purchasing - South,Residential Homes,Willow Cottage,1758.8, 19-Apr-2011,
,Revenue,CCHD,Southmead Hospital Purchasing,Nursing Homes,Willow Cottage,971.01, 19-Apr-2011,
,Revenue,CCHD,Supporting People Programme,Grants to Voluntary Bodies,Willowbank Care Limited,1063.43, 07-Apr-2011,
,Revenue,CCHD,Supported Living - KD,Private & Voluntary Home Care,Willowbank Care Limited,3572.52, 27-Apr-2011,
,Revenue,CCHD,Supported Living - KD,Private & Voluntary Home Care,Willowbank Care Limited,2039.28, 04-Apr-2011,
,Revenue,CCHD,Supported Living - KD,Private & Voluntary Home Care,Willowbank Care Limited,3572.52, 27-Apr-2011,
,Revenue,CCHD,Supported Living - KD,Private & Voluntary Home Care,Willowbank Care Limited,2039.28, 08-Apr-2011,
,Revenue,CCHD,Supported Living - KD,Private & Voluntary Home Care,Willowbank Care Limited,4091.56, 04-Apr-2011,
,Revenue,CCHD,Supported Living - KD,Private & Voluntary Home Care,Willowbank Care Limited,2039.28, 27-Apr-2011,
,Revenue,CCHD,Supported Living - KD,Private & Voluntary Home Care,Willowbank Care Limited,4091.56, 08-Apr-2011,
,Revenue,CCHD,Supported Living - KD,Private & Voluntary Home Care,Willowbank Care Limited,4091.56, 27-Apr-2011,
,Revenue,CCHD,Supported Living - KD,Private & Voluntary Home Care,Willowbank Care Limited,6191.18, 27-Apr-2011,
,Revenue,CCHD,Supported Living - KD,Private & Voluntary Home Care,Willowbank Care Limited,6191.18, 27-Apr-2011,
,Revenue,CCHD,Supported Living - KD,Private & Voluntary Home Care,Willowbank Care Limited,2092.3, 27-Apr-2011,
,Revenue,CCHD,Supported Living - KD,Private & Voluntary Home Care,Willowbank Care Limited,2092.3, 27-Apr-2011,
,Revenue,CCHD,Supported Living - KD,Private & Voluntary Home Care,Willowbank Care Limited,917.42, 27-Apr-2011,
,Revenue,CCHD,Supported Living - KD,Private & Voluntary Home Care,Willowbank Care Limited,917.42, 27-Apr-2011,
,Revenue,CCHD,Supported Living - KD,Private & Voluntary Home Care,Willowbank Care Limited,4743.08, 27-Apr-2011,
,Revenue,CCHD,Purchase of Non-Res Care - KD,Private & Voluntary Day Care,Willowbank Care Limited,4743.08, 27-Apr-2011,
,Revenue,CCHD,Supported Living - KD,Private & Voluntary Home Care,Willowbank Care Limited,2048.78, 27-Apr-2011,
,Revenue,CCHD,Supported Living - KD,Private & Voluntary Home Care,Willowbank Care Limited,2048.78, 27-Apr-2011,
,Revenue,CCHD,Supported Living - KD,Private & Voluntary Home Care,Willowbank Care Limited,585.36, 27-Apr-2011,
,Revenue,CCHD,Supported Living - KD,Private & Voluntary Home Care,Willowbank Care Limited,2048.78, 27-Apr-2011,
,Revenue,CCHD,Supported Living - KD,Private & Voluntary Home Care,Willowbank Care Limited,2048.78, 27-Apr-2011,
,Revenue,CCHD,Supported Living - KD,Private & Voluntary Home Care,Willowbank Care Limited,2048.78, 27-Apr-2011,
,Revenue,CCHD,Supported Living - KD,Private & Voluntary Home Care,Willowbank Care Limited,2598.36, 27-Apr-2011,
,Revenue,CCHD,Supported Living - KD,Private & Voluntary Home Care,Willowbank Care Limited,2598.36, 27-Apr-2011,
,Revenue,CCHD,Supported Living (S28a),Private & Voluntary Home Care,Willowbank Care Limited,4371.02, 20-Apr-2011,
,Revenue,CCHD,Supported Living (S28a),Private & Voluntary Home Care,Willowbank Care Limited,4371.02, 20-Apr-2011,
,Revenue,CCHD,Supported Living (S28a),Private & Voluntary Home Care,Willowbank Care Limited,4616.5, 20-Apr-2011,
,Revenue,CCHD,Supported Living (S28a),Private & Voluntary Home Care,Willowbank Care Limited,4616.5, 20-Apr-2011,
,Revenue,CCHD,Supported Living - KD,Private & Voluntary Home Care,Willowbank Care Limited,2999.98, 27-Apr-2011,
,Revenue,CCHD,Supported Living - KD,Private & Voluntary Home Care,Willowbank Care Limited,2999.98, 27-Apr-2011,
,Revenue,CCHD,Supported Living - KD,Private & Voluntary Home Care,Willowbank Care Limited,3024.78, 27-Apr-2011,
,Revenue,CCHD,Supported Living - KD,Private & Voluntary Home Care,Willowbank Care Limited,3024.78, 27-Apr-2011,
,Revenue,CCHD,Supported Living - KD,Private & Voluntary Home Care,Willowbank Care Limited,2251.48, 27-Apr-2011,
,Revenue,CCHD,Supported Living - KD,Private & Voluntary Home Care,Willowbank Care Limited,2251.48, 27-Apr-2011,
,Revenue,CCHD,Elderly MH non-res purchasing,Private & Voluntary Day Care,Windmill Care Limited,523.35, 20-Apr-2011,
,Revenue,CCHD,Minor Adaptations Service,Operational Equipment,Winzer Wurth Industrial Ltd,567.84, 05-Apr-2011,
,Revenue,CCHD,Elderly Purchasing - North,Nursing Homes,Woodlands Manor,1149.12, 19-Apr-2011,
,Revenue,CCHD,South Glos Users in South Glos Homes,Nursing Homes,Woodlands Manor,1009.36, 19-Apr-2011,
,Revenue,CCHD,South Glos Users in South Glos Homes,Nursing Homes,Woodlands Manor,885.13, 19-Apr-2011,
,Revenue,CCHD,Elderly Purchasing - North,Nursing Homes,Woodlands Manor,929, 19-Apr-2011,
,Revenue,CCHD,Elderly Purchasing - North,Nursing Homes,Woodlands Manor,1677.28, 19-Apr-2011,
,Revenue,CCHD,Day Care - South,Private & Voluntary Day Care,Woodlands Manor Care Home Ltd,540, 18-Apr-2011,
,,,,,,7706544.12,,
,Revenue,CECR,Spending ex - HRA Balances,Grants to Voluntary Bodies,1st Winterbourne Scout Group,500, 01-Apr-2011,
,Revenue,CECR,Benefits Administration,Agency Staff (Admin/Support Staff) Pay,Accurate Assessments Ltd,1000, 07-Apr-2011,
,Revenue,CECR,Performance Management,Software Support & Maintenance,Actuate International Sarl,9800, 12-Apr-2011,
,Revenue,CECR,Mailroom Equipment,Equipment Maintenance,Addressing & Mailing Solutions Limited,517.23, 27-Apr-2011,
,Revenue,CECR,PSD Architects,Training Expenses,Alway Associates,1100, 18-Apr-2011,
,Revenue,CECR,Design Materials,Printing & Stationery,Ambassador Litho Limited,696, 19-Apr-2011,
,Revenue,CECR,Customer Relations,Software Purchase,Appius International Ltd,7700, 18-Apr-2011,
,Revenue,CECR,Customer Relations,Software Purchase,Appius International Ltd,7040, 12-Apr-2011,
,Revenue,CECR,Thornbury Council Offices,Prop.Serv. General Repairs,Aquarius Waste Management Ltd,435, 28-Apr-2011,
,Revenue,CECR,Design Materials,Printing & Stationery,Arien Signs,670, 15-Apr-2011,
,Revenue,CECR,PSD Project Management,Training Expenses,Asta Development Plc,500, 04-Apr-2011,
,Revenue,CECR,District Audit Fees,Audit Fees,Audit Commision,26569, 01-Apr-2011,
,Revenue,CECR,Infrastructure - Comm,Computer Equipment - Maintenance,B2Net Ltd,2000, 13-Apr-2011,
,Revenue,CECR,PC Software Recharges,Software Purchase,Barclays Asset & Sales Finace,3828, 15-Apr-2011,
,Revenue,CECR,Pre 1996 Pensions,Annual Pension,Bath & North East Somerset Dist Council,9057.7, 05-Apr-2011,
,Revenue,CECR,Pre 1996 Pensions,Annual Pension,Bath & North East Somerset Dist Council,9071.74, 05-Apr-2011,
,Revenue,CECR,Pre 1996 Pensions,Annual Pension,Bath & North East Somerset Dist Council,16086.6, 05-Apr-2011,
,Revenue,CECR,Pre 1996 Pensions,Annual Pension,Bath & North East Somerset Dist Council,33228.11, 05-Apr-2011,
,Revenue,CECR,Chair`s Expenses,Catering,Bawa Healthcare & Leisure,876.41, 08-Apr-2011,
,Revenue,CECR,Improvement Fund,Project Funding,Bawa Healthcare & Leisure,1589.79, 14-Apr-2011,
,Revenue,CECR,PSD Information Management,Software Support & Maintenance,Bentley Systems International Limited,1300, 28-Apr-2011,
,Revenue,CECR,Chief Executive,Other L.A.'s - General,Bristol City Council,2665, 04-Apr-2011,
,Revenue,CECR,Benefits Fraud,Legal Fees,Bristol City Council,3479.42, 05-Apr-2011,
,Revenue,CECR,Benefits Fraud,Legal Fees,Bristol City Council,5394.72, 27-Apr-2011,
,Revenue,CECR,Kingswood Civic Centre,Water Charges,Bristol Wessex Billing Services Limited,1356.98, 04-Apr-2011,
,Revenue,CECR,Tormarton Depot,Water Charges,Bristol Wessex Billing Services Limited,511.26, 04-Apr-2011,
,Revenue,CECR,PSD Quantity Surveyors,Membership Fees,Building Software Limited,2650, 18-Apr-2011,
,Revenue,CECR,QSD Document Management,Software Purchase,Capita Business Services Ltd,19109.56, 07-Apr-2011,
,Revenue,CECR,QSD Controls,Software Purchase,Capita Business Services Ltd,11200, 28-Apr-2011,
,Revenue,CECR,QSD Controls,Software Purchase,Capita Business Services Ltd,995, 28-Apr-2011,
,Revenue,CECR,Service Reviews Prog - ICT Costs,Agency Staff (Admin/Support Staff) Pay,Cash Friday at Lloyds TSB,1520, 01-Apr-2011,
,Revenue,CECR,Service Reviews Prog - ICT Costs,Agency Staff (Admin/Support Staff) Pay,Cash Friday at Lloyds TSB,1729, 15-Apr-2011,
,Revenue,CECR,Service Reviews Prog - ICT Costs,Agency Staff (Admin/Support Staff) Pay,Cash Friday at Lloyds TSB,1805, 20-Apr-2011,
,Revenue,CECR,Service Reviews Prog - ICT Costs,Agency Staff (Admin/Support Staff) Pay,Cash Friday at Lloyds TSB,1140, 20-Apr-2011,
,Revenue,CECR,Service Reviews Prog - ICT Costs,Agency Staff (Admin/Support Staff) Pay,Cash Friday at Lloyds TSB,1140, 20-Apr-2011,
,Revenue,CECR,PSD Mech Engineers,Agency Staff (Operational)/PCT Pay,CDI Anders Elite Limited,1134, 04-Apr-2011,
,Revenue,CECR,PSD Mech Engineers,Agency Staff (Operational)/PCT Pay,CDI Anders Elite Limited,1120, 11-Apr-2011,
,Revenue,CECR,PSD Mech Engineers,Agency Staff (Operational)/PCT Pay,CDI Anders Elite Limited,1232, 18-Apr-2011,
,Revenue,CECR,PSD Mech Engineers,Agency Staff (Operational)/PCT Pay,CDI Anders Elite Limited,1190, 27-Apr-2011,
,Revenue,CECR,Corporate Financial Services,Membership Fees,CIPFA Business Limited,1445, 08-Apr-2011,
,Revenue,CECR,Financial Reporting,Membership Fees,CIPFA Business Limited,700, 13-Apr-2011,
,Revenue,CECR,Exchequer Administration,Membership Fees,CIPFA Business Limited,1180, 13-Apr-2011,
,Revenue,CECR,Payroll,Membership Fees,CIPFA Business Limited,590, 13-Apr-2011,
,Revenue,CECR,Internal Audit,Membership Fees,CIPFA Business Limited,590, 13-Apr-2011,
,Revenue,CECR,Benefits Administration,Training Expenses,CIPFA Business Limited,2975, 15-Apr-2011,
,Revenue,CECR,Service Reviews Prog - ICT Costs,Software Purchase,Computacenter (UK) Ltd,11674.5, 20-Apr-2011,
,Revenue,CECR,Badminton Road Offices,Gas,Corona Energy Retail 3 Limited,2267.89, 06-Apr-2011,
,Revenue,CECR,Old Park School,Gas,Corona Energy Retail 3 Limited,698.36, 06-Apr-2011,
,Revenue,CECR,Thornbury Council Offices,Gas,Corona Energy Retail 3 Limited,1675.36, 06-Apr-2011,
,Revenue,CECR,Broad Lane Depot,Gas,Corona Energy Retail 3 Limited,2168.68, 06-Apr-2011,
,Revenue,CECR,Scanning,Equipment Maintenance,Corporate Upgrade Centre Limited,3077, 20-Apr-2011,
,Revenue,CECR,Democratic and Statutory Services,Furniture & Fittings Loose,Danco International Plc,1800.29, 12-Apr-2011,
,Revenue,CECR,Customer Services - Discr,Office Supplies & Equipment,Dantech Limited,599, 01-Apr-2011,
,Revenue,CECR,Finishing,Other Consumable Materials,Dayfold Limited,475.45, 08-Apr-2011,
,Revenue,CECR,Design Materials,Printing & Stationery,Deltor Communications Limited,13277, 08-Apr-2011,
,Revenue,CECR,Spending ex - HRA Balances,Grants to Voluntary Bodies,Dodington Parish Council,508, 14-Apr-2011,
,Revenue,CECR,Electoral Expenses,Computer Equipment - Purchase,DSG Retail Limited,1994, 07-Apr-2011,
,Revenue,CECR,Customer Services - Discr,Computer Equipment - Purchase,DSG Retail Limited,10.99, 20-Apr-2011,
,Revenue,CECR,Service Reviews Prog - ICT Costs,Software Purchase,DSG Retail Limited,135.55, 20-Apr-2011,
,Revenue,CECR,Infrastructure - Comm,Software Support & Maintenance,DST Business Systems,13792, 12-Apr-2011,
,Revenue,CECR,Benefits Administration,Agency Staff (Admin/Support Staff) Pay,Eden Brown Limited,1027, 07-Apr-2011,
,Revenue,CECR,Benefits Administration,Agency Staff (Admin/Support Staff) Pay,Eden Brown Limited,1001, 14-Apr-2011,
,Revenue,CECR,Benefits Administration,Agency Staff (Admin/Support Staff) Pay,Eden Brown Limited,1027, 20-Apr-2011,
,Revenue,CECR,Benefits Administration,Agency Staff (Admin/Support Staff) Pay,Eden Brown Limited,1027, 28-Apr-2011,
,Revenue,CECR,Nibley Court Offices,Electricity,EDF Energy 1 Limited,3551.84, 15-Apr-2011,
,Revenue,CECR,Almondsbury Depot,Electricity,EDF Energy 1 Limited,2287.7, 07-Apr-2011,
,Revenue,CECR,Broad Lane Depot,Electricity,EDF Energy 1 Limited,3515.55, 15-Apr-2011,
,Revenue,CECR,Vinney Green Offices,Electricity,EDF Energy 1 Limited,462.41, 27-Apr-2011,
,Revenue,CECR,Vinney Green Offices,Electricity,EDF Energy 1 Limited,577.56, 27-Apr-2011,
,Revenue,CECR,Thornbury Council Offices,Electricity,EDF Energy 1 Limited,11692.88, 15-Apr-2011,
,Revenue,CECR,Kingswood Civic Centre,Electricity,EDF Energy 1 Limited,6234.51, 15-Apr-2011,
,Revenue,CECR,"Oaklands, Almondsbury Site",Electricity,EDF Energy 1 Limited,624.91, 15-Apr-2011,
,Revenue,CECR,Member Development,Books & Publications,Equality & Diversity UK Limited,795, 07-Apr-2011,
,Revenue,CECR,Revenues Recovery Division,Legal Fees,Experian Limited,6536, 08-Apr-2011,
,Revenue,CECR,PSD Building Surveyors,Other Premises Costs,Felt Roofing Contractors (Avon) Limited,3150, 19-Apr-2011,
,Revenue,CECR,Badminton Road Offices,Other Premises Costs,Flagmakers Ltd T/A Mr Flag.Com,625.56, 20-Apr-2011,
,Revenue,CECR,Spending ex - HRA Balances,Grants to Voluntary Bodies,Frampton Cotterell Parish Council,715, 28-Apr-2011,
,Revenue,CECR,Travellers Site - Winterbourne,Refuse Collection Charges,Frank Bowtell Limited,778.7, 01-Apr-2011,
,Revenue,CECR,Travellers Site - Patchway,Refuse Collection Charges,Frank Bowtell Limited,1348.8, 01-Apr-2011,
,Revenue,CECR,Travellers Site - Patchway,Refuse Collection Charges,Frank Bowtell Limited,399.3, 18-Apr-2011,
,Revenue,CECR,Travellers Site - Winterbourne,Refuse Collection Charges,Frank Bowtell Limited,399.3, 18-Apr-2011,
,Revenue,CECR,Travellers Site - Winterbourne,Prop.Serv. General Repairs,Frank Bowtell Limited,1585, 18-Apr-2011,
,Revenue,CECR,PSD Clerk of Works,Agency Staff (Admin/Support Staff) Pay,Franklyn Recruitment Limited,573.75, 01-Apr-2011,
,Revenue,CECR,PSD Clerk of Works,Agency Staff (Admin/Support Staff) Pay,Franklyn Recruitment Limited,650.25, 08-Apr-2011,
,Revenue,CECR,PSD Clerk of Works,Agency Staff (Admin/Support Staff) Pay,Franklyn Recruitment Limited,573.75, 15-Apr-2011,
